Workbook

Sheet Start
B1: STIC Figure 2.0
B3: Sexually Transmitted Infection Costs Saved

Sheet User input
B1: Program Inputs
B3: Jurisdiction Name and Year
C5: Program inputs (click input name for more information) | D5: Male | E5: Female
B6: Chlamydia | C6: Confirmed cases treated
C7: Persons receiving epi-treatment
C8: EPT referrals or prescriptions distributed to patients for partners
C9: Other presumptive treatment
B10: Gonorrhea | C10: Confirmed cases treated
C11: Persons receiving epi-treatment
C12: EPT referrals or prescriptions distributed to patients for partners
C13: Other presumptive treatment
B14: P&S Syphilis | C14: Confirmed cases treated
C15: Persons receiving epi-treatment
C16: Volume of EPT distributed | D16: 0 | E16: 0
B17: HIV | C17: Newly diagnosed HIV cases linked to care
C18: Previously-diagnosed HIV cases relinked to care (i.e., re-engaged)
C19: Persons provided with a PrEP referral
C20: Persons receiving direct provision of PrEP
B22: Advanced Options
B23: % of females with syphilis who are pregnant | D23: 0.146
B24: % of chlamydia cases in males that occur among MSM | D24: 0.107
B25: % of gonorrhea cases in males that occur among MSM | D25: 0.597
B26: % of syphilis cases in males that occur among MSM | D26: 0.6
B27: % of HIV cases in males that occur among MSM | D27: 0.869
B28: % of male HIV PrEP users who are MSM | D28: 0.977
B29: Current medical CPI to adjust the direct costs for inflation (default: 2023) | D29: 549.084
B30: Current general CPI to adjust the productivity costs for inflation (default: 2023) | D30: 304.702

Sheet Output
B1: =IF('User input'!D3 <>"",_xlfn.CONCAT("STI Program Benefits: ", 'User input'!D3),"Benefits of STD programs") -> Benefits of STD programs
B3: Estimated total lifetime costs saved: | E3: =IFERROR(TEXT(J4+J11, "$###,###" ), "") -> $ | J3: Costs saved | K3: Costs lower bound | L3: Costs upper bound | M3: Outcomes averted | N3: Lower bound | O3: Upper bound
I4: Direct medical costs | J4: 0 | K4: 0 | L4: 0 | M4: 0 | N4: 0 | O4: 0
I5: Benefits to the patients treated | J5: 0 | K5: 0 | L5: 0 | M5: 0 | N5: 0 | O5: 0
I6: Congenital syphilis averted | J6: 0 | K6: 0 | L6: 0 | M6: 0 | N6: 0 | O6: 0
B7: Interpretation | I7: Sequalae averted in patients treated | J7: 0 | K7: 0 | L7: 0 | M7: 0 | N7: 0 | O7: 0
B8: =IF(SUM(costs_dataset!AD2:'costs_dataset'!AD38)>1,IFERROR(_xlfn.CONCAT("Your program saved ",TEXT(J$4+J$11,"$###,###"), " including:"),""),"") ->  | I8: Benefits to the population | J8: 0 | K8: 0 | L8: 0 | M8: 0 | N8: 0 | O8: 0
B9: =IF(SUM(costs_dataset!AD2:'costs_dataset'!AD38)>1,_xlfn.CONCAT(IF(J$4<>0,_xlfn.CONCAT(TEXT(J$4, "$###,###" ), " (range: ", TEXT(K4, "$###,###" ), ", ", TEXT(L4, "$###,####" ), ") lifetime treatment costs"),""), IF(J$11<>0,_xlfn.CONCAT(" and ", TEXT(J$11, "$###,###" ), " (range: ", TEXT(K$11, "$###,###" ), ", ", TEXT(L$11, "$###,####" ), ") productivity costs due to patients' time lost."),"")),"") ->  | I9: HIV infections averted | J9: 0 | K9: 0 | L9: 0 | M9: 0 | N9: 0 | O9: 0
I10: STI infections averted | J10: 0 | K10: 0 | L10: 0 | M10: 0 | N10: 0 | O10: 0
I11: Productivity costs | J11: 0 | K11: 0 | L11: 0 | M11: 0 | N11: 0 | O11: 0
I12: Benefits to the patients treated | J12: 0 | K12: 0 | L12: 0 | M12: 0 | N12: 0 | O12: 0
B13: =IF(SUM(costs_dataset!AA2:'costs_dataset'!AA38)>1,IFERROR(_xlfn.CONCAT("Your program averted ", TEXT(M$4, "###,###"), " outcomes including:"),""),"") ->  | I13: Congenital syphilis averted | J13: 0 | K13: 0 | L13: 0 | M13: 0 | N13: 0 | O13: 0
B14: =_xlfn.CONCAT(IF(N$6>1,_xlfn.CONCAT(TEXT(M$6,"###,###")," (range: ", TEXT(N$6, "###,###" ), ", ", TEXT(O$6, "###,####" ),") congenital syphilis cases averted, and ", "")," "),IF(N$7>1,_xlfn.CONCAT(TEXT(M$7,"###,###")," (range: ", TEXT(N$7, "###,###" ), ", ", TEXT(O$7, "###,####" ),") cases of sequelae in patients treated, and ",""),""),IF(N$8>1, _xlfn.CONCAT(TEXT(M$8, "###,###" ), " (range: ", TEXT(N$8, "###,###" ), ", ", TEXT(O$8, "###,####" ), ") infections averted in the population."),"")) ->  | I14: Sequalae averted in patients treated | J14: 0 | K14: 0 | L14: 0 | M14: 0 | N14: 0 | O14: 0
I15: Benefits to the population | J15: 0 | K15: 0 | L15: 0 | M15: 0 | N15: 0 | O15: 0
I16: HIV infections averted | J16: 0 | K16: 0 | L16: 0 | M16: 0 | N16: 0 | O16: 0
I17: STI infections averted | J17: 0 | K17: 0 | L17: 0 | M17: 0 | N17: 0 | O17: 0

Sheet Edit output here
B1: Advanced options and tables/charts to copy into other applications (e.g., Word documents, PowerPoint presentations)
B2: !!!! Do NOT edit charts in the spreadsheet or add/delete columns to the table. To place a chart in another application, use the "copy" feature (not the "cut" feature) and paste it into a PowerPoint or Word document for editing.
J4: Costs saved | K4: Costs lower bound | L4: Costs upper bound | M4: Outcomes averted | N4: Lower bound | O4: Upper bound
I5: Direct medical costs | J5: 0 | K5: 0 | L5: 0 | M5: 0 | N5: 0 | O5: 0
I6: Benefits to the patients treated | J6: 0 | K6: 0 | L6: 0 | M6: 0 | N6: 0 | O6: 0
I7: Congenital syphilis averted | J7: 0 | K7: 0 | L7: 0 | M7: 0 | N7: 0 | O7: 0
I8: Sequalae averted in patients treated | J8: 0 | K8: 0 | L8: 0 | M8: 0 | N8: 0 | O8: 0
I9: Benefits to the population | J9: 0 | K9: 0 | L9: 0 | M9: 0 | N9: 0 | O9: 0
I10: HIV infections | J10: 0 | K10: 0 | L10: 0 | M10: 0 | N10: 0 | O10: 0
I11: STI infections | J11: 0 | K11: 0 | L11: 0 | M11: 0 | N11: 0 | O11: 0
I12: Productivity costs | J12: 0 | K12: 0 | L12: 0 | M12: 0 | N12: 0 | O12: 0
I13: Benefits to the patients treated | J13: 0 | K13: 0 | L13: 0 | M13: 0 | N13: 0 | O13: 0
I14: Congenital syphilis averted | J14: 0 | K14: 0 | L14: 0 | M14: 0 | N14: 0 | O14: 0
I15: Sequalae averted in patients treated | J15: 0 | K15: 0 | L15: 0 | M15: 0 | N15: 0 | O15: 0
I16: Benefits to the population | J16: 0 | K16: 0 | L16: 0 | M16: 0 | N16: 0 | O16: 0
I17: HIV infections | J17: 0 | K17: 0 | L17: 0 | M17: 0 | N17: 0 | O17: 0
I18: STI infections | J18: 0 | K18: 0 | L18: 0 | M18: 0 | N18: 0 | O18: 0

Sheet Interpretation guide
B1: Interpretation guide

Sheet costs_dataset (hidden)
A1: Sim | B1: Current year CPI | C1: Base year CPI (2023) | D1: Cost description | E1: Type of benefit | F1: Type of cost | G1: Population treated | H1: STD program | I1: Infection averted | J1: Base cost | K1: Lower base cost | L1: Upper base cost | M1: Model inputs | N1: Current cost | O1: lower current cost | P1: upper current cost | Q1: Parameter 1 | R1: lower param 1 | S1: upper param 1 | T1: Parameter 2 | U1: Lower param 2 | V1: Upper param 2 | W1: Parameter 3 | X1: Lower param 3 | Y1: Upper param 3 | Z1: Blank. Columns AA through AF were originally filled in with VBA code but now are calculated on this worksheet | AA1: lower cases | AB1: upper cases | AC1: Cases | AD1: lower final cost | AE1: upper final cost | AF1: Final cost | AG1: GT | AI1: lower cases | AJ1: upper cases | AK1: Cases | AL1: lower final cost | AM1: upper final cost | AN1: Final cost | AO1: GT | AQ1: Joint probability (base) | AR1: Joint Probability (low) | AS1: Joint probability (high) | AT1: Joint Probability (SE) | AU1: joint probability lognormal parameter mu | AV1: joint probability lognormal parameter sigma | AX1: Cost (base) | AY1: Cost (low) | AZ1: Cost (high) | BA1: Cost (SE) | BB1: cost lognormal parameter mu | BC1: cost lognormal parameter sigma | BE1: cases (base) | BF1: cases (low) | BG1: cases (high) | BI1: Total cost lognormal parameter mu | BJ1: Total cost lognormal parameter sigma | BK1: Total costs (base) | BL1: Total costs (low) | BM1: Total costs (high) | BO1: normal backup cases base | BP1: normal backup cases low | BQ1: normal backup cases high | BS1: normal backup cost per case base | BT1: normal backup cost per case low | BU1: normal backup cost per case high | BW1: normal backup total costs base | BX1: normal backup total costs low | BY1: normal backup total costs high | CA1: Error cases low | CB1: Error cases high | CC1: Error costs low | CD1: Error cost low | CE1: Error total cost low | CF1: Error total cost high | CG1: Errors | CI1: lower cases | CJ1: upper cases | CK1: Cases | CL1: lower final cost | CM1: upper final cost | CN1: Final cost | CQ1: Model inputs (base) | CR1: Model inputs (low) | CS1: Model inputs (high) | CT1: Model inputs (SE) | CU1: model inputs lognormal parameter mu | CV1: model inputs lognormal parameter sigma
B2: =Model_inputs_new!$H$45 -> 549.084 | C2: 549.084 | D2: Sequalae averted in patients treated | E2: Benefits to the patients treated | F2: Direct medical cost | G2: Female | H2: Chlamydia treatment | I2: PID prevented | J2: =Model_inputs_new!G$115 -> 2703 | K2: =Model_inputs_new!H$115 -> 2107 | L2: =Model_inputs_new!I$115 -> 4051 | N2: =J2*(B2/C2) -> 2703 | O2: =K2*(B2/C2) -> 2107 | P2: =L2*(B2/C2) -> 4051 | Q2: =Model_inputs_new!G$54 -> 0.06 | R2: =Model_inputs_new!H$54 -> 0.01 | S2: =Model_inputs_new!I$54 -> 0.12 | T2: =1-Model_inputs_new!G105 -> 0.958 | U2: =1-Model_inputs_new!I105 -> 0.938 | V2: =1-Model_inputs_new!H105 -> 0.976 | W2: =Model_inputs_new!G62 -> 0.8 | X2: =Model_inputs_new!H62 -> 0.68 | Y2: =Model_inputs_new!I62 -> 0.86 | AA2: =AI2 -> 0 | AB2: =AJ2 -> 0 | AC2: 0 | AD2: 0 | AE2: 0 | AF2: 0 | AG2: Total | AI2: =CI2 -> 0 | AJ2: =CJ2 -> 0 | AK2: 0 | AL2: 0 | AM2: 0 | AN2: 0 | AQ2: =Q2*T2*W2*CQ2 -> 0 | AR2: =R2*U2*X2*CR2 -> 0 | AS2: 0 | AT2: =(AS2-AR2)/(2*1.96) -> 0 | AU2: =LN(AQ2) - 0.5*LN(1 + ((AT2*AT2) / (AQ2*AQ2))) ->  | AV2: =POWER(LN(1 + ((AT2*AT2) / (AQ2*AQ2))),0.5) ->  | AX2: =N2 -> 2703 | AY2: =O2 -> 2107 | AZ2: 4051 | BA2: =(AZ2-AY2)/(2*1.96) -> 495.9183673 | BB2: =IFERROR(LN(AX2) - 0.5*LN(1 + ((BA2*BA2) / (AX2*AX2))),0) -> 7.885564064 | BC2: =IFERROR(POWER(LN(1 + ((BA2*BA2) / (AX2*AX2))),0.5),0) -> 0.1819531958 | BE2: =AQ2 -> 0 | BF2: =_xlfn.LOGNORM.INV(0.25,$AU2,$AV2) ->  | BG2: =_xlfn.LOGNORM.INV(0.75,$AU2,$AV2) ->  | BI2: =AU2+BB2 ->  | BJ2: =SQRT((AV2*AV2)+(BC2*BC2)) ->  | BK2: =AX2*BE2 -> 0 | BL2: =_xlfn.LOGNORM.INV(0.25,$BI2,$BJ2) ->  | BM2: =_xlfn.LOGNORM.INV(0.75,$BI2,$BJ2) ->  | BO2: =AQ2 -> 0 | BP2: =MAX(0,IFERROR(_xlfn.NORM.INV(0.25,$AQ2,$AT2),AVERAGE(AQ2,AR2))) -> 0 | BQ2: =IFERROR(_xlfn.NORM.INV(0.75,$AQ2,$AT2),AVERAGE(AQ2,AS2)) -> 0 | BS2: =AX2 -> 2703 | BT2: =IFERROR(_xlfn.NORM.INV(0.25,$AX2,$BA2),AVERAGE(AX2,AY2)) -> 2368.508144 | BU2: =IFERROR(_xlfn.NORM.INV(0.75,$AX2,$BA2),AVERAGE(AX2,AZ2)) -> 3037.491856 | BW2: =BO2*BS2 -> 0 | BX2: =BP2*BT2 -> 0 | BY2: =BQ2*BU2 -> 0 | CA2: =IFERROR(IF(BE2<BF2,1,0),1) -> 1 | CB2: =IFERROR(IF(BE2>BG2,1,0),1) -> 1 | CC2: =IFERROR(IF(AX2<AY2,1,0),1) -> 0 | CD2: =IFERROR(IF(AX2>AZ2,1,0),1) -> 0 | CE2: =IFERROR(IF(BK2<BL2,1,0),1) -> 1 | CF2: =IFERROR(IF(BK2>BM2,1,0),1) -> 1 | CG2: =IFERROR(IF(SUM(CA2:CF2)=0,0,1),1) -> 1 | CI2: =IF($CG2=0,BF2, BP2) -> 0 | CJ2: =IF($CG2=0,BG2, BQ2) -> 0 | CK2: =IF($CG2=0,BE2, BO2) -> 0 | CL2: =IF($CG2=0,BL2, BX2) -> 0 | CM2: =IF($CG2=0,BM2, BY2) -> 0 | CN2: =IF($CG2=0,BK2, BW2) -> 0 | CQ2: =Model_inputs_new!C4 -> 0 | CR2: =Model_inputs_new!D4 -> 0 | CS2: =Model_inputs_new!E4 -> 0 | CT2: =(CS2-CR2)/(2*1.96) -> 0 | CU2: =IFERROR(LN(CQ2) - 0.5*LN(1 + ((CT2*CT2) / (CQ2*CQ2))),0) -> 0 | CV2: =IFERROR(POWER(LN(1 + ((CT2*CT2) / (CQ2*CQ2))),0.5),0) -> 0
B3: =Model_inputs_new!$H$45 -> 549.084 | C3: 549.084 | D3: Sequalae averted in patients treated | E3: Benefits to the patients treated | F3: Direct medical cost | G3: Male: Non-MSM | H3: Chlamydia treatment | I3: Epididymitis prevented | J3: =Model_inputs_new!G$116 -> 413 | K3: =Model_inputs_new!H$116 -> 256 | L3: =Model_inputs_new!I$116 -> 571 | N3: 413 | O3: 256 | P3: 571 | Q3: =Model_inputs_new!G$56 -> 0.02 | R3: =Model_inputs_new!H$56 -> 0.01 | S3: =Model_inputs_new!I$56 -> 0.04 | T3: =1-Model_inputs_new!G106 -> 0.989 | U3: =1-Model_inputs_new!I106 -> 0.977 | V3: =1-Model_inputs_new!H106 -> 0.995 | W3: =Model_inputs_new!G63 -> 0.8 | X3: =Model_inputs_new!H63 -> 0.68 | Y3: =Model_inputs_new!I63 -> 0.86 | AA3: =AI3 -> 0 | AB3: 0 | AC3: 0 | AD3: 0 | AE3: 0 | AF3: 0 | AG3: Total | AI3: =CI3 -> 0 | AJ3: 0 | AK3: 0 | AL3: 0 | AM3: 0 | AN3: 0 | AQ3: =Q3*T3*W3*CQ3 -> 0 | AR3: =R3*U3*X3*CR3 -> 0 | AS3: =S3*V3*Y3*CS3 -> 0 | AT3: =(AS3-AR3)/(2*1.96) -> 0 | AU3: =LN(AQ3) - 0.5*LN(1 + ((AT3*AT3) / (AQ3*AQ3))) ->  | AV3: =POWER(LN(1 + ((AT3*AT3) / (AQ3*AQ3))),0.5) ->  | AX3: =N3 -> 413 | AY3: 256 | AZ3: 571 | BA3: =(AZ3-AY3)/(2*1.96) -> 80.35714286 | BB3: =IFERROR(LN(AX3) - 0.5*LN(1 + ((BA3*BA3) / (AX3*AX3))),0) -> 6.004868475 | BC3: =IFERROR(POWER(LN(1 + ((BA3*BA3) / (AX3*AX3))),0.5),0) -> 0.1927647141 | BE3: =AQ3 -> 0 | BF3: =_xlfn.LOGNORM.INV(0.25,$AU3,$AV3) ->  | BG3: =_xlfn.LOGNORM.INV(0.75,$AU3,$AV3) ->  | BI3: =AU3+BB3 ->  | BJ3: =SQRT((AV3*AV3)+(BC3*BC3)) ->  | BK3: =AX3*BE3 -> 0 | BL3: =_xlfn.LOGNORM.INV(0.25,$BI3,$BJ3) ->  | BM3: =_xlfn.LOGNORM.INV(0.75,$BI3,$BJ3) ->  | BO3: =AQ3 -> 0 | BP3: =MAX(0,IFERROR(_xlfn.NORM.INV(0.25,$AQ3,$AT3),AVERAGE(AQ3,AR3))) -> 0 | BQ3: =IFERROR(_xlfn.NORM.INV(0.75,$AQ3,$AT3),AVERAGE(AQ3,AS3)) -> 0 | BS3: =AX3 -> 413 | BT3: =IFERROR(_xlfn.NORM.INV(0.25,$AX3,$BA3),AVERAGE(AX3,AY3)) -> 358.7999308 | BU3: =IFERROR(_xlfn.NORM.INV(0.75,$AX3,$BA3),AVERAGE(AX3,AZ3)) -> 467.2000692 | BW3: =BO3*BS3 -> 0 | BX3: =BP3*BT3 -> 0 | BY3: =BQ3*BU3 -> 0 | CA3: =IFERROR(IF(BE3<BF3,1,0),1) -> 1 | CB3: =IFERROR(IF(BE3>BG3,1,0),1) -> 1 | CC3: =IFERROR(IF(AX3<AY3,1,0),1) -> 0 | CD3: =IFERROR(IF(AX3>AZ3,1,0),1) -> 0 | CE3: =IFERROR(IF(BK3<BL3,1,0),1) -> 1 | CF3: =IFERROR(IF(BK3>BM3,1,0),1) -> 1 | CG3: =IFERROR(IF(SUM(CA3:CF3)=0,0,1),1) -> 1 | CI3: =IF($CG3=0,BF3, BP3) -> 0 | CJ3: 0 | CK3: =IF($CG3=0,BE3, BO3) -> 0 | CL3: =IF($CG3=0,BL3, BX3) -> 0 | CM3: 0 | CN3: =IF($CG3=0,BK3, BW3) -> 0 | CQ3: =Model_inputs_new!C6 -> 0 | CR3: =Model_inputs_new!D6 -> 0 | CS3: =Model_inputs_new!E6 -> 0 | CT3: =(CS3-CR3)/(2*1.96) -> 0 | CU3: =IFERROR(LN(CQ3) - 0.5*LN(1 + ((CT3*CT3) / (CQ3*CQ3))),0) -> 0 | CV3: =IFERROR(POWER(LN(1 + ((CT3*CT3) / (CQ3*CQ3))),0.5),0) -> 0
B4: =Model_inputs_new!$H$45 -> 549.084 | C4: 549.084 | D4: Sequalae averted in patients treated | E4: Benefits to the patients treated | F4: Direct medical cost | G4: Male: MSM | H4: Chlamydia treatment | I4: Epididymitis prevented | J4: =Model_inputs_new!G$116 -> 413 | K4: =Model_inputs_new!H$116 -> 256 | L4: =Model_inputs_new!I$116 -> 571 | N4: 413 | O4: 256 | P4: 571 | Q4: =Model_inputs_new!G$56 -> 0.02 | R4: =Model_inputs_new!H$56 -> 0.01 | S4: =Model_inputs_new!I$56 -> 0.04 | T4: =1-Model_inputs_new!G107 -> 0.989 | U4: =1-Model_inputs_new!I107 -> 0.977 | V4: =1-Model_inputs_new!H107 -> 0.995 | W4: =Model_inputs_new!G64 -> 0.8 | X4: =Model_inputs_new!H64 -> 0.68 | Y4: =Model_inputs_new!I64 -> 0.86 | AA4: 0 | AB4: 0 | AC4: 0 | AD4: 0 | AE4: 0 | AF4: 0 | AG4: Total | AI4: 0 | AJ4: 0 | AK4: 0 | AL4: 0 | AM4: 0 | AN4: 0 | AQ4: 0 | AR4: 0 | AS4: 0 | AT4: 0 | AX4: 413 | AY4: 256 | AZ4: 571 | BA4: 80.35714286 | BB4: 6.004868475 | BC4: 0.1927647141 | BE4: 0 | BK4: 0 | BO4: 0 | BP4: 0 | BQ4: 0 | BS4: 413 | BT4: 358.7999308 | BU4: 467.2000692 | BW4: 0 | BX4: 0 | BY4: 0 | CA4: 1 | CB4: 1 | CC4: 0 | CD4: 0 | CE4: 1 | CF4: 1 | CG4: 1 | CI4: 0 | CJ4: 0 | CK4: 0 | CL4: 0 | CM4: 0 | CN4: 0 | CQ4: =Model_inputs_new!C8 -> 0 | CR4: =Model_inputs_new!D8 -> 0 | CS4: =Model_inputs_new!E8 -> 0 | CT4: 0 | CU4: 0 | CV4: 0
B5: =Model_inputs_new!$H$45 -> 549.084 | C5: 549.084 | D5: Sequalae averted in patients treated | E5: Benefits to the patients treated | F5: Direct medical cost | G5: Female | H5: Gonorrhea treatment | I5: PID prevented | J5: =Model_inputs_new!G$115 -> 2703 | K5: =Model_inputs_new!H$115 -> 2107 | L5: =Model_inputs_new!I$115 -> 4051 | N5: 2703 | O5: 2107 | P5: 4051 | Q5: =Model_inputs_new!G$55 -> 0.06 | R5: =Model_inputs_new!H$55 -> 0.01 | S5: =Model_inputs_new!I$55 -> 0.12 | T5: =1-Model_inputs_new!G59 -> 0.646 | U5: =1-Model_inputs_new!I59 -> 0.6 | V5: =1-Model_inputs_new!H59 -> 0.74 | W5: =Model_inputs_new!G62 -> 0.8 | X5: =Model_inputs_new!H62 -> 0.68 | Y5: =Model_inputs_new!I62 -> 0.86 | AA5: 0 | AB5: 0 | AC5: 0 | AD5: 0 | AE5: 0 | AF5: 0 | AG5: Total | AI5: 0 | AJ5: 0 | AK5: 0 | AL5: 0 | AM5: 0 | AN5: 0 | AQ5: 0 | AR5: 0 | AS5: 0 | AT5: 0 | AX5: 2703 | AY5: 2107 | AZ5: 4051 | BA5: 495.9183673 | BB5: 7.885564064 | BC5: 0.1819531958 | BE5: 0 | BK5: 0 | BO5: 0 | BP5: 0 | BQ5: 0 | BS5: 2703 | BT5: 2368.508144 | BU5: 3037.491856 | BW5: 0 | BX5: 0 | BY5: 0 | CA5: 1 | CB5: 1 | CC5: 0 | CD5: 0 | CE5: 1 | CF5: 1 | CG5: 1 | CI5: 0 | CJ5: 0 | CK5: 0 | CL5: 0 | CM5: 0 | CN5: 0 | CQ5: =Model_inputs_new!C10 -> 0 | CR5: =Model_inputs_new!D10 -> 0 | CS5: =Model_inputs_new!E10 -> 0 | CT5: 0 | CU5: 0 | CV5: 0
B6: =Model_inputs_new!$H$45 -> 549.084 | C6: 549.084 | D6: Sequalae averted in patients treated | E6: Benefits to the patients treated | F6: Direct medical cost | G6: Male: Non-MSM | H6: Gonorrhea treatment | I6: Epididymitis prevented | J6: =Model_inputs_new!G$116 -> 413 | K6: =Model_inputs_new!H$116 -> 256 | L6: =Model_inputs_new!I$116 -> 571 | N6: 413 | O6: 256 | P6: 571 | Q6: =Model_inputs_new!G$56 -> 0.02 | R6: =Model_inputs_new!H$56 -> 0.01 | S6: =Model_inputs_new!I$56 -> 0.04 | T6: =1-Model_inputs_new!G60 -> 0.764 | U6: =1-Model_inputs_new!I60 -> 0.65 | V6: =1-Model_inputs_new!H60 -> 0.85 | W6: =Model_inputs_new!G63 -> 0.8 | X6: =Model_inputs_new!H63 -> 0.68 | Y6: =Model_inputs_new!I63 -> 0.86 | AA6: 0 | AB6: 0 | AC6: 0 | AD6: 0 | AE6: 0 | AF6: 0 | AG6: Total | AI6: 0 | AJ6: 0 | AK6: 0 | AL6: 0 | AM6: 0 | AN6: 0 | AQ6: 0 | AR6: 0 | AS6: 0 | AT6: 0 | AX6: 413 | AY6: 256 | AZ6: 571 | BA6: 80.35714286 | BB6: 6.004868475 | BC6: 0.1927647141 | BE6: 0 | BK6: 0 | BO6: 0 | BP6: 0 | BQ6: 0 | BS6: 413 | BT6: 358.7999308 | BU6: 467.2000692 | BW6: 0 | BX6: 0 | BY6: 0 | CA6: 1 | CB6: 1 | CC6: 0 | CD6: 0 | CE6: 1 | CF6: 1 | CG6: 1 | CI6: 0 | CJ6: 0 | CK6: 0 | CL6: 0 | CM6: 0 | CN6: 0 | CQ6: =Model_inputs_new!C12 -> 0 | CR6: =Model_inputs_new!D12 -> 0 | CS6: =Model_inputs_new!E12 -> 0 | CT6: 0 | CU6: 0 | CV6: 0
B7: =Model_inputs_new!$H$45 -> 549.084 | C7: 549.084 | D7: Sequalae averted in patients treated | E7: Benefits to the patients treated | F7: Direct medical cost | G7: Male: MSM | H7: Gonorrhea treatment | I7: Epididymitis prevented | J7: =Model_inputs_new!G$116 -> 413 | K7: =Model_inputs_new!H$116 -> 256 | L7: =Model_inputs_new!I$116 -> 571 | N7: 413 | O7: 256 | P7: 571 | Q7: =Model_inputs_new!G$56 -> 0.02 | R7: =Model_inputs_new!H$56 -> 0.01 | S7: =Model_inputs_new!I$56 -> 0.04 | T7: =1-Model_inputs_new!G61 -> 0.764 | U7: =1-Model_inputs_new!I61 -> 0.65 | V7: =1-Model_inputs_new!H61 -> 0.85 | W7: =Model_inputs_new!G64 -> 0.8 | X7: =Model_inputs_new!H64 -> 0.68 | Y7: =Model_inputs_new!I64 -> 0.86 | AA7: 0 | AB7: 0 | AC7: 0 | AD7: 0 | AE7: 0 | AF7: 0 | AG7: Total | AI7: 0 | AJ7: 0 | AK7: 0 | AL7: 0 | AM7: 0 | AN7: 0 | AQ7: 0 | AR7: 0 | AS7: 0 | AT7: 0 | AX7: 413 | AY7: 256 | AZ7: 571 | BA7: 80.35714286 | BB7: 6.004868475 | BC7: 0.1927647141 | BE7: 0 | BK7: 0 | BO7: 0 | BP7: 0 | BQ7: 0 | BS7: 413 | BT7: 358.7999308 | BU7: 467.2000692 | BW7: 0 | BX7: 0 | BY7: 0 | CA7: 1 | CB7: 1 | CC7: 0 | CD7: 0 | CE7: 1 | CF7: 1 | CG7: 1 | CI7: 0 | CJ7: 0 | CK7: 0 | CL7: 0 | CM7: 0 | CN7: 0 | CQ7: =Model_inputs_new!C14 -> 0 | CR7: =Model_inputs_new!D14 -> 0 | CS7: =Model_inputs_new!E14 -> 0 | CT7: 0 | CU7: 0 | CV7: 0
B8: =Model_inputs_new!$H$45 -> 549.084 | C8: 549.084 | D8: Sequalae averted in patients treated | E8: Benefits to the patients treated | F8: Direct medical cost | G8: Male: Non-MSM | H8: Syphilis treatment | I8: Syphilis sequelae prevented | J8: =Model_inputs_new!G$117 -> 26826 | K8: =Model_inputs_new!H$117 -> 6170 | L8: =Model_inputs_new!I$117 -> 85843 | N8: 26826 | O8: 6170 | P8: 85843 | Q8: =Model_inputs_new!G$58 -> 0.001 | R8: =Model_inputs_new!H$58 -> 0.0004 | S8: =Model_inputs_new!I$58 -> 0.0016 | T8: 1 | U8: 1 | V8: 1 | W8: 1 | X8: 1 | Y8: 1 | AA8: 0 | AB8: 0 | AC8: 0 | AD8: 0 | AE8: 0 | AF8: 0 | AG8: Total | AI8: 0 | AJ8: 0 | AK8: 0 | AL8: 0 | AM8: 0 | AN8: 0 | AQ8: 0 | AR8: 0 | AS8: 0 | AT8: 0 | AX8: 26826 | AY8: 6170 | AZ8: 85843 | BA8: 20324.7449 | BB8: 9.970305655 | BC8: 0.6735297918 | BE8: 0 | BK8: 0 | BO8: 0 | BP8: 0 | BQ8: 0 | BS8: 26826 | BT8: 13117.16789 | BU8: 40534.83211 | BW8: 0 | BX8: 0 | BY8: 0 | CA8: 1 | CB8: 1 | CC8: 0 | CD8: 0 | CE8: 1 | CF8: 1 | CG8: 1 | CI8: 0 | CJ8: 0 | CK8: 0 | CL8: 0 | CM8: 0 | CN8: 0 | CQ8: =Model_inputs_new!C18 -> 0 | CR8: =Model_inputs_new!D18 -> 0 | CS8: =Model_inputs_new!E18 -> 0 | CT8: 0 | CU8: 0 | CV8: 0
B9: =Model_inputs_new!$H$45 -> 549.084 | C9: 549.084 | D9: Sequalae averted in patients treated | E9: Benefits to the patients treated | F9: Direct medical cost | G9: Male: MSM | H9: Syphilis treatment | I9: Syphilis sequelae prevented | J9: =Model_inputs_new!G$117 -> 26826 | K9: =Model_inputs_new!H$117 -> 6170 | L9: =Model_inputs_new!I$117 -> 85843 | N9: 26826 | O9: 6170 | P9: 85843 | Q9: =Model_inputs_new!G$58 -> 0.001 | R9: =Model_inputs_new!H$58 -> 0.0004 | S9: =Model_inputs_new!I$58 -> 0.0016 | T9: 1 | U9: 1 | V9: 1 | W9: 1 | X9: 1 | Y9: 1 | AA9: 0 | AB9: 0 | AC9: 0 | AD9: 0 | AE9: 0 | AF9: 0 | AG9: Total | AI9: 0 | AJ9: 0 | AK9: 0 | AL9: 0 | AM9: 0 | AN9: 0 | AQ9: 0 | AR9: 0 | AS9: 0 | AT9: 0 | AX9: 26826 | AY9: 6170 | AZ9: 85843 | BA9: 20324.7449 | BB9: 9.970305655 | BC9: 0.6735297918 | BE9: 0 | BK9: 0 | BO9: 0 | BP9: 0 | BQ9: 0 | BS9: 26826 | BT9: 13117.16789 | BU9: 40534.83211 | BW9: 0 | BX9: 0 | BY9: 0 | CA9: 1 | CB9: 1 | CC9: 0 | CD9: 0 | CE9: 1 | CF9: 1 | CG9: 1 | CI9: 0 | CJ9: 0 | CK9: 0 | CL9: 0 | CM9: 0 | CN9: 0 | CQ9: =Model_inputs_new!C20 -> 0 | CR9: =Model_inputs_new!D20 -> 0 | CS9: =Model_inputs_new!E20 -> 0 | CT9: 0 | CU9: 0 | CV9: 0
B10: =Model_inputs_new!$H$45 -> 549.084 | C10: 549.084 | D10: Sequalae averted in patients treated | E10: Benefits to the patients treated | F10: Direct medical cost | G10: Female | H10: Syphilis treatment | I10: Syphilis sequelae prevented | J10: =Model_inputs_new!G$117 -> 26826 | K10: =Model_inputs_new!H$117 -> 6170 | L10: =Model_inputs_new!I$117 -> 85843 | N10: 26826 | O10: 6170 | P10: 85843 | Q10: =Model_inputs_new!G$58 -> 0.001 | R10: =Model_inputs_new!H$58 -> 0.0004 | S10: =Model_inputs_new!I$58 -> 0.0016 | T10: 1 | U10: 1 | V10: 1 | W10: 1 | X10: 1 | Y10: 1 | AA10: 0 | AB10: 0 | AC10: 0 | AD10: 0 | AE10: 0 | AF10: 0 | AG10: Total | AI10: 0 | AJ10: 0 | AK10: 0 | AL10: 0 | AM10: 0 | AN10: 0 | AQ10: 0 | AR10: 0 | AS10: 0 | AT10: 0 | AX10: 26826 | AY10: 6170 | AZ10: 85843 | BA10: 20324.7449 | BB10: 9.970305655 | BC10: 0.6735297918 | BE10: 0 | BK10: 0 | BO10: 0 | BP10: 0 | BQ10: 0 | BS10: 26826 | BT10: 13117.16789 | BU10: 40534.83211 | BW10: 0 | BX10: 0 | BY10: 0 | CA10: 1 | CB10: 1 | CC10: 0 | CD10: 0 | CE10: 1 | CF10: 1 | CG10: 1 | CI10: 0 | CJ10: 0 | CK10: 0 | CL10: 0 | CM10: 0 | CN10: 0 | CQ10: =Model_inputs_new!C16 -> 0 | CR10: =Model_inputs_new!D16 -> 0 | CS10: =Model_inputs_new!E16 -> 0 | CT10: 0 | CU10: 0 | CV10: 0
B11: =Model_inputs_new!$H$45 -> 549.084 | C11: 549.084 | D11: Congenital syphilis averted | E11: Benefits to the patients treated | F11: Direct medical cost | G11: Female | H11: Syphilis treatment | I11: Congenital syphilis prevented | J11: =Model_inputs_new!G118 -> 14573 | K11: =Model_inputs_new!H118 -> 8335 | L11: =Model_inputs_new!I118 -> 24514 | N11: 14573 | O11: 8335 | P11: 24514 | Q11: =Model_inputs_new!G$65 -> 0.5 | R11: =Model_inputs_new!H$65 -> 0.25 | S11: =Model_inputs_new!I$65 -> 0.75 | T11: 1 | U11: 1 | V11: 1 | W11: 1 | X11: 1 | Y11: 1 | AA11: 0 | AB11: 0 | AC11: 0 | AD11: 0 | AE11: 0 | AF11: 0 | AG11: Total | AI11: 0 | AJ11: 0 | AK11: 0 | AL11: 0 | AM11: 0 | AN11: 0 | AQ11: 0 | AR11: 0 | AS11: 0 | AT11: 0 | AX11: 14573 | AY11: 8335 | AZ11: 24514 | BA11: 4127.295918 | BB11: 9.548347639 | BC11: 0.2777701968 | BE11: 0 | BK11: 0 | BO11: 0 | BP11: 0 | BQ11: 0 | BS11: 14573 | BT11: 11789.18121 | BU11: 17356.81879 | BW11: 0 | BX11: 0 | BY11: 0 | CA11: 1 | CB11: 1 | CC11: 0 | CD11: 0 | CE11: 1 | CF11: 1 | CG11: 1 | CI11: 0 | CJ11: 0 | CK11: 0 | CL11: 0 | CM11: 0 | CN11: 0 | CQ11: =Model_inputs_new!C25 -> 0 | CR11: =Model_inputs_new!D25 -> 0 | CS11: =Model_inputs_new!E25 -> 0 | CT11: 0 | CU11: 0 | CV11: 0
B12: =Model_inputs_new!$H$45 -> 549.084 | C12: 549.084 | D12: STI infections | E12: Benefits to the population | F12: Direct medical cost | G12: Male: Non-MSM | H12: Chlamydia treatment | I12: Secondary STD prevented | J12: =Model_inputs_new!G$126 -> 189 | K12: =Model_inputs_new!H$126 -> 96 | L12: =Model_inputs_new!I$126 -> 337 | N12: =J12*(B12/C12) -> 189 | O12: =K12*(B12/C12) -> 96 | P12: =L12*(B12/C12) -> 337 | Q12: =Model_inputs_new!G66 -> 0.5 | R12: =Model_inputs_new!H66 -> 0.05 | S12: =Model_inputs_new!I66 -> 0.95 | T12: 1 | U12: 1 | V12: 1 | W12: 1 | X12: 1 | Y12: 1 | AA12: 0 | AB12: 0 | AC12: 0 | AD12: 0 | AE12: 0 | AF12: 0 | AG12: Total | AI12: 0 | AJ12: 0 | AK12: 0 | AL12: 0 | AM12: 0 | AN12: 0 | AQ12: 0 | AR12: 0 | AS12: 0 | AT12: 0 | AX12: 189 | AY12: 96 | AZ12: 337 | BA12: 61.47959184 | BB12: 5.191456685 | BC12: 0.3171445414 | BE12: 0 | BK12: 0 | BO12: 0 | BP12: 0 | BQ12: 0 | BS12: 189 | BT12: 147.5326455 | BU12: 230.4673545 | BW12: 0 | BX12: 0 | BY12: 0 | CA12: 1 | CB12: 1 | CC12: 0 | CD12: 0 | CE12: 1 | CF12: 1 | CG12: 1 | CI12: 0 | CJ12: 0 | CK12: 0 | CL12: 0 | CM12: 0 | CN12: 0 | CQ12: =Model_inputs_new!C7 -> 0 | CR12: =Model_inputs_new!D7 -> 0 | CS12: =Model_inputs_new!E7 -> 0 | CT12: 0 | CU12: 0 | CV12: 0
B13: =Model_inputs_new!$H$45 -> 549.084 | C13: 549.084 | D13: STI infections | E13: Benefits to the population | F13: Direct medical cost | G13: Male: MSM | H13: Chlamydia treatment | I13: Secondary STD prevented | J13: =Model_inputs_new!G$119 -> 51 | K13: =Model_inputs_new!H$119 -> 35 | L13: =Model_inputs_new!I$119 -> 68 | N13: 51 | O13: 35 | P13: 68 | Q13: =Model_inputs_new!G67 -> 0.5 | R13: =Model_inputs_new!H67 -> 0.05 | S13: =Model_inputs_new!I67 -> 0.95 | T13: 1 | U13: 1 | V13: 1 | W13: 1 | X13: 1 | Y13: 1 | AA13: 0 | AB13: 0 | AC13: 0 | AD13: 0 | AE13: 0 | AF13: 0 | AG13: Total | AI13: 0 | AJ13: 0 | AK13: 0 | AL13: 0 | AM13: 0 | AN13: 0 | AQ13: 0 | AR13: 0 | AS13: 0 | AT13: 0 | AX13: 51 | AY13: 35 | AZ13: 68 | BA13: 8.418367347 | BB13: 3.918384529 | BC13: 0.1639579425 | BE13: 0 | BK13: 0 | BO13: 0 | BP13: 0 | BQ13: 0 | BS13: 51 | BT13: 45.32189751 | BU13: 56.67810249 | BW13: 0 | BX13: 0 | BY13: 0 | CA13: 1 | CB13: 1 | CC13: 0 | CD13: 0 | CE13: 1 | CF13: 1 | CG13: 1 | CI13: 0 | CJ13: 0 | CK13: 0 | CL13: 0 | CM13: 0 | CN13: 0 | CQ13: =Model_inputs_new!C9 -> 0 | CR13: =Model_inputs_new!D9 -> 0 | CS13: =Model_inputs_new!E9 -> 0 | CT13: 0 | CU13: 0 | CV13: 0
B14: =Model_inputs_new!$H$45 -> 549.084 | C14: 549.084 | D14: STI infections | E14: Benefits to the population | F14: Direct medical cost | G14: Female | H14: Chlamydia treatment | I14: Secondary STD prevented | J14: =Model_inputs_new!G$126 -> 189 | K14: =Model_inputs_new!H$126 -> 96 | L14: =Model_inputs_new!I$126 -> 337 | N14: 189 | O14: 96 | P14: 337 | Q14: =Model_inputs_new!G68 -> 0.5 | R14: =Model_inputs_new!H68 -> 0.05 | S14: =Model_inputs_new!I68 -> 0.95 | T14: 1 | U14: 1 | V14: 1 | W14: 1 | X14: 1 | Y14: 1 | AA14: 0 | AB14: 0 | AC14: 0 | AD14: 0 | AE14: 0 | AF14: 0 | AG14: Total | AI14: 0 | AJ14: 0 | AK14: 0 | AL14: 0 | AM14: 0 | AN14: 0 | AQ14: 0 | AR14: 0 | AS14: 0 | AT14: 0 | AX14: 189 | AY14: 96 | AZ14: 337 | BA14: 61.47959184 | BB14: 5.191456685 | BC14: 0.3171445414 | BE14: 0 | BK14: 0 | BO14: 0 | BP14: 0 | BQ14: 0 | BS14: 189 | BT14: 147.5326455 | BU14: 230.4673545 | BW14: 0 | BX14: 0 | BY14: 0 | CA14: 1 | CB14: 1 | CC14: 0 | CD14: 0 | CE14: 1 | CF14: 1 | CG14: 1 | CI14: 0 | CJ14: 0 | CK14: 0 | CL14: 0 | CM14: 0 | CN14: 0 | CQ14: =Model_inputs_new!C5 -> 0 | CR14: =Model_inputs_new!D5 -> 0 | CS14: =Model_inputs_new!E5 -> 0 | CT14: 0 | CU14: 0 | CV14: 0
B15: =Model_inputs_new!$H$45 -> 549.084 | C15: 549.084 | D15: STI infections | E15: Benefits to the population | F15: Direct medical cost | G15: Male: Non-MSM | H15: Gonorrhea treatment | I15: Secondary STD prevented | J15: =Model_inputs_new!G$127 -> 199 | K15: =Model_inputs_new!H$127 -> 78 | L15: =Model_inputs_new!I$127 -> 399 | N15: 199 | O15: 78 | P15: 399 | Q15: =Model_inputs_new!G69 -> 0.5 | R15: =Model_inputs_new!H69 -> 0.05 | S15: =Model_inputs_new!I69 -> 0.95 | T15: 1 | U15: 1 | V15: 1 | W15: 1 | X15: 1 | Y15: 1 | AA15: 0 | AB15: 0 | AC15: 0 | AD15: 0 | AE15: 0 | AF15: 0 | AG15: Total | AI15: 0 | AJ15: 0 | AK15: 0 | AL15: 0 | AM15: 0 | AN15: 0 | AQ15: 0 | AR15: 0 | AS15: 0 | AT15: 0 | AX15: 199 | AY15: 78 | AZ15: 399 | BA15: 81.8877551 | BB15: 5.215089712 | BC15: 0.3955126102 | BE15: 0 | BK15: 0 | BO15: 0 | BP15: 0 | BQ15: 0 | BS15: 199 | BT15: 143.7675485 | BU15: 254.2324515 | BW15: 0 | BX15: 0 | BY15: 0 | CA15: 1 | CB15: 1 | CC15: 0 | CD15: 0 | CE15: 1 | CF15: 1 | CG15: 1 | CI15: 0 | CJ15: 0 | CK15: 0 | CL15: 0 | CM15: 0 | CN15: 0 | CQ15: =Model_inputs_new!C13 -> 0 | CR15: =Model_inputs_new!D13 -> 0 | CS15: =Model_inputs_new!E13 -> 0 | CT15: 0 | CU15: 0 | CV15: 0
B16: =Model_inputs_new!$H$45 -> 549.084 | C16: 549.084 | D16: STI infections | E16: Benefits to the population | F16: Direct medical cost | G16: Male: MSM | H16: Gonorrhea treatment | I16: Secondary STD prevented | J16: =Model_inputs_new!G$121 -> 86 | K16: =Model_inputs_new!H$121 -> 40 | L16: =Model_inputs_new!I$121 -> 160 | N16: 86 | O16: 40 | P16: 160 | Q16: =Model_inputs_new!G70 -> 0.5 | R16: =Model_inputs_new!H70 -> 0.05 | S16: =Model_inputs_new!I70 -> 0.95 | T16: 1 | U16: 1 | V16: 1 | W16: 1 | X16: 1 | Y16: 1 | AA16: 0 | AB16: 0 | AC16: 0 | AD16: 0 | AE16: 0 | AF16: 0 | AG16: Total | AI16: 0 | AJ16: 0 | AK16: 0 | AL16: 0 | AM16: 0 | AN16: 0 | AQ16: 0 | AR16: 0 | AS16: 0 | AT16: 0 | AX16: 86 | AY16: 40 | AZ16: 160 | BA16: 30.6122449 | BB16: 4.394698613 | BC16: 0.345394509 | BE16: 0 | BK16: 0 | BO16: 0 | BP16: 0 | BQ16: 0 | BS16: 86 | BT16: 65.35235459 | BU16: 106.6476454 | BW16: 0 | BX16: 0 | BY16: 0 | CA16: 1 | CB16: 1 | CC16: 0 | CD16: 0 | CE16: 1 | CF16: 1 | CG16: 1 | CI16: 0 | CJ16: 0 | CK16: 0 | CL16: 0 | CM16: 0 | CN16: 0 | CQ16: =Model_inputs_new!C15 -> 0 | CR16: =Model_inputs_new!D15 -> 0 | CS16: =Model_inputs_new!E15 -> 0 | CT16: 0 | CU16: 0 | CV16: 0
B17: =Model_inputs_new!$H$45 -> 549.084 | C17: 549.084 | D17: STI infections | E17: Benefits to the population | F17: Direct medical cost | G17: Female | H17: Gonorrhea treatment | I17: Secondary STD prevented | J17: =Model_inputs_new!G$127 -> 199 | K17: =Model_inputs_new!H$127 -> 78 | L17: =Model_inputs_new!I$127 -> 399 | N17: 199 | O17: 78 | P17: 399 | Q17: =Model_inputs_new!G71 -> 0.5 | R17: =Model_inputs_new!H71 -> 0.05 | S17: =Model_inputs_new!I71 -> 0.95 | T17: 1 | U17: 1 | V17: 1 | W17: 1 | X17: 1 | Y17: 1 | AA17: 0 | AB17: 0 | AC17: 0 | AD17: 0 | AE17: 0 | AF17: 0 | AG17: Total | AI17: 0 | AJ17: 0 | AK17: 0 | AL17: 0 | AM17: 0 | AN17: 0 | AQ17: 0 | AR17: 0 | AS17: 0 | AT17: 0 | AX17: 199 | AY17: 78 | AZ17: 399 | BA17: 81.8877551 | BB17: 5.215089712 | BC17: 0.3955126102 | BE17: 0 | BK17: 0 | BO17: 0 | BP17: 0 | BQ17: 0 | BS17: 199 | BT17: 143.7675485 | BU17: 254.2324515 | BW17: 0 | BX17: 0 | BY17: 0 | CA17: 1 | CB17: 1 | CC17: 0 | CD17: 0 | CE17: 1 | CF17: 1 | CG17: 1 | CI17: 0 | CJ17: 0 | CK17: 0 | CL17: 0 | CM17: 0 | CN17: 0 | CQ17: =Model_inputs_new!C11 -> 0 | CR17: =Model_inputs_new!D11 -> 0 | CS17: =Model_inputs_new!E11 -> 0 | CT17: 0 | CU17: 0 | CV17: 0
B18: =Model_inputs_new!$H$45 -> 549.084 | C18: 549.084 | D18: STI infections | E18: Benefits to the population | F18: Direct medical cost | G18: Male: Non-MSM | H18: Syphilis treatment | I18: Secondary STD prevented | J18: =Model_inputs_new!G$123 -> 1311 | K18: =Model_inputs_new!H$123 -> 803 | L18: =Model_inputs_new!I$123 -> 2076 | N18: 1311 | O18: 803 | P18: 2076 | Q18: =Model_inputs_new!G72 -> 0.5 | R18: =Model_inputs_new!H72 -> 0.05 | S18: =Model_inputs_new!I72 -> 0.95 | T18: 1 | U18: 1 | V18: 1 | W18: 1 | X18: 1 | Y18: 1 | AA18: 0 | AB18: 0 | AC18: 0 | AD18: 0 | AE18: 0 | AF18: 0 | AG18: Total | AI18: 0 | AJ18: 0 | AK18: 0 | AL18: 0 | AM18: 0 | AN18: 0 | AQ18: 0 | AR18: 0 | AS18: 0 | AT18: 0 | AX18: 1311 | AY18: 803 | AZ18: 2076 | BA18: 324.744898 | BB18: 7.148770335 | BC18: 0.244029297 | BE18: 0 | BK18: 0 | BO18: 0 | BP18: 0 | BQ18: 0 | BS18: 1311 | BT18: 1091.962895 | BU18: 1530.037105 | BW18: 0 | BX18: 0 | BY18: 0 | CA18: 1 | CB18: 1 | CC18: 0 | CD18: 0 | CE18: 1 | CF18: 1 | CG18: 1 | CI18: 0 | CJ18: 0 | CK18: 0 | CL18: 0 | CM18: 0 | CN18: 0 | CQ18: =Model_inputs_new!C19 -> 0 | CR18: =Model_inputs_new!D19 -> 0 | CS18: =Model_inputs_new!E19 -> 0 | CT18: 0 | CU18: 0 | CV18: 0
B19: =Model_inputs_new!$H$45 -> 549.084 | C19: 549.084 | D19: STI infections | E19: Benefits to the population | F19: Direct medical cost | G19: Male: MSM | H19: Syphilis treatment | I19: Secondary STD prevented | J19: =Model_inputs_new!G$123 -> 1311 | K19: =Model_inputs_new!H$123 -> 803 | L19: =Model_inputs_new!I$123 -> 2076 | N19: 1311 | O19: 803 | P19: 2076 | Q19: =Model_inputs_new!G73 -> 0.5 | R19: =Model_inputs_new!H73 -> 0.05 | S19: =Model_inputs_new!I73 -> 0.95 | T19: 1 | U19: 1 | V19: 1 | W19: 1 | X19: 1 | Y19: 1 | AA19: 0 | AB19: 0 | AC19: 0 | AD19: 0 | AE19: 0 | AF19: 0 | AG19: Total | AI19: 0 | AJ19: 0 | AK19: 0 | AL19: 0 | AM19: 0 | AN19: 0 | AQ19: 0 | AR19: 0 | AS19: 0 | AT19: 0 | AX19: 1311 | AY19: 803 | AZ19: 2076 | BA19: 324.744898 | BB19: 7.148770335 | BC19: 0.244029297 | BE19: 0 | BK19: 0 | BO19: 0 | BP19: 0 | BQ19: 0 | BS19: 1311 | BT19: 1091.962895 | BU19: 1530.037105 | BW19: 0 | BX19: 0 | BY19: 0 | CA19: 1 | CB19: 1 | CC19: 0 | CD19: 0 | CE19: 1 | CF19: 1 | CG19: 1 | CI19: 0 | CJ19: 0 | CK19: 0 | CL19: 0 | CM19: 0 | CN19: 0 | CQ19: =Model_inputs_new!C21 -> 0 | CR19: =Model_inputs_new!D21 -> 0 | CS19: =Model_inputs_new!E21 -> 0 | CT19: 0 | CU19: 0 | CV19: 0
B20: =Model_inputs_new!$H$45 -> 549.084 | C20: 549.084 | D20: STI infections | E20: Benefits to the population | F20: Direct medical cost | G20: Female | H20: Syphilis treatment | I20: Secondary STD prevented | J20: =Model_inputs_new!G$124 -> 1311 | K20: =Model_inputs_new!H$124 -> 803 | L20: =Model_inputs_new!I$124 -> 2076 | N20: 1311 | O20: 803 | P20: 2076 | Q20: =Model_inputs_new!G74 -> 0.5 | R20: =Model_inputs_new!H74 -> 0.05 | S20: =Model_inputs_new!I74 -> 0.95 | T20: 1 | U20: 1 | V20: 1 | W20: 1 | X20: 1 | Y20: 1 | AA20: 0 | AB20: 0 | AC20: 0 | AD20: 0 | AE20: 0 | AF20: 0 | AG20: Total | AI20: 0 | AJ20: 0 | AK20: 0 | AL20: 0 | AM20: 0 | AN20: 0 | AQ20: 0 | AR20: 0 | AS20: 0 | AT20: 0 | AX20: 1311 | AY20: 803 | AZ20: 2076 | BA20: 324.744898 | BB20: 7.148770335 | BC20: 0.244029297 | BE20: 0 | BK20: 0 | BO20: 0 | BP20: 0 | BQ20: 0 | BS20: 1311 | BT20: 1091.962895 | BU20: 1530.037105 | BW20: 0 | BX20: 0 | BY20: 0 | CA20: 1 | CB20: 1 | CC20: 0 | CD20: 0 | CE20: 1 | CF20: 1 | CG20: 1 | CI20: 0 | CJ20: 0 | CK20: 0 | CL20: 0 | CM20: 0 | CN20: 0 | CQ20: =Model_inputs_new!C17 -> 0 | CR20: =Model_inputs_new!D17 -> 0 | CS20: =Model_inputs_new!E17 -> 0 | CT20: 0 | CU20: 0 | CV20: 0
B21: =Model_inputs_new!$H$45 -> 549.084 | C21: 549.084 | D21: HIV infections | E21: Benefits to the population | F21: Direct medical cost | G21: Male: Non-MSM | H21: Chlamydia treatment | I21: HIV prevented | J21: =Model_inputs_new!G$125 -> 463013 | K21: =Model_inputs_new!H$125 -> 359595 | L21: =Model_inputs_new!I$125 -> 539865 | N21: 463013 | O21: 359595 | P21: 539865 | Q21: =Model_inputs_new!G75 -> 0.00022 | R21: =Model_inputs_new!H75 -> 2.2e-05 | S21: =Model_inputs_new!I75 -> 0.000418 | T21: =Q12+Model_inputs_new!G$52 -> 0.75 | U21: =R12+Model_inputs_new!H$52 -> 0.075 | V21: =S12+Model_inputs_new!I$52 -> 1.425 | W21: 1 | X21: 1 | Y21: 1 | AA21: 0 | AB21: 0 | AC21: 0 | AD21: 0 | AE21: 0 | AF21: 0 | AG21: Total | AI21: 0 | AJ21: 0 | AK21: 0 | AL21: 0 | AM21: 0 | AN21: 0 | AQ21: 0 | AR21: 0 | AS21: 0 | AT21: 0 | AX21: 463013 | AY21: 359595 | AZ21: 539865 | BA21: 45987.2449 | BB21: 13.04060218 | BC21: 0.09907806724 | BE21: 0 | BK21: 0 | BO21: 0 | BP21: 0 | BQ21: 0 | BS21: 463013 | BT21: 431995.0747 | BU21: 494030.9253 | BW21: 0 | BX21: 0 | BY21: 0 | CA21: 1 | CB21: 1 | CC21: 0 | CD21: 0 | CE21: 1 | CF21: 1 | CG21: 1 | CI21: 0 | CJ21: 0 | CK21: 0 | CL21: 0 | CM21: 0 | CN21: 0 | CQ21: =Model_inputs_new!C7 -> 0 | CR21: =Model_inputs_new!D7 -> 0 | CS21: =Model_inputs_new!E7 -> 0 | CT21: 0 | CU21: 0 | CV21: 0
B22: =Model_inputs_new!$H$45 -> 549.084 | C22: 549.084 | D22: HIV infections | E22: Benefits to the population | F22: Direct medical cost | G22: Male: MSM | H22: Chlamydia treatment | I22: HIV prevented | J22: =Model_inputs_new!G$125 -> 463013 | K22: =Model_inputs_new!H$125 -> 359595 | L22: =Model_inputs_new!I$125 -> 539865 | N22: 463013 | O22: 359595 | P22: 539865 | Q22: =Model_inputs_new!G76 -> 0.00439 | R22: =Model_inputs_new!H76 -> 0.002641 | S22: =Model_inputs_new!I76 -> 0.006574 | T22: =Q13+Model_inputs_new!G$52 -> 0.75 | U22: =R13+Model_inputs_new!H$52 -> 0.075 | V22: =S13+Model_inputs_new!I$52 -> 1.425 | W22: 1 | X22: 1 | Y22: 1 | AA22: 0 | AB22: 0 | AC22: 0 | AD22: 0 | AE22: 0 | AF22: 0 | AG22: Total | AI22: 0 | AJ22: 0 | AK22: 0 | AL22: 0 | AM22: 0 | AN22: 0 | AQ22: 0 | AR22: 0 | AS22: 0 | AT22: 0 | AX22: 463013 | AY22: 359595 | AZ22: 539865 | BA22: 45987.2449 | BB22: 13.04060218 | BC22: 0.09907806724 | BE22: 0 | BK22: 0 | BO22: 0 | BP22: 0 | BQ22: 0 | BS22: 463013 | BT22: 431995.0747 | BU22: 494030.9253 | BW22: 0 | BX22: 0 | BY22: 0 | CA22: 1 | CB22: 1 | CC22: 0 | CD22: 0 | CE22: 1 | CF22: 1 | CG22: 1 | CI22: 0 | CJ22: 0 | CK22: 0 | CL22: 0 | CM22: 0 | CN22: 0 | CQ22: =Model_inputs_new!C9 -> 0 | CR22: =Model_inputs_new!D9 -> 0 | CS22: =Model_inputs_new!E9 -> 0 | CT22: 0 | CU22: 0 | CV22: 0
B23: =Model_inputs_new!$H$45 -> 549.084 | C23: 549.084 | D23: HIV infections | E23: Benefits to the population | F23: Direct medical cost | G23: Female | H23: Chlamydia treatment | I23: HIV prevented | J23: =Model_inputs_new!G$125 -> 463013 | K23: =Model_inputs_new!H$125 -> 359595 | L23: =Model_inputs_new!I$125 -> 539865 | N23: 463013 | O23: 359595 | P23: 539865 | Q23: =Model_inputs_new!G77 -> 0.00022 | R23: =Model_inputs_new!H77 -> 2.2e-05 | S23: =Model_inputs_new!I77 -> 0.000418 | T23: =Q14+Model_inputs_new!G$52 -> 0.75 | U23: =R14+Model_inputs_new!H$52 -> 0.075 | V23: =S14+Model_inputs_new!I$52 -> 1.425 | W23: 1 | X23: 1 | Y23: 1 | AA23: 0 | AB23: 0 | AC23: 0 | AD23: 0 | AE23: 0 | AF23: 0 | AG23: Total | AI23: 0 | AJ23: 0 | AK23: 0 | AL23: 0 | AM23: 0 | AN23: 0 | AQ23: 0 | AR23: 0 | AS23: 0 | AT23: 0 | AX23: 463013 | AY23: 359595 | AZ23: 539865 | BA23: 45987.2449 | BB23: 13.04060218 | BC23: 0.09907806724 | BE23: 0 | BK23: 0 | BO23: 0 | BP23: 0 | BQ23: 0 | BS23: 463013 | BT23: 431995.0747 | BU23: 494030.9253 | BW23: 0 | BX23: 0 | BY23: 0 | CA23: 1 | CB23: 1 | CC23: 0 | CD23: 0 | CE23: 1 | CF23: 1 | CG23: 1 | CI23: 0 | CJ23: 0 | CK23: 0 | CL23: 0 | CM23: 0 | CN23: 0 | CQ23: =Model_inputs_new!C5 -> 0 | CR23: =Model_inputs_new!D5 -> 0 | CS23: =Model_inputs_new!E5 -> 0 | CT23: 0 | CU23: 0 | CV23: 0
B24: =Model_inputs_new!$H$45 -> 549.084 | C24: 549.084 | D24: HIV infections | E24: Benefits to the population | F24: Direct medical cost | G24: Male: Non-MSM | H24: Gonorrhea treatment | I24: HIV prevented | J24: =Model_inputs_new!G$125 -> 463013 | K24: =Model_inputs_new!H$125 -> 359595 | L24: =Model_inputs_new!I$125 -> 539865 | N24: 463013 | O24: 359595 | P24: 539865 | Q24: =Model_inputs_new!G78 -> 0.00022 | R24: =Model_inputs_new!H78 -> 2.2e-05 | S24: =Model_inputs_new!I78 -> 0.000418 | T24: =Q15+Model_inputs_new!G$52 -> 0.75 | U24: =R15+Model_inputs_new!H$52 -> 0.075 | V24: =S15+Model_inputs_new!I$52 -> 1.425 | W24: 1 | X24: 1 | Y24: 1 | AA24: 0 | AB24: 0 | AC24: 0 | AD24: 0 | AE24: 0 | AF24: 0 | AG24: Total | AI24: 0 | AJ24: 0 | AK24: 0 | AL24: 0 | AM24: 0 | AN24: 0 | AQ24: 0 | AR24: 0 | AS24: 0 | AT24: 0 | AX24: 463013 | AY24: 359595 | AZ24: 539865 | BA24: 45987.2449 | BB24: 13.04060218 | BC24: 0.09907806724 | BE24: 0 | BK24: 0 | BO24: 0 | BP24: 0 | BQ24: 0 | BS24: 463013 | BT24: 431995.0747 | BU24: 494030.9253 | BW24: 0 | BX24: 0 | BY24: 0 | CA24: 1 | CB24: 1 | CC24: 0 | CD24: 0 | CE24: 1 | CF24: 1 | CG24: 1 | CI24: 0 | CJ24: 0 | CK24: 0 | CL24: 0 | CM24: 0 | CN24: 0 | CQ24: =Model_inputs_new!C13 -> 0 | CR24: =Model_inputs_new!D13 -> 0 | CS24: =Model_inputs_new!E13 -> 0 | CT24: 0 | CU24: 0 | CV24: 0
B25: =Model_inputs_new!$H$45 -> 549.084 | C25: 549.084 | D25: HIV infections | E25: Benefits to the population | F25: Direct medical cost | G25: Male: MSM | H25: Gonorrhea treatment | I25: HIV prevented | J25: =Model_inputs_new!G$125 -> 463013 | K25: =Model_inputs_new!H$125 -> 359595 | L25: =Model_inputs_new!I$125 -> 539865 | N25: 463013 | O25: 359595 | P25: 539865 | Q25: =Model_inputs_new!G79 -> 0.00439 | R25: =Model_inputs_new!H79 -> 0.002641 | S25: =Model_inputs_new!I79 -> 0.006574 | T25: =Q16+Model_inputs_new!G$52 -> 0.75 | U25: =R16+Model_inputs_new!H$52 -> 0.075 | V25: =S16+Model_inputs_new!I$52 -> 1.425 | W25: 1 | X25: 1 | Y25: 1 | AA25: 0 | AB25: 0 | AC25: 0 | AD25: 0 | AE25: 0 | AF25: 0 | AG25: Total | AI25: 0 | AJ25: 0 | AK25: 0 | AL25: 0 | AM25: 0 | AN25: 0 | AQ25: 0 | AR25: 0 | AS25: 0 | AT25: 0 | AX25: 463013 | AY25: 359595 | AZ25: 539865 | BA25: 45987.2449 | BB25: 13.04060218 | BC25: 0.09907806724 | BE25: 0 | BK25: 0 | BO25: 0 | BP25: 0 | BQ25: 0 | BS25: 463013 | BT25: 431995.0747 | BU25: 494030.9253 | BW25: 0 | BX25: 0 | BY25: 0 | CA25: 1 | CB25: 1 | CC25: 0 | CD25: 0 | CE25: 1 | CF25: 1 | CG25: 1 | CI25: 0 | CJ25: 0 | CK25: 0 | CL25: 0 | CM25: 0 | CN25: 0 | CQ25: =Model_inputs_new!C15 -> 0 | CR25: =Model_inputs_new!D15 -> 0 | CS25: =Model_inputs_new!E15 -> 0 | CT25: 0 | CU25: 0 | CV25: 0
B26: =Model_inputs_new!$H$45 -> 549.084 | C26: 549.084 | D26: HIV infections | E26: Benefits to the population | F26: Direct medical cost | G26: Female | H26: Gonorrhea treatment | I26: HIV prevented | J26: =Model_inputs_new!G$125 -> 463013 | K26: =Model_inputs_new!H$125 -> 359595 | L26: =Model_inputs_new!I$125 -> 539865 | N26: 463013 | O26: 359595 | P26: 539865 | Q26: =Model_inputs_new!G80 -> 0.00022 | R26: =Model_inputs_new!H80 -> 2.2e-05 | S26: =Model_inputs_new!I80 -> 0.000418 | T26: =Q17+Model_inputs_new!G$52 -> 0.75 | U26: =R17+Model_inputs_new!H$52 -> 0.075 | V26: =S17+Model_inputs_new!I$52 -> 1.425 | W26: 1 | X26: 1 | Y26: 1 | AA26: 0 | AB26: 0 | AC26: 0 | AD26: 0 | AE26: 0 | AF26: 0 | AG26: Total | AI26: 0 | AJ26: 0 | AK26: 0 | AL26: 0 | AM26: 0 | AN26: 0 | AQ26: 0 | AR26: 0 | AS26: 0 | AT26: 0 | AX26: 463013 | AY26: 359595 | AZ26: 539865 | BA26: 45987.2449 | BB26: 13.04060218 | BC26: 0.09907806724 | BE26: 0 | BK26: 0 | BO26: 0 | BP26: 0 | BQ26: 0 | BS26: 463013 | BT26: 431995.0747 | BU26: 494030.9253 | BW26: 0 | BX26: 0 | BY26: 0 | CA26: 1 | CB26: 1 | CC26: 0 | CD26: 0 | CE26: 1 | CF26: 1 | CG26: 1 | CI26: 0 | CJ26: 0 | CK26: 0 | CL26: 0 | CM26: 0 | CN26: 0 | CQ26: =Model_inputs_new!C11 -> 0 | CR26: =Model_inputs_new!D11 -> 0 | CS26: =Model_inputs_new!E11 -> 0 | CT26: 0 | CU26: 0 | CV26: 0
B27: =Model_inputs_new!$H$45 -> 549.084 | C27: 549.084 | D27: HIV infections | E27: Benefits to the population | F27: Direct medical cost | G27: Male: Non-MSM | H27: Syphilis treatment | I27: HIV prevented | J27: =Model_inputs_new!G$125 -> 463013 | K27: =Model_inputs_new!H$125 -> 359595 | L27: =Model_inputs_new!I$125 -> 539865 | N27: 463013 | O27: 359595 | P27: 539865 | Q27: =Model_inputs_new!G81 -> 0.00462 | R27: =Model_inputs_new!H81 -> 0.000462 | S27: =Model_inputs_new!I81 -> 0.008778 | T27: =Q18+Model_inputs_new!G$52 -> 0.75 | U27: =R18+Model_inputs_new!H$52 -> 0.075 | V27: =S18+Model_inputs_new!I$52 -> 1.425 | W27: 1 | X27: 1 | Y27: 1 | AA27: 0 | AB27: 0 | AC27: 0 | AD27: 0 | AE27: 0 | AF27: 0 | AG27: Total | AI27: 0 | AJ27: 0 | AK27: 0 | AL27: 0 | AM27: 0 | AN27: 0 | AQ27: 0 | AR27: 0 | AS27: 0 | AT27: 0 | AX27: 463013 | AY27: 359595 | AZ27: 539865 | BA27: 45987.2449 | BB27: 13.04060218 | BC27: 0.09907806724 | BE27: 0 | BK27: 0 | BO27: 0 | BP27: 0 | BQ27: 0 | BS27: 463013 | BT27: 431995.0747 | BU27: 494030.9253 | BW27: 0 | BX27: 0 | BY27: 0 | CA27: 1 | CB27: 1 | CC27: 0 | CD27: 0 | CE27: 1 | CF27: 1 | CG27: 1 | CI27: 0 | CJ27: 0 | CK27: 0 | CL27: 0 | CM27: 0 | CN27: 0 | CQ27: =Model_inputs_new!C19 -> 0 | CR27: =Model_inputs_new!D19 -> 0 | CS27: =Model_inputs_new!E19 -> 0 | CT27: 0 | CU27: 0 | CV27: 0
B28: =Model_inputs_new!$H$45 -> 549.084 | C28: 549.084 | D28: HIV infections | E28: Benefits to the population | F28: Direct medical cost | G28: Male: MSM | H28: Syphilis treatment | I28: HIV prevented | J28: =Model_inputs_new!G$125 -> 463013 | K28: =Model_inputs_new!H$125 -> 359595 | L28: =Model_inputs_new!I$125 -> 539865 | N28: 463013 | O28: 359595 | P28: 539865 | Q28: =Model_inputs_new!G82 -> 0.00462 | R28: =Model_inputs_new!H82 -> 0.000462 | S28: =Model_inputs_new!I82 -> 0.008778 | T28: =Q19+Model_inputs_new!G$52 -> 0.75 | U28: =R19+Model_inputs_new!H$52 -> 0.075 | V28: =S19+Model_inputs_new!I$52 -> 1.425 | W28: 1 | X28: 1 | Y28: 1 | AA28: 0 | AB28: 0 | AC28: 0 | AD28: 0 | AE28: 0 | AF28: 0 | AG28: Total | AI28: 0 | AJ28: 0 | AK28: 0 | AL28: 0 | AM28: 0 | AN28: 0 | AQ28: 0 | AR28: 0 | AS28: 0 | AT28: 0 | AX28: 463013 | AY28: 359595 | AZ28: 539865 | BA28: 45987.2449 | BB28: 13.04060218 | BC28: 0.09907806724 | BE28: 0 | BK28: 0 | BO28: 0 | BP28: 0 | BQ28: 0 | BS28: 463013 | BT28: 431995.0747 | BU28: 494030.9253 | BW28: 0 | BX28: 0 | BY28: 0 | CA28: 1 | CB28: 1 | CC28: 0 | CD28: 0 | CE28: 1 | CF28: 1 | CG28: 1 | CI28: 0 | CJ28: 0 | CK28: 0 | CL28: 0 | CM28: 0 | CN28: 0 | CQ28: =Model_inputs_new!C21 -> 0 | CR28: =Model_inputs_new!D21 -> 0 | CS28: =Model_inputs_new!E21 -> 0 | CT28: 0 | CU28: 0 | CV28: 0
B29: =Model_inputs_new!$H$45 -> 549.084 | C29: 549.084 | D29: HIV infections | E29: Benefits to the population | F29: Direct medical cost | G29: Female | H29: Syphilis treatment | I29: HIV prevented | J29: =Model_inputs_new!G$125 -> 463013 | K29: =Model_inputs_new!H$125 -> 359595 | L29: =Model_inputs_new!I$125 -> 539865 | N29: 463013 | O29: 359595 | P29: 539865 | Q29: =Model_inputs_new!G83 -> 0.00462 | R29: =Model_inputs_new!H83 -> 0.000462 | S29: =Model_inputs_new!I83 -> 0.008778 | T29: =Q20+Model_inputs_new!G$52 -> 0.75 | U29: =R20+Model_inputs_new!H$52 -> 0.075 | V29: =S20+Model_inputs_new!I$52 -> 1.425 | W29: 1 | X29: 1 | Y29: 1 | AA29: 0 | AB29: 0 | AC29: 0 | AD29: 0 | AE29: 0 | AF29: 0 | AG29: Total | AI29: 0 | AJ29: 0 | AK29: 0 | AL29: 0 | AM29: 0 | AN29: 0 | AQ29: 0 | AR29: 0 | AS29: 0 | AT29: 0 | AX29: 463013 | AY29: 359595 | AZ29: 539865 | BA29: 45987.2449 | BB29: 13.04060218 | BC29: 0.09907806724 | BE29: 0 | BK29: 0 | BO29: 0 | BP29: 0 | BQ29: 0 | BS29: 463013 | BT29: 431995.0747 | BU29: 494030.9253 | BW29: 0 | BX29: 0 | BY29: 0 | CA29: 1 | CB29: 1 | CC29: 0 | CD29: 0 | CE29: 1 | CF29: 1 | CG29: 1 | CI29: 0 | CJ29: 0 | CK29: 0 | CL29: 0 | CM29: 0 | CN29: 0 | CQ29: =Model_inputs_new!C17 -> 0 | CR29: =Model_inputs_new!D17 -> 0 | CS29: =Model_inputs_new!E17 -> 0 | CT29: 0 | CU29: 0 | CV29: 0
B30: =Model_inputs_new!$H$45 -> 549.084 | C30: 549.084 | D30: HIV infections | E30: Benefits to the population | F30: Direct medical cost | G30: Male: Non-MSM | H30: HIV linkage to care | I30: HIV prevented | J30: =Model_inputs_new!G$125 -> 463013 | K30: =Model_inputs_new!H$125 -> 359595 | L30: =Model_inputs_new!I$125 -> 539865 | N30: 463013 | O30: 359595 | P30: 539865 | Q30: =Model_inputs_new!G84 -> 0.011 | R30: =Model_inputs_new!H84 -> 0.008 | S30: =Model_inputs_new!I84 -> 0.019 | T30: 1 | U30: 1 | V30: 1 | W30: 1 | X30: 1 | Y30: 1 | AA30: 0 | AB30: 0 | AC30: 0 | AD30: 0 | AE30: 0 | AF30: 0 | AG30: Total | AI30: 0 | AJ30: 0 | AK30: 0 | AL30: 0 | AM30: 0 | AN30: 0 | AQ30: 0 | AR30: 0 | AS30: 0 | AT30: 0 | AX30: 463013 | AY30: 359595 | AZ30: 539865 | BA30: 45987.2449 | BB30: 13.04060218 | BC30: 0.09907806724 | BE30: 0 | BK30: 0 | BO30: 0 | BP30: 0 | BQ30: 0 | BS30: 463013 | BT30: 431995.0747 | BU30: 494030.9253 | BW30: 0 | BX30: 0 | BY30: 0 | CA30: 1 | CB30: 1 | CC30: 0 | CD30: 0 | CE30: 1 | CF30: 1 | CG30: 1 | CI30: 0 | CJ30: 0 | CK30: 0 | CL30: 0 | CM30: 0 | CN30: 0 | CQ30: =Model_inputs_new!C23 -> 0 | CR30: =Model_inputs_new!D23 -> 0 | CS30: =Model_inputs_new!E23 -> 0 | CT30: 0 | CU30: 0 | CV30: 0
B31: =Model_inputs_new!$H$45 -> 549.084 | C31: 549.084 | D31: HIV infections | E31: Benefits to the population | F31: Direct medical cost | G31: Male: MSM | H31: HIV linkage to care | I31: HIV prevented | J31: =Model_inputs_new!G$125 -> 463013 | K31: =Model_inputs_new!H$125 -> 359595 | L31: =Model_inputs_new!I$125 -> 539865 | N31: 463013 | O31: 359595 | P31: 539865 | Q31: =Model_inputs_new!G85 -> 0.011 | R31: =Model_inputs_new!H85 -> 0.008 | S31: =Model_inputs_new!I85 -> 0.019 | T31: 1 | U31: 1 | V31: 1 | W31: 1 | X31: 1 | Y31: 1 | AA31: 0 | AB31: 0 | AC31: 0 | AD31: 0 | AE31: 0 | AF31: 0 | AG31: Total | AI31: 0 | AJ31: 0 | AK31: 0 | AL31: 0 | AM31: 0 | AN31: 0 | AQ31: 0 | AR31: 0 | AS31: 0 | AT31: 0 | AX31: 463013 | AY31: 359595 | AZ31: 539865 | BA31: 45987.2449 | BB31: 13.04060218 | BC31: 0.09907806724 | BE31: 0 | BK31: 0 | BO31: 0 | BP31: 0 | BQ31: 0 | BS31: 463013 | BT31: 431995.0747 | BU31: 494030.9253 | BW31: 0 | BX31: 0 | BY31: 0 | CA31: 1 | CB31: 1 | CC31: 0 | CD31: 0 | CE31: 1 | CF31: 1 | CG31: 1 | CI31: 0 | CJ31: 0 | CK31: 0 | CL31: 0 | CM31: 0 | CN31: 0 | CQ31: =Model_inputs_new!C24 -> 0 | CR31: =Model_inputs_new!D24 -> 0 | CS31: =Model_inputs_new!E24 -> 0 | CT31: 0 | CU31: 0 | CV31: 0
B32: =Model_inputs_new!$H$45 -> 549.084 | C32: 549.084 | D32: HIV infections | E32: Benefits to the population | F32: Direct medical cost | G32: Female | H32: HIV linkage to care | I32: HIV prevented | J32: =Model_inputs_new!G$125 -> 463013 | K32: =Model_inputs_new!H$125 -> 359595 | L32: =Model_inputs_new!I$125 -> 539865 | N32: 463013 | O32: 359595 | P32: 539865 | Q32: =Model_inputs_new!G86 -> 0.011 | R32: =Model_inputs_new!H86 -> 0.008 | S32: =Model_inputs_new!I86 -> 0.019 | T32: 1 | U32: 1 | V32: 1 | W32: 1 | X32: 1 | Y32: 1 | AA32: 0 | AB32: 0 | AC32: 0 | AD32: 0 | AE32: 0 | AF32: 0 | AG32: Total | AI32: 0 | AJ32: 0 | AK32: 0 | AL32: 0 | AM32: 0 | AN32: 0 | AQ32: 0 | AR32: 0 | AS32: 0 | AT32: 0 | AX32: 463013 | AY32: 359595 | AZ32: 539865 | BA32: 45987.2449 | BB32: 13.04060218 | BC32: 0.09907806724 | BE32: 0 | BK32: 0 | BO32: 0 | BP32: 0 | BQ32: 0 | BS32: 463013 | BT32: 431995.0747 | BU32: 494030.9253 | BW32: 0 | BX32: 0 | BY32: 0 | CA32: 1 | CB32: 1 | CC32: 0 | CD32: 0 | CE32: 1 | CF32: 1 | CG32: 1 | CI32: 0 | CJ32: 0 | CK32: 0 | CL32: 0 | CM32: 0 | CN32: 0 | CQ32: =Model_inputs_new!C22 -> 0 | CR32: =Model_inputs_new!D22 -> 0 | CS32: =Model_inputs_new!E22 -> 0 | CT32: 0 | CU32: 0 | CV32: 0
B33: =Model_inputs_new!$H$45 -> 549.084 | C33: 549.084 | D33: HIV infections | E33: Benefits to the population | F33: Direct medical cost | G33: Female | H33: PrEP referral | I33: HIV prevented | J33: =Model_inputs_new!G$125 -> 463013 | K33: =Model_inputs_new!H$125 -> 359595 | L33: =Model_inputs_new!I$125 -> 539865 | N33: =J33*(B33/C33) -> 463013 | O33: =K33*(B33/C33) -> 359595 | P33: =L33*(B33/C33) -> 539865 | Q33: =Model_inputs_new!G87 -> 0.0006 | R33: =Model_inputs_new!H87 -> 0.0004 | S33: =Model_inputs_new!I87 -> 0.00407 | T33: =Model_inputs_new!G$53 -> 0.74 | U33: =Model_inputs_new!H$53 -> 0.6 | V33: =Model_inputs_new!I$53 -> 0.82 | W33: =Model_inputs_new!G90 -> 0.049 | X33: =Model_inputs_new!H90 -> 0.024 | Y33: =Model_inputs_new!I90 -> 0.207 | AA33: 0 | AB33: 0 | AC33: 0 | AD33: 0 | AE33: 0 | AF33: 0 | AG33: Total | AI33: 0 | AJ33: 0 | AK33: 0 | AL33: 0 | AM33: 0 | AN33: 0 | AQ33: 0 | AR33: 0 | AS33: 0 | AT33: 0 | AX33: 463013 | AY33: 359595 | AZ33: 539865 | BA33: 45987.2449 | BB33: 13.04060218 | BC33: 0.09907806724 | BE33: 0 | BK33: 0 | BO33: 0 | BP33: 0 | BQ33: 0 | BS33: 463013 | BT33: 431995.0747 | BU33: 494030.9253 | BW33: 0 | BX33: 0 | BY33: 0 | CA33: 1 | CB33: 1 | CC33: 0 | CD33: 0 | CE33: 1 | CF33: 1 | CG33: 1 | CI33: 0 | CJ33: 0 | CK33: 0 | CL33: 0 | CM33: 0 | CN33: 0 | CQ33: =Model_inputs_new!C26 -> 0 | CR33: =Model_inputs_new!D26 -> 0 | CS33: =Model_inputs_new!E26 -> 0 | CT33: 0 | CU33: 0 | CV33: 0
B34: =Model_inputs_new!$H$45 -> 549.084 | C34: 549.084 | D34: HIV infections | E34: Benefits to the population | F34: Direct medical cost | G34: Male: Non-MSM | H34: PrEP referral | I34: HIV prevented | J34: =Model_inputs_new!G$125 -> 463013 | K34: =Model_inputs_new!H$125 -> 359595 | L34: =Model_inputs_new!I$125 -> 539865 | N34: 463013 | O34: 359595 | P34: 539865 | Q34: =Model_inputs_new!G88 -> 0.0006 | R34: =Model_inputs_new!H88 -> 0.0004 | S34: =Model_inputs_new!I88 -> 0.00407 | T34: =Model_inputs_new!G$53 -> 0.74 | U34: =Model_inputs_new!H$53 -> 0.6 | V34: =Model_inputs_new!I$53 -> 0.82 | W34: =Model_inputs_new!G91 -> 0.049 | X34: =Model_inputs_new!H91 -> 0.024 | Y34: =Model_inputs_new!I91 -> 0.207 | AA34: 0 | AB34: 0 | AC34: 0 | AD34: 0 | AE34: 0 | AF34: 0 | AG34: Total | AI34: 0 | AJ34: 0 | AK34: 0 | AL34: 0 | AM34: 0 | AN34: 0 | AQ34: 0 | AR34: 0 | AS34: 0 | AT34: 0 | AX34: 463013 | AY34: 359595 | AZ34: 539865 | BA34: 45987.2449 | BB34: 13.04060218 | BC34: 0.09907806724 | BE34: 0 | BK34: 0 | BO34: 0 | BP34: 0 | BQ34: 0 | BS34: 463013 | BT34: 431995.0747 | BU34: 494030.9253 | BW34: 0 | BX34: 0 | BY34: 0 | CA34: 1 | CB34: 1 | CC34: 0 | CD34: 0 | CE34: 1 | CF34: 1 | CG34: 1 | CI34: 0 | CJ34: 0 | CK34: 0 | CL34: 0 | CM34: 0 | CN34: 0 | CQ34: =Model_inputs_new!C27 -> 0 | CR34: =Model_inputs_new!D27 -> 0 | CS34: =Model_inputs_new!E27 -> 0 | CT34: 0 | CU34: 0 | CV34: 0
B35: =Model_inputs_new!$H$45 -> 549.084 | C35: 549.084 | D35: HIV infections | E35: Benefits to the population | F35: Direct medical cost | G35: Male: MSM | H35: PrEP referral | I35: HIV prevented | J35: =Model_inputs_new!G$125 -> 463013 | K35: =Model_inputs_new!H$125 -> 359595 | L35: =Model_inputs_new!I$125 -> 539865 | N35: 463013 | O35: 359595 | P35: 539865 | Q35: =Model_inputs_new!G89 -> 0.00586 | R35: =Model_inputs_new!H89 -> 0.00395 | S35: =Model_inputs_new!I89 -> 0.04 | T35: =Model_inputs_new!G$53 -> 0.74 | U35: =Model_inputs_new!H$53 -> 0.6 | V35: =Model_inputs_new!I$53 -> 0.82 | W35: =Model_inputs_new!G92 -> 0.049 | X35: =Model_inputs_new!H92 -> 0.024 | Y35: =Model_inputs_new!I92 -> 0.207 | AA35: 0 | AB35: 0 | AC35: 0 | AD35: 0 | AE35: 0 | AF35: 0 | AG35: Total | AI35: 0 | AJ35: 0 | AK35: 0 | AL35: 0 | AM35: 0 | AN35: 0 | AQ35: 0 | AR35: 0 | AS35: 0 | AT35: 0 | AX35: 463013 | AY35: 359595 | AZ35: 539865 | BA35: 45987.2449 | BB35: 13.04060218 | BC35: 0.09907806724 | BE35: 0 | BK35: 0 | BO35: 0 | BP35: 0 | BQ35: 0 | BS35: 463013 | BT35: 431995.0747 | BU35: 494030.9253 | BW35: 0 | BX35: 0 | BY35: 0 | CA35: 1 | CB35: 1 | CC35: 0 | CD35: 0 | CE35: 1 | CF35: 1 | CG35: 1 | CI35: 0 | CJ35: 0 | CK35: 0 | CL35: 0 | CM35: 0 | CN35: 0 | CQ35: =Model_inputs_new!C28 -> 0 | CR35: =Model_inputs_new!D28 -> 0 | CS35: =Model_inputs_new!E28 -> 0 | CT35: 0 | CU35: 0 | CV35: 0
B36: =Model_inputs_new!$H$45 -> 549.084 | C36: 549.084 | D36: HIV infections | E36: Benefits to the population | F36: Direct medical cost | G36: Female | H36: PrEP provision | I36: HIV prevented | J36: =Model_inputs_new!G$125 -> 463013 | K36: =Model_inputs_new!H$125 -> 359595 | L36: =Model_inputs_new!I$125 -> 539865 | N36: 463013 | O36: 359595 | P36: 539865 | Q36: =Model_inputs_new!G87 -> 0.0006 | R36: =Model_inputs_new!H87 -> 0.0004 | S36: =Model_inputs_new!I87 -> 0.00407 | T36: =Model_inputs_new!G$53 -> 0.74 | U36: =Model_inputs_new!H$53 -> 0.6 | V36: =Model_inputs_new!I$53 -> 0.82 | W36: 1 | X36: 1 | Y36: 1 | AA36: 0 | AB36: 0 | AC36: 0 | AD36: 0 | AE36: 0 | AF36: 0 | AG36: Total | AI36: 0 | AJ36: 0 | AK36: 0 | AL36: 0 | AM36: 0 | AN36: 0 | AQ36: 0 | AR36: 0 | AS36: 0 | AT36: 0 | AX36: 463013 | AY36: 359595 | AZ36: 539865 | BA36: 45987.2449 | BB36: 13.04060218 | BC36: 0.09907806724 | BE36: 0 | BK36: 0 | BO36: 0 | BP36: 0 | BQ36: 0 | BS36: 463013 | BT36: 431995.0747 | BU36: 494030.9253 | BW36: 0 | BX36: 0 | BY36: 0 | CA36: 1 | CB36: 1 | CC36: 0 | CD36: 0 | CE36: 1 | CF36: 1 | CG36: 1 | CI36: 0 | CJ36: 0 | CK36: 0 | CL36: 0 | CM36: 0 | CN36: 0 | CQ36: =Model_inputs_new!C29 -> 0 | CR36: =Model_inputs_new!D29 -> 0 | CS36: =Model_inputs_new!E29 -> 0 | CT36: 0 | CU36: 0 | CV36: 0
B37: =Model_inputs_new!$H$45 -> 549.084 | C37: 549.084 | D37: HIV infections | E37: Benefits to the population | F37: Direct medical cost | G37: Male: Non-MSM | H37: PrEP provision | I37: HIV prevented | J37: =Model_inputs_new!G$125 -> 463013 | K37: =Model_inputs_new!H$125 -> 359595 | L37: =Model_inputs_new!I$125 -> 539865 | N37: 463013 | O37: 359595 | P37: 539865 | Q37: =Model_inputs_new!G88 -> 0.0006 | R37: =Model_inputs_new!H88 -> 0.0004 | S37: =Model_inputs_new!I88 -> 0.00407 | T37: =Model_inputs_new!G$53 -> 0.74 | U37: =Model_inputs_new!H$53 -> 0.6 | V37: =Model_inputs_new!I$53 -> 0.82 | W37: 1 | X37: 1 | Y37: 1 | AA37: 0 | AB37: 0 | AC37: 0 | AD37: 0 | AE37: 0 | AF37: 0 | AG37: Total | AI37: 0 | AJ37: 0 | AK37: 0 | AL37: 0 | AM37: 0 | AN37: 0 | AQ37: 0 | AR37: 0 | AS37: 0 | AT37: 0 | AX37: 463013 | AY37: 359595 | AZ37: 539865 | BA37: 45987.2449 | BB37: 13.04060218 | BC37: 0.09907806724 | BE37: 0 | BK37: 0 | BO37: 0 | BP37: 0 | BQ37: 0 | BS37: 463013 | BT37: 431995.0747 | BU37: 494030.9253 | BW37: 0 | BX37: 0 | BY37: 0 | CA37: 1 | CB37: 1 | CC37: 0 | CD37: 0 | CE37: 1 | CF37: 1 | CG37: 1 | CI37: 0 | CJ37: 0 | CK37: 0 | CL37: 0 | CM37: 0 | CN37: 0 | CQ37: =Model_inputs_new!C30 -> 0 | CR37: =Model_inputs_new!D30 -> 0 | CS37: =Model_inputs_new!E30 -> 0 | CT37: 0 | CU37: 0 | CV37: 0
B38: =Model_inputs_new!$H$45 -> 549.084 | C38: 549.084 | D38: HIV infections | E38: Benefits to the population | F38: Direct medical cost | G38: Male: MSM | H38: PrEP provision | I38: HIV prevented | J38: =Model_inputs_new!G$125 -> 463013 | K38: =Model_inputs_new!H$125 -> 359595 | L38: =Model_inputs_new!I$125 -> 539865 | N38: 463013 | O38: 359595 | P38: 539865 | Q38: =Model_inputs_new!G89 -> 0.00586 | R38: =Model_inputs_new!H89 -> 0.00395 | S38: =Model_inputs_new!I89 -> 0.04 | T38: =Model_inputs_new!G$53 -> 0.74 | U38: =Model_inputs_new!H$53 -> 0.6 | V38: =Model_inputs_new!I$53 -> 0.82 | W38: 1 | X38: 1 | Y38: 1 | AA38: 0 | AB38: 0 | AC38: 0 | AD38: 0 | AE38: 0 | AF38: 0 | AG38: Total | AI38: 0 | AJ38: 0 | AK38: 0 | AL38: 0 | AM38: 0 | AN38: 0 | AQ38: 0 | AR38: 0 | AS38: 0 | AT38: 0 | AX38: 463013 | AY38: 359595 | AZ38: 539865 | BA38: 45987.2449 | BB38: 13.04060218 | BC38: 0.09907806724 | BE38: 0 | BK38: 0 | BO38: 0 | BP38: 0 | BQ38: 0 | BS38: 463013 | BT38: 431995.0747 | BU38: 494030.9253 | BW38: 0 | BX38: 0 | BY38: 0 | CA38: 1 | CB38: 1 | CC38: 0 | CD38: 0 | CE38: 1 | CF38: 1 | CG38: 1 | CI38: 0 | CJ38: 0 | CK38: 0 | CL38: 0 | CM38: 0 | CN38: 0 | CQ38: =Model_inputs_new!C31 -> 0 | CR38: =Model_inputs_new!D31 -> 0 | CS38: =Model_inputs_new!E31 -> 0 | CT38: 0 | CU38: 0 | CV38: 0
B39: =Model_inputs_new!$H$46 -> 304.702 | C39: 304.702 | D39: Sequalae averted in patients treated | E39: Benefits to the patients treated | F39: Productivity cost | G39: Female | H39: Chlamydia treatment | I39: STD lost productivity prevented | J39: =Model_inputs_new!G$136 -> 2173 | K39: =Model_inputs_new!H$136 -> 819 | L39: =Model_inputs_new!I$136 -> 4499 | N39: 2173 | O39: 819 | P39: 4499 | Q39: =Q2 -> 0.06 | R39: =R2 -> 0.01 | S39: 0.12 | T39: 0.958 | U39: 0.938 | V39: 0.976 | W39: 0.8 | X39: 0.68 | Y39: 0.86 | AD39: =AL39 -> 0 | AE39: 0 | AF39: 0 | AG39: Total | AI39: 0 | AJ39: 0 | AK39: 0 | AL39: 0 | AM39: 0 | AN39: 0 | AQ39: 0 | AR39: 0 | AS39: 0 | AT39: 0 | AX39: 2173 | AY39: 819 | AZ39: 4499 | BA39: 938.7755102 | BB39: 7.59830121 | BC39: 0.413673228 | BE39: 0 | BK39: 0 | BO39: 0 | BP39: 0 | BQ39: 0 | BS39: 2173 | BT39: 1539.805541 | BU39: 2806.194459 | BW39: 0 | BX39: 0 | BY39: 0 | CA39: 1 | CB39: 1 | CC39: 0 | CD39: 0 | CE39: 1 | CF39: 1 | CG39: 1 | CI39: 0 | CJ39: 0 | CK39: 0 | CL39: 0 | CM39: 0 | CN39: 0 | CQ39: =Model_inputs_new!C4 -> 0 | CR39: =Model_inputs_new!D4 -> 0 | CS39: =Model_inputs_new!E4 -> 0 | CT39: 0 | CU39: 0 | CV39: 0
B40: =Model_inputs_new!$H$46 -> 304.702 | C40: 304.702 | D40: Sequalae averted in patients treated | E40: Benefits to the patients treated | F40: Productivity cost | G40: Male: Non-MSM | H40: Chlamydia treatment | I40: STD lost productivity prevented | J40: =Model_inputs_new!G$137 -> 710 | K40: =Model_inputs_new!H$137 -> 268 | L40: =Model_inputs_new!I$137 -> 1470 | N40: 710 | O40: 268 | P40: 1470 | Q40: =Q3 -> 0.02 | R40: 0.01 | S40: 0.04 | T40: 0.989 | U40: 0.977 | V40: 0.995 | W40: 0.8 | X40: 0.68 | Y40: 0.86 | AD40: 0 | AE40: 0 | AF40: 0 | AG40: Total | AI40: 0 | AJ40: 0 | AK40: 0 | AL40: 0 | AM40: 0 | AN40: 0 | AQ40: 0 | AR40: 0 | AS40: 0 | AT40: 0 | AX40: 710 | AY40: 268 | AZ40: 1470 | BA40: 306.6326531 | BB40: 6.479753603 | BC40: 0.4135489494 | BE40: 0 | BK40: 0 | BO40: 0 | BP40: 0 | BQ40: 0 | BS40: 710 | BT40: 503.1794184 | BU40: 916.8205816 | BW40: 0 | BX40: 0 | BY40: 0 | CA40: 1 | CB40: 1 | CC40: 0 | CD40: 0 | CE40: 1 | CF40: 1 | CG40: 1 | CI40: 0 | CJ40: 0 | CK40: 0 | CL40: 0 | CM40: 0 | CN40: 0 | CQ40: =Model_inputs_new!C6 -> 0 | CR40: =Model_inputs_new!D6 -> 0 | CS40: =Model_inputs_new!E6 -> 0 | CT40: 0 | CU40: 0 | CV40: 0
B41: =Model_inputs_new!$H$46 -> 304.702 | C41: 304.702 | D41: Sequalae averted in patients treated | E41: Benefits to the patients treated | F41: Productivity cost | G41: Male: MSM | H41: Chlamydia treatment | I41: STD lost productivity prevented | J41: =Model_inputs_new!G$137 -> 710 | K41: =Model_inputs_new!H$137 -> 268 | L41: =Model_inputs_new!I$137 -> 1470 | N41: 710 | O41: 268 | P41: 1470 | Q41: 0.02 | R41: 0.01 | S41: 0.04 | T41: 0.989 | U41: 0.977 | V41: 0.995 | W41: 0.8 | X41: 0.68 | Y41: 0.86 | AD41: 0 | AE41: 0 | AF41: 0 | AG41: Total | AI41: 0 | AJ41: 0 | AK41: 0 | AL41: 0 | AM41: 0 | AN41: 0 | AQ41: 0 | AR41: 0 | AS41: 0 | AT41: 0 | AX41: 710 | AY41: 268 | AZ41: 1470 | BA41: 306.6326531 | BB41: 6.479753603 | BC41: 0.4135489494 | BE41: 0 | BK41: 0 | BO41: 0 | BP41: 0 | BQ41: 0 | BS41: 710 | BT41: 503.1794184 | BU41: 916.8205816 | BW41: 0 | BX41: 0 | BY41: 0 | CA41: 1 | CB41: 1 | CC41: 0 | CD41: 0 | CE41: 1 | CF41: 1 | CG41: 1 | CI41: 0 | CJ41: 0 | CK41: 0 | CL41: 0 | CM41: 0 | CN41: 0 | CQ41: =Model_inputs_new!C8 -> 0 | CR41: =Model_inputs_new!D8 -> 0 | CS41: =Model_inputs_new!E8 -> 0 | CT41: 0 | CU41: 0 | CV41: 0
B42: =Model_inputs_new!$H$46 -> 304.702 | C42: 304.702 | D42: Sequalae averted in patients treated | E42: Benefits to the patients treated | F42: Productivity cost | G42: Female | H42: Gonorrhea treatment | I42: STD lost productivity prevented | J42: =Model_inputs_new!G$136 -> 2173 | K42: =Model_inputs_new!H$136 -> 819 | L42: =Model_inputs_new!I$136 -> 4499 | N42: 2173 | O42: 819 | P42: 4499 | Q42: 0.06 | R42: 0.01 | S42: 0.12 | T42: 0.646 | U42: 0.6 | V42: 0.74 | W42: 0.8 | X42: 0.68 | Y42: 0.86 | AD42: 0 | AE42: 0 | AF42: 0 | AG42: Total | AI42: 0 | AJ42: 0 | AK42: 0 | AL42: 0 | AM42: 0 | AN42: 0 | AQ42: 0 | AR42: 0 | AS42: 0 | AT42: 0 | AX42: 2173 | AY42: 819 | AZ42: 4499 | BA42: 938.7755102 | BB42: 7.59830121 | BC42: 0.413673228 | BE42: 0 | BK42: 0 | BO42: 0 | BP42: 0 | BQ42: 0 | BS42: 2173 | BT42: 1539.805541 | BU42: 2806.194459 | BW42: 0 | BX42: 0 | BY42: 0 | CA42: 1 | CB42: 1 | CC42: 0 | CD42: 0 | CE42: 1 | CF42: 1 | CG42: 1 | CI42: 0 | CJ42: 0 | CK42: 0 | CL42: 0 | CM42: 0 | CN42: 0 | CQ42: =Model_inputs_new!C10 -> 0 | CR42: =Model_inputs_new!D10 -> 0 | CS42: =Model_inputs_new!E10 -> 0 | CT42: 0 | CU42: 0 | CV42: 0
B43: =Model_inputs_new!$H$46 -> 304.702 | C43: 304.702 | D43: Sequalae averted in patients treated | E43: Benefits to the patients treated | F43: Productivity cost | G43: Male: Non-MSM | H43: Gonorrhea treatment | I43: STD lost productivity prevented | J43: =Model_inputs_new!G$137 -> 710 | K43: =Model_inputs_new!H$137 -> 268 | L43: =Model_inputs_new!I$137 -> 1470 | N43: 710 | O43: 268 | P43: 1470 | Q43: 0.02 | R43: 0.01 | S43: 0.04 | T43: 0.764 | U43: 0.65 | V43: 0.85 | W43: 0.8 | X43: 0.68 | Y43: 0.86 | AD43: 0 | AE43: 0 | AF43: 0 | AG43: Total | AI43: 0 | AJ43: 0 | AK43: 0 | AL43: 0 | AM43: 0 | AN43: 0 | AQ43: 0 | AR43: 0 | AS43: 0 | AT43: 0 | AX43: 710 | AY43: 268 | AZ43: 1470 | BA43: 306.6326531 | BB43: 6.479753603 | BC43: 0.4135489494 | BE43: 0 | BK43: 0 | BO43: 0 | BP43: 0 | BQ43: 0 | BS43: 710 | BT43: 503.1794184 | BU43: 916.8205816 | BW43: 0 | BX43: 0 | BY43: 0 | CA43: 1 | CB43: 1 | CC43: 0 | CD43: 0 | CE43: 1 | CF43: 1 | CG43: 1 | CI43: 0 | CJ43: 0 | CK43: 0 | CL43: 0 | CM43: 0 | CN43: 0 | CQ43: =Model_inputs_new!C12 -> 0 | CR43: =Model_inputs_new!D12 -> 0 | CS43: =Model_inputs_new!E12 -> 0 | CT43: 0 | CU43: 0 | CV43: 0
B44: =Model_inputs_new!$H$46 -> 304.702 | C44: 304.702 | D44: Sequalae averted in patients treated | E44: Benefits to the patients treated | F44: Productivity cost | G44: Male: MSM | H44: Gonorrhea treatment | I44: STD lost productivity prevented | J44: =Model_inputs_new!G$137 -> 710 | K44: =Model_inputs_new!H$137 -> 268 | L44: =Model_inputs_new!I$137 -> 1470 | N44: 710 | O44: 268 | P44: 1470 | Q44: 0.02 | R44: 0.01 | S44: 0.04 | T44: 0.764 | U44: 0.65 | V44: 0.85 | W44: 0.8 | X44: 0.68 | Y44: 0.86 | AD44: 0 | AE44: 0 | AF44: 0 | AG44: Total | AI44: 0 | AJ44: 0 | AK44: 0 | AL44: 0 | AM44: 0 | AN44: 0 | AQ44: 0 | AR44: 0 | AS44: 0 | AT44: 0 | AX44: 710 | AY44: 268 | AZ44: 1470 | BA44: 306.6326531 | BB44: 6.479753603 | BC44: 0.4135489494 | BE44: 0 | BK44: 0 | BO44: 0 | BP44: 0 | BQ44: 0 | BS44: 710 | BT44: 503.1794184 | BU44: 916.8205816 | BW44: 0 | BX44: 0 | BY44: 0 | CA44: 1 | CB44: 1 | CC44: 0 | CD44: 0 | CE44: 1 | CF44: 1 | CG44: 1 | CI44: 0 | CJ44: 0 | CK44: 0 | CL44: 0 | CM44: 0 | CN44: 0 | CQ44: =Model_inputs_new!C14 -> 0 | CR44: =Model_inputs_new!D14 -> 0 | CS44: =Model_inputs_new!E14 -> 0 | CT44: 0 | CU44: 0 | CV44: 0
B45: =Model_inputs_new!$H$46 -> 304.702 | C45: 304.702 | D45: Sequalae averted in patients treated | E45: Benefits to the patients treated | F45: Productivity cost | G45: Male: Non-MSM | H45: Syphilis treatment | I45: STD lost productivity prevented | J45: =Model_inputs_new!G$138 -> 206270 | K45: =Model_inputs_new!H$138 -> 123762 | L45: =Model_inputs_new!I$138 -> 342408 | N45: =J45*(B45/C45) -> 206270 | O45: =K45*(B45/C45) -> 123762 | P45: =L45*(B45/C45) -> 342408 | Q45: =Model_inputs_new!G$58 -> 0.001 | R45: =Model_inputs_new!H$58 -> 0.0004 | S45: =Model_inputs_new!I$58 -> 0.0016 | T45: 1 | U45: 1 | V45: 1 | W45: 1 | X45: 1 | Y45: 1 | AD45: 0 | AE45: 0 | AF45: 0 | AG45: Total | AI45: 0 | AJ45: 0 | AK45: 0 | AL45: 0 | AM45: 0 | AN45: 0 | AQ45: 0 | AR45: 0 | AS45: 0 | AT45: 0 | AX45: 206270 | AY45: 123762 | AZ45: 342408 | BA45: 55777.04082 | BB45: 12.20165592 | BC45: 0.2656514715 | BE45: 0 | BK45: 0 | BO45: 0 | BP45: 0 | BQ45: 0 | BS45: 206270 | BT45: 168648.9577 | BU45: 243891.0423 | BW45: 0 | BX45: 0 | BY45: 0 | CA45: 1 | CB45: 1 | CC45: 0 | CD45: 0 | CE45: 1 | CF45: 1 | CG45: 1 | CI45: 0 | CJ45: 0 | CK45: 0 | CL45: 0 | CM45: 0 | CN45: 0 | CQ45: =Model_inputs_new!C18 -> 0 | CR45: =Model_inputs_new!D18 -> 0 | CS45: =Model_inputs_new!E18 -> 0 | CT45: 0 | CU45: 0 | CV45: 0
B46: =Model_inputs_new!$H$46 -> 304.702 | C46: 304.702 | D46: Sequalae averted in patients treated | E46: Benefits to the patients treated | F46: Productivity cost | G46: Male: MSM | H46: Syphilis treatment | I46: STD lost productivity prevented | J46: =Model_inputs_new!G$138 -> 206270 | K46: =Model_inputs_new!H$138 -> 123762 | L46: =Model_inputs_new!I$138 -> 342408 | N46: 206270 | O46: 123762 | P46: 342408 | Q46: =Model_inputs_new!G$58 -> 0.001 | R46: =Model_inputs_new!H$58 -> 0.0004 | S46: =Model_inputs_new!I$58 -> 0.0016 | T46: 1 | U46: 1 | V46: 1 | W46: 1 | X46: 1 | Y46: 1 | AD46: 0 | AE46: 0 | AF46: 0 | AG46: Total | AI46: 0 | AJ46: 0 | AK46: 0 | AL46: 0 | AM46: 0 | AN46: 0 | AQ46: 0 | AR46: 0 | AS46: 0 | AT46: 0 | AX46: 206270 | AY46: 123762 | AZ46: 342408 | BA46: 55777.04082 | BB46: 12.20165592 | BC46: 0.2656514715 | BE46: 0 | BK46: 0 | BO46: 0 | BP46: 0 | BQ46: 0 | BS46: 206270 | BT46: 168648.9577 | BU46: 243891.0423 | BW46: 0 | BX46: 0 | BY46: 0 | CA46: 1 | CB46: 1 | CC46: 0 | CD46: 0 | CE46: 1 | CF46: 1 | CG46: 1 | CI46: 0 | CJ46: 0 | CK46: 0 | CL46: 0 | CM46: 0 | CN46: 0 | CQ46: =Model_inputs_new!C20 -> 0 | CR46: =Model_inputs_new!D20 -> 0 | CS46: =Model_inputs_new!E20 -> 0 | CT46: 0 | CU46: 0 | CV46: 0
B47: =Model_inputs_new!$H$46 -> 304.702 | C47: 304.702 | D47: Sequalae averted in patients treated | E47: Benefits to the patients treated | F47: Productivity cost | G47: Female | H47: Syphilis treatment | I47: STD lost productivity prevented | J47: =Model_inputs_new!G$138 -> 206270 | K47: =Model_inputs_new!H$138 -> 123762 | L47: =Model_inputs_new!I$138 -> 342408 | N47: 206270 | O47: 123762 | P47: 342408 | Q47: =Model_inputs_new!G$58 -> 0.001 | R47: =Model_inputs_new!H$58 -> 0.0004 | S47: =Model_inputs_new!I$58 -> 0.0016 | T47: 1 | U47: 1 | V47: 1 | W47: 1 | X47: 1 | Y47: 1 | AD47: 0 | AE47: 0 | AF47: 0 | AG47: Total | AI47: 0 | AJ47: 0 | AK47: 0 | AL47: 0 | AM47: 0 | AN47: 0 | AQ47: 0 | AR47: 0 | AS47: 0 | AT47: 0 | AX47: 206270 | AY47: 123762 | AZ47: 342408 | BA47: 55777.04082 | BB47: 12.20165592 | BC47: 0.2656514715 | BE47: 0 | BK47: 0 | BO47: 0 | BP47: 0 | BQ47: 0 | BS47: 206270 | BT47: 168648.9577 | BU47: 243891.0423 | BW47: 0 | BX47: 0 | BY47: 0 | CA47: 1 | CB47: 1 | CC47: 0 | CD47: 0 | CE47: 1 | CF47: 1 | CG47: 1 | CI47: 0 | CJ47: 0 | CK47: 0 | CL47: 0 | CM47: 0 | CN47: 0 | CQ47: =Model_inputs_new!C16 -> 0 | CR47: =Model_inputs_new!D16 -> 0 | CS47: =Model_inputs_new!E16 -> 0 | CT47: 0 | CU47: 0 | CV47: 0
B48: =Model_inputs_new!$H$46 -> 304.702 | C48: 304.702 | D48: Congenital syphilis averted | E48: Benefits to the patients treated | F48: Productivity cost | G48: Female | H48: Syphilis treatment | I48: Congenital syphilis lost productivity prevented | J48: =Model_inputs_new!G139 -> 91321 | K48: =Model_inputs_new!H139 -> 45661 | L48: =Model_inputs_new!I139 -> 136982 | N48: 91321 | O48: 45661 | P48: 136982 | Q48: =Model_inputs_new!G$65 -> 0.5 | R48: =Model_inputs_new!H$65 -> 0.25 | S48: =Model_inputs_new!I$65 -> 0.75 | T48: 1 | U48: 1 | V48: 1 | W48: 1 | X48: 1 | Y48: 1 | AD48: 0 | AE48: 0 | AF48: 0 | AG48: Total | AI48: 0 | AJ48: 0 | AK48: 0 | AL48: 0 | AM48: 0 | AN48: 0 | AQ48: 0 | AR48: 0 | AS48: 0 | AT48: 0 | AX48: 91321 | AY48: 45661 | AZ48: 136982 | BA48: 23296.17347 | BB48: 11.39061248 | BC48: 0.2510919057 | BE48: 0 | BK48: 0 | BO48: 0 | BP48: 0 | BQ48: 0 | BS48: 91321 | BT48: 75607.96978 | BU48: 107034.0302 | BW48: 0 | BX48: 0 | BY48: 0 | CA48: 1 | CB48: 1 | CC48: 0 | CD48: 0 | CE48: 1 | CF48: 1 | CG48: 1 | CI48: 0 | CJ48: 0 | CK48: 0 | CL48: 0 | CM48: 0 | CN48: 0 | CQ48: =Model_inputs_new!C25 -> 0 | CR48: =Model_inputs_new!D25 -> 0 | CS48: =Model_inputs_new!E25 -> 0 | CT48: 0 | CU48: 0 | CV48: 0
B49: =Model_inputs_new!$H$46 -> 304.702 | C49: 304.702 | D49: STI infections | E49: Benefits to the population | F49: Productivity cost | G49: Male: Non-MSM | H49: Chlamydia treatment | I49: STD lost productivity prevented | J49: =Model_inputs_new!G$147 -> 131 | K49: =Model_inputs_new!H$147 -> 46 | L49: =Model_inputs_new!I$147 -> 310 | N49: =J49*(B49/C49) -> 131 | O49: =K49*(B49/C49) -> 46 | P49: =L49*(B49/C49) -> 310 | Q49: =Model_inputs_new!G66 -> 0.5 | R49: =Model_inputs_new!H66 -> 0.05 | S49: =Model_inputs_new!I66 -> 0.95 | T49: 1 | U49: 1 | V49: 1 | W49: 1 | X49: 1 | Y49: 1 | AD49: 0 | AE49: 0 | AF49: 0 | AG49: Total | AI49: 0 | AJ49: 0 | AK49: 0 | AL49: 0 | AM49: 0 | AN49: 0 | AQ49: 0 | AR49: 0 | AS49: 0 | AT49: 0 | AX49: 131 | AY49: 46 | AZ49: 310 | BA49: 67.34693878 | BB49: 4.75793899 | BC49: 0.4842692094 | BE49: 0 | BK49: 0 | BO49: 0 | BP49: 0 | BQ49: 0 | BS49: 131 | BT49: 85.57518009 | BU49: 176.4248199 | BW49: 0 | BX49: 0 | BY49: 0 | CA49: 1 | CB49: 1 | CC49: 0 | CD49: 0 | CE49: 1 | CF49: 1 | CG49: 1 | CI49: 0 | CJ49: 0 | CK49: 0 | CL49: 0 | CM49: 0 | CN49: 0 | CQ49: =Model_inputs_new!C7 -> 0 | CR49: =Model_inputs_new!D7 -> 0 | CS49: =Model_inputs_new!E7 -> 0 | CT49: 0 | CU49: 0 | CV49: 0
B50: =Model_inputs_new!$H$46 -> 304.702 | C50: 304.702 | D50: STI infections | E50: Benefits to the population | F50: Productivity cost | G50: Male: MSM | H50: Chlamydia treatment | I50: STD lost productivity prevented | J50: =Model_inputs_new!G$140 -> 28 | K50: =Model_inputs_new!H$140 -> 14 | L50: =Model_inputs_new!I$140 -> 50 | N50: 28 | O50: 14 | P50: 50 | Q50: =Model_inputs_new!G67 -> 0.5 | R50: =Model_inputs_new!H67 -> 0.05 | S50: =Model_inputs_new!I67 -> 0.95 | T50: 1 | U50: 1 | V50: 1 | W50: 1 | X50: 1 | Y50: 1 | AD50: 0 | AE50: 0 | AF50: 0 | AG50: Total | AI50: 0 | AJ50: 0 | AK50: 0 | AL50: 0 | AM50: 0 | AN50: 0 | AQ50: 0 | AR50: 0 | AS50: 0 | AT50: 0 | AX50: 28 | AY50: 14 | AZ50: 50 | BA50: 9.183673469 | BB50: 3.28111743 | BC50: 0.3196469296 | BE50: 0 | BK50: 0 | BO50: 0 | BP50: 0 | BQ50: 0 | BS50: 28 | BT50: 21.80570638 | BU50: 34.19429362 | BW50: 0 | BX50: 0 | BY50: 0 | CA50: 1 | CB50: 1 | CC50: 0 | CD50: 0 | CE50: 1 | CF50: 1 | CG50: 1 | CI50: 0 | CJ50: 0 | CK50: 0 | CL50: 0 | CM50: 0 | CN50: 0 | CQ50: =Model_inputs_new!C9 -> 0 | CR50: =Model_inputs_new!D9 -> 0 | CS50: =Model_inputs_new!E9 -> 0 | CT50: 0 | CU50: 0 | CV50: 0
B51: =Model_inputs_new!$H$46 -> 304.702 | C51: 304.702 | D51: STI infections | E51: Benefits to the population | F51: Productivity cost | G51: Female | H51: Chlamydia treatment | I51: STD lost productivity prevented | J51: =Model_inputs_new!G$147 -> 131 | K51: =Model_inputs_new!H$147 -> 46 | L51: =Model_inputs_new!I$147 -> 310 | N51: 131 | O51: 46 | P51: 310 | Q51: =Model_inputs_new!G68 -> 0.5 | R51: =Model_inputs_new!H68 -> 0.05 | S51: =Model_inputs_new!I68 -> 0.95 | T51: 1 | U51: 1 | V51: 1 | W51: 1 | X51: 1 | Y51: 1 | AD51: 0 | AE51: 0 | AF51: 0 | AG51: Total | AI51: 0 | AJ51: 0 | AK51: 0 | AL51: 0 | AM51: 0 | AN51: 0 | AQ51: 0 | AR51: 0 | AS51: 0 | AT51: 0 | AX51: 131 | AY51: 46 | AZ51: 310 | BA51: 67.34693878 | BB51: 4.75793899 | BC51: 0.4842692094 | BE51: 0 | BK51: 0 | BO51: 0 | BP51: 0 | BQ51: 0 | BS51: 131 | BT51: 85.57518009 | BU51: 176.4248199 | BW51: 0 | BX51: 0 | BY51: 0 | CA51: 1 | CB51: 1 | CC51: 0 | CD51: 0 | CE51: 1 | CF51: 1 | CG51: 1 | CI51: 0 | CJ51: 0 | CK51: 0 | CL51: 0 | CM51: 0 | CN51: 0 | CQ51: =Model_inputs_new!C5 -> 0 | CR51: =Model_inputs_new!D5 -> 0 | CS51: =Model_inputs_new!E5 -> 0 | CT51: 0 | CU51: 0 | CV51: 0
B52: =Model_inputs_new!$H$46 -> 304.702 | C52: 304.702 | D52: STI infections | E52: Benefits to the population | F52: Productivity cost | G52: Male: Non-MSM | H52: Gonorrhea treatment | I52: STD lost productivity prevented | J52: =Model_inputs_new!G$148 -> 139 | K52: =Model_inputs_new!H$148 -> 41 | L52: =Model_inputs_new!I$148 -> 345 | N52: 139 | O52: 41 | P52: 345 | Q52: =Model_inputs_new!G69 -> 0.5 | R52: =Model_inputs_new!H69 -> 0.05 | S52: =Model_inputs_new!I69 -> 0.95 | T52: 1 | U52: 1 | V52: 1 | W52: 1 | X52: 1 | Y52: 1 | AD52: 0 | AE52: 0 | AF52: 0 | AG52: Total | AI52: 0 | AJ52: 0 | AK52: 0 | AL52: 0 | AM52: 0 | AN52: 0 | AQ52: 0 | AR52: 0 | AS52: 0 | AT52: 0 | AX52: 139 | AY52: 41 | AZ52: 345 | BA52: 77.55102041 | BB52: 4.798973635 | BC52: 0.520577177 | BE52: 0 | BK52: 0 | BO52: 0 | BP52: 0 | BQ52: 0 | BS52: 139 | BT52: 86.69263162 | BU52: 191.3073684 | BW52: 0 | BX52: 0 | BY52: 0 | CA52: 1 | CB52: 1 | CC52: 0 | CD52: 0 | CE52: 1 | CF52: 1 | CG52: 1 | CI52: 0 | CJ52: 0 | CK52: 0 | CL52: 0 | CM52: 0 | CN52: 0 | CQ52: =Model_inputs_new!C13 -> 0 | CR52: =Model_inputs_new!D13 -> 0 | CS52: =Model_inputs_new!E13 -> 0 | CT52: 0 | CU52: 0 | CV52: 0
B53: =Model_inputs_new!$H$46 -> 304.702 | C53: 304.702 | D53: STI infections | E53: Benefits to the population | F53: Productivity cost | G53: Male: MSM | H53: Gonorrhea treatment | I53: STD lost productivity prevented | J53: =Model_inputs_new!G$142 -> 37 | K53: =Model_inputs_new!H$142 -> 17 | L53: =Model_inputs_new!I$142 -> 72 | N53: 37 | O53: 17 | P53: 72 | Q53: =Model_inputs_new!G70 -> 0.5 | R53: =Model_inputs_new!H70 -> 0.05 | S53: =Model_inputs_new!I70 -> 0.95 | T53: 1 | U53: 1 | V53: 1 | W53: 1 | X53: 1 | Y53: 1 | AD53: 0 | AE53: 0 | AF53: 0 | AG53: Total | AI53: 0 | AJ53: 0 | AK53: 0 | AL53: 0 | AM53: 0 | AN53: 0 | AQ53: 0 | AR53: 0 | AS53: 0 | AT53: 0 | AX53: 37 | AY53: 17 | AZ53: 72 | BA53: 14.03061224 | BB53: 3.543741202 | BC53: 0.3665425232 | BE53: 0 | BK53: 0 | BO53: 0 | BP53: 0 | BQ53: 0 | BS53: 37 | BT53: 27.53649585 | BU53: 46.46350415 | BW53: 0 | BX53: 0 | BY53: 0 | CA53: 1 | CB53: 1 | CC53: 0 | CD53: 0 | CE53: 1 | CF53: 1 | CG53: 1 | CI53: 0 | CJ53: 0 | CK53: 0 | CL53: 0 | CM53: 0 | CN53: 0 | CQ53: =Model_inputs_new!C15 -> 0 | CR53: =Model_inputs_new!D15 -> 0 | CS53: =Model_inputs_new!E15 -> 0 | CT53: 0 | CU53: 0 | CV53: 0
B54: =Model_inputs_new!$H$46 -> 304.702 | C54: 304.702 | D54: STI infections | E54: Benefits to the population | F54: Productivity cost | G54: Female | H54: Gonorrhea treatment | I54: STD lost productivity prevented | J54: =Model_inputs_new!G$148 -> 139 | K54: =Model_inputs_new!H$148 -> 41 | L54: =Model_inputs_new!I$148 -> 345 | N54: 139 | O54: 41 | P54: 345 | Q54: =Model_inputs_new!G71 -> 0.5 | R54: =Model_inputs_new!H71 -> 0.05 | S54: =Model_inputs_new!I71 -> 0.95 | T54: 1 | U54: 1 | V54: 1 | W54: 1 | X54: 1 | Y54: 1 | AD54: 0 | AE54: 0 | AF54: 0 | AG54: Total | AI54: 0 | AJ54: 0 | AK54: 0 | AL54: 0 | AM54: 0 | AN54: 0 | AQ54: 0 | AR54: 0 | AS54: 0 | AT54: 0 | AX54: 139 | AY54: 41 | AZ54: 345 | BA54: 77.55102041 | BB54: 4.798973635 | BC54: 0.520577177 | BE54: 0 | BK54: 0 | BO54: 0 | BP54: 0 | BQ54: 0 | BS54: 139 | BT54: 86.69263162 | BU54: 191.3073684 | BW54: 0 | BX54: 0 | BY54: 0 | CA54: 1 | CB54: 1 | CC54: 0 | CD54: 0 | CE54: 1 | CF54: 1 | CG54: 1 | CI54: 0 | CJ54: 0 | CK54: 0 | CL54: 0 | CM54: 0 | CN54: 0 | CQ54: =Model_inputs_new!C11 -> 0 | CR54: =Model_inputs_new!D11 -> 0 | CS54: =Model_inputs_new!E11 -> 0 | CT54: 0 | CU54: 0 | CV54: 0
B55: =Model_inputs_new!$H$46 -> 304.702 | C55: 304.702 | D55: STI infections | E55: Benefits to the population | F55: Productivity cost | G55: Male: Non-MSM | H55: Syphilis treatment | I55: STD lost productivity prevented | J55: =Model_inputs_new!G$144 -> 411 | K55: =Model_inputs_new!H$144 -> 176 | L55: =Model_inputs_new!I$144 -> 1004 | N55: 411 | O55: 176 | P55: 1004 | Q55: =Model_inputs_new!G72 -> 0.5 | R55: =Model_inputs_new!H72 -> 0.05 | S55: =Model_inputs_new!I72 -> 0.95 | T55: 1 | U55: 1 | V55: 1 | W55: 1 | X55: 1 | Y55: 1 | AD55: 0 | AE55: 0 | AF55: 0 | AG55: Total | AI55: 0 | AJ55: 0 | AK55: 0 | AL55: 0 | AM55: 0 | AN55: 0 | AQ55: 0 | AR55: 0 | AS55: 0 | AT55: 0 | AX55: 411 | AY55: 176 | AZ55: 1004 | BA55: 211.2244898 | BB55: 5.901404233 | BC55: 0.4841259788 | BE55: 0 | BK55: 0 | BO55: 0 | BP55: 0 | BQ55: 0 | BS55: 411 | BT55: 268.5312466 | BU55: 553.4687534 | BW55: 0 | BX55: 0 | BY55: 0 | CA55: 1 | CB55: 1 | CC55: 0 | CD55: 0 | CE55: 1 | CF55: 1 | CG55: 1 | CI55: 0 | CJ55: 0 | CK55: 0 | CL55: 0 | CM55: 0 | CN55: 0 | CQ55: =Model_inputs_new!C19 -> 0 | CR55: =Model_inputs_new!D19 -> 0 | CS55: =Model_inputs_new!E19 -> 0 | CT55: 0 | CU55: 0 | CV55: 0
B56: =Model_inputs_new!$H$46 -> 304.702 | C56: 304.702 | D56: STI infections | E56: Benefits to the population | F56: Productivity cost | G56: Male: MSM | H56: Syphilis treatment | I56: STD lost productivity prevented | J56: =Model_inputs_new!G$144 -> 411 | K56: =Model_inputs_new!H$144 -> 176 | L56: =Model_inputs_new!I$144 -> 1004 | N56: 411 | O56: 176 | P56: 1004 | Q56: =Model_inputs_new!G73 -> 0.5 | R56: =Model_inputs_new!H73 -> 0.05 | S56: =Model_inputs_new!I73 -> 0.95 | T56: 1 | U56: 1 | V56: 1 | W56: 1 | X56: 1 | Y56: 1 | AD56: 0 | AE56: 0 | AF56: 0 | AG56: Total | AI56: 0 | AJ56: 0 | AK56: 0 | AL56: 0 | AM56: 0 | AN56: 0 | AQ56: 0 | AR56: 0 | AS56: 0 | AT56: 0 | AX56: 411 | AY56: 176 | AZ56: 1004 | BA56: 211.2244898 | BB56: 5.901404233 | BC56: 0.4841259788 | BE56: 0 | BK56: 0 | BO56: 0 | BP56: 0 | BQ56: 0 | BS56: 411 | BT56: 268.5312466 | BU56: 553.4687534 | BW56: 0 | BX56: 0 | BY56: 0 | CA56: 1 | CB56: 1 | CC56: 0 | CD56: 0 | CE56: 1 | CF56: 1 | CG56: 1 | CI56: 0 | CJ56: 0 | CK56: 0 | CL56: 0 | CM56: 0 | CN56: 0 | CQ56: =Model_inputs_new!C21 -> 0 | CR56: =Model_inputs_new!D21 -> 0 | CS56: =Model_inputs_new!E21 -> 0 | CT56: 0 | CU56: 0 | CV56: 0
B57: =Model_inputs_new!$H$46 -> 304.702 | C57: 304.702 | D57: STI infections | E57: Benefits to the population | F57: Productivity cost | G57: Female | H57: Syphilis treatment | I57: STD lost productivity prevented | J57: =Model_inputs_new!G$145 -> 411 | K57: =Model_inputs_new!H$145 -> 176 | L57: =Model_inputs_new!I$145 -> 1004 | N57: 411 | O57: 176 | P57: 1004 | Q57: =Model_inputs_new!G74 -> 0.5 | R57: =Model_inputs_new!H74 -> 0.05 | S57: =Model_inputs_new!I74 -> 0.95 | T57: 1 | U57: 1 | V57: 1 | W57: 1 | X57: 1 | Y57: 1 | AD57: 0 | AE57: 0 | AF57: 0 | AG57: Total | AI57: 0 | AJ57: 0 | AK57: 0 | AL57: 0 | AM57: 0 | AN57: 0 | AQ57: 0 | AR57: 0 | AS57: 0 | AT57: 0 | AX57: 411 | AY57: 176 | AZ57: 1004 | BA57: 211.2244898 | BB57: 5.901404233 | BC57: 0.4841259788 | BE57: 0 | BK57: 0 | BO57: 0 | BP57: 0 | BQ57: 0 | BS57: 411 | BT57: 268.5312466 | BU57: 553.4687534 | BW57: 0 | BX57: 0 | BY57: 0 | CA57: 1 | CB57: 1 | CC57: 0 | CD57: 0 | CE57: 1 | CF57: 1 | CG57: 1 | CI57: 0 | CJ57: 0 | CK57: 0 | CL57: 0 | CM57: 0 | CN57: 0 | CQ57: =Model_inputs_new!C17 -> 0 | CR57: =Model_inputs_new!D17 -> 0 | CS57: =Model_inputs_new!E17 -> 0 | CT57: 0 | CU57: 0 | CV57: 0
B58: =Model_inputs_new!$H$46 -> 304.702 | C58: 304.702 | D58: HIV infections | E58: Benefits to the population | F58: Productivity cost | G58: Female | H58: Chlamydia treatment | I58: HIV lost productivity prevented | J58: =Model_inputs_new!G$146 -> 87458 | K58: =Model_inputs_new!H$146 -> 17387 | L58: =Model_inputs_new!I$146 -> 148158 | N58: 87458 | O58: 17387 | P58: 148158 | Q58: =Model_inputs_new!G77 -> 0.00022 | R58: =Model_inputs_new!H77 -> 2.2e-05 | S58: =Model_inputs_new!I77 -> 0.000418 | T58: =Q51+Model_inputs_new!G$52 -> 0.75 | U58: =R51+Model_inputs_new!H$52 -> 0.075 | V58: =S51+Model_inputs_new!I$52 -> 1.425 | W58: 1 | X58: 1 | Y58: 1 | AD58: 0 | AE58: 0 | AF58: 0 | AG58: Total | AI58: =CI58 -> 0 | AJ58: 0 | AK58: 0 | AL58: 0 | AM58: 0 | AN58: 0 | AQ58: 0 | AR58: 0 | AS58: 0 | AT58: 0 | AX58: 87458 | AY58: 17387 | AZ58: 148158 | BA58: 33359.94898 | BB58: 11.310995 | BC58: 0.3685619512 | BE58: 0 | BK58: 0 | BO58: 0 | BP58: 0 | BQ58: 0 | BS58: 87458 | BT58: 64957.05635 | BU58: 109958.9437 | BW58: 0 | BX58: 0 | BY58: 0 | CA58: 1 | CB58: 1 | CC58: 0 | CD58: 0 | CE58: 1 | CF58: 1 | CG58: 1 | CI58: 0 | CJ58: 0 | CK58: 0 | CL58: 0 | CM58: 0 | CN58: 0 | CQ58: =Model_inputs_new!C5 -> 0 | CR58: =Model_inputs_new!D5 -> 0 | CS58: =Model_inputs_new!E5 -> 0 | CT58: 0 | CU58: 0 | CV58: 0
B59: =Model_inputs_new!$H$46 -> 304.702 | C59: 304.702 | D59: HIV infections | E59: Benefits to the population | F59: Productivity cost | G59: Male: Non-MSM | H59: Chlamydia treatment | I59: HIV lost productivity prevented | J59: =Model_inputs_new!G$146 -> 87458 | K59: =Model_inputs_new!H$146 -> 17387 | L59: =Model_inputs_new!I$146 -> 148158 | N59: 87458 | O59: 17387 | P59: 148158 | Q59: =Model_inputs_new!G75 -> 0.00022 | R59: =Model_inputs_new!H75 -> 2.2e-05 | S59: =Model_inputs_new!I75 -> 0.000418 | T59: =Q49+Model_inputs_new!G$52 -> 0.75 | U59: =R49+Model_inputs_new!H$52 -> 0.075 | V59: =S49+Model_inputs_new!I$52 -> 1.425 | W59: 1 | X59: 1 | Y59: 1 | AD59: 0 | AE59: 0 | AF59: 0 | AG59: Total | AI59: 0 | AJ59: 0 | AK59: 0 | AL59: 0 | AM59: 0 | AN59: 0 | AQ59: 0 | AR59: 0 | AS59: 0 | AT59: 0 | AX59: 87458 | AY59: 17387 | AZ59: 148158 | BA59: 33359.94898 | BB59: 11.310995 | BC59: 0.3685619512 | BE59: 0 | BK59: 0 | BO59: 0 | BP59: 0 | BQ59: 0 | BS59: 87458 | BT59: 64957.05635 | BU59: 109958.9437 | BW59: 0 | BX59: 0 | BY59: 0 | CA59: 1 | CB59: 1 | CC59: 0 | CD59: 0 | CE59: 1 | CF59: 1 | CG59: 1 | CI59: 0 | CJ59: 0 | CK59: 0 | CL59: 0 | CM59: 0 | CN59: 0 | CQ59: =Model_inputs_new!C7 -> 0 | CR59: =Model_inputs_new!D7 -> 0 | CS59: =Model_inputs_new!E7 -> 0 | CT59: 0 | CU59: 0 | CV59: 0
B60: =Model_inputs_new!$H$46 -> 304.702 | C60: 304.702 | D60: HIV infections | E60: Benefits to the population | F60: Productivity cost | G60: Male: MSM | H60: Chlamydia treatment | I60: HIV lost productivity prevented | J60: =Model_inputs_new!G$146 -> 87458 | K60: =Model_inputs_new!H$146 -> 17387 | L60: =Model_inputs_new!I$146 -> 148158 | N60: 87458 | O60: 17387 | P60: 148158 | Q60: =Model_inputs_new!G76 -> 0.00439 | R60: =Model_inputs_new!H76 -> 0.002641 | S60: =Model_inputs_new!I76 -> 0.006574 | T60: =Q50+Model_inputs_new!G$52 -> 0.75 | U60: =R50+Model_inputs_new!H$52 -> 0.075 | V60: =S50+Model_inputs_new!I$52 -> 1.425 | W60: 1 | X60: 1 | Y60: 1 | AD60: 0 | AE60: 0 | AF60: 0 | AG60: Total | AI60: 0 | AJ60: 0 | AK60: 0 | AL60: 0 | AM60: 0 | AN60: 0 | AQ60: 0 | AR60: 0 | AS60: 0 | AT60: 0 | AX60: 87458 | AY60: 17387 | AZ60: 148158 | BA60: 33359.94898 | BB60: 11.310995 | BC60: 0.3685619512 | BE60: 0 | BK60: 0 | BO60: 0 | BP60: 0 | BQ60: 0 | BS60: 87458 | BT60: 64957.05635 | BU60: 109958.9437 | BW60: 0 | BX60: 0 | BY60: 0 | CA60: 1 | CB60: 1 | CC60: 0 | CD60: 0 | CE60: 1 | CF60: 1 | CG60: 1 | CI60: 0 | CJ60: 0 | CK60: 0 | CL60: 0 | CM60: 0 | CN60: 0 | CQ60: =Model_inputs_new!C9 -> 0 | CR60: =Model_inputs_new!D9 -> 0 | CS60: =Model_inputs_new!E9 -> 0 | CT60: 0 | CU60: 0 | CV60: 0
B61: =Model_inputs_new!$H$46 -> 304.702 | C61: 304.702 | D61: HIV infections | E61: Benefits to the population | F61: Productivity cost | G61: Female | H61: Gonorrhea treatment | I61: HIV lost productivity prevented | J61: =Model_inputs_new!G$146 -> 87458 | K61: =Model_inputs_new!H$146 -> 17387 | L61: =Model_inputs_new!I$146 -> 148158 | N61: 87458 | O61: 17387 | P61: 148158 | Q61: =Model_inputs_new!G80 -> 0.00022 | R61: =Model_inputs_new!H80 -> 2.2e-05 | S61: =Model_inputs_new!I80 -> 0.000418 | T61: =Q54+Model_inputs_new!G$52 -> 0.75 | U61: =R54+Model_inputs_new!H$52 -> 0.075 | V61: =S54+Model_inputs_new!I$52 -> 1.425 | W61: 1 | X61: 1 | Y61: 1 | AD61: 0 | AE61: 0 | AF61: 0 | AG61: Total | AI61: 0 | AJ61: 0 | AK61: 0 | AL61: 0 | AM61: 0 | AN61: 0 | AQ61: 0 | AR61: 0 | AS61: 0 | AT61: 0 | AX61: 87458 | AY61: 17387 | AZ61: 148158 | BA61: 33359.94898 | BB61: 11.310995 | BC61: 0.3685619512 | BE61: 0 | BK61: 0 | BO61: 0 | BP61: 0 | BQ61: 0 | BS61: 87458 | BT61: 64957.05635 | BU61: 109958.9437 | BW61: 0 | BX61: 0 | BY61: 0 | CA61: 1 | CB61: 1 | CC61: 0 | CD61: 0 | CE61: 1 | CF61: 1 | CG61: 1 | CI61: 0 | CJ61: 0 | CK61: 0 | CL61: 0 | CM61: 0 | CN61: 0 | CQ61: =Model_inputs_new!C11 -> 0 | CR61: =Model_inputs_new!D11 -> 0 | CS61: =Model_inputs_new!E11 -> 0 | CT61: 0 | CU61: 0 | CV61: 0
B62: =Model_inputs_new!$H$46 -> 304.702 | C62: 304.702 | D62: HIV infections | E62: Benefits to the population | F62: Productivity cost | G62: Male: Non-MSM | H62: Gonorrhea treatment | I62: HIV lost productivity prevented | J62: =Model_inputs_new!G$146 -> 87458 | K62: =Model_inputs_new!H$146 -> 17387 | L62: =Model_inputs_new!I$146 -> 148158 | N62: 87458 | O62: 17387 | P62: 148158 | Q62: =Model_inputs_new!G78 -> 0.00022 | R62: =Model_inputs_new!H78 -> 2.2e-05 | S62: =Model_inputs_new!I78 -> 0.000418 | T62: =Q52+Model_inputs_new!G$52 -> 0.75 | U62: =R52+Model_inputs_new!H$52 -> 0.075 | V62: =S52+Model_inputs_new!I$52 -> 1.425 | W62: 1 | X62: 1 | Y62: 1 | AD62: 0 | AE62: 0 | AF62: 0 | AG62: Total | AI62: 0 | AJ62: 0 | AK62: 0 | AL62: 0 | AM62: 0 | AN62: 0 | AQ62: 0 | AR62: 0 | AS62: 0 | AT62: 0 | AX62: 87458 | AY62: 17387 | AZ62: 148158 | BA62: 33359.94898 | BB62: 11.310995 | BC62: 0.3685619512 | BE62: 0 | BK62: 0 | BO62: 0 | BP62: 0 | BQ62: 0 | BS62: 87458 | BT62: 64957.05635 | BU62: 109958.9437 | BW62: 0 | BX62: 0 | BY62: 0 | CA62: 1 | CB62: 1 | CC62: 0 | CD62: 0 | CE62: 1 | CF62: 1 | CG62: 1 | CI62: 0 | CJ62: 0 | CK62: 0 | CL62: 0 | CM62: 0 | CN62: 0 | CQ62: =Model_inputs_new!C13 -> 0 | CR62: =Model_inputs_new!D13 -> 0 | CS62: =Model_inputs_new!E13 -> 0 | CT62: 0 | CU62: 0 | CV62: 0
B63: =Model_inputs_new!$H$46 -> 304.702 | C63: 304.702 | D63: HIV infections | E63: Benefits to the population | F63: Productivity cost | G63: Male: MSM | H63: Gonorrhea treatment | I63: HIV lost productivity prevented | J63: =Model_inputs_new!G$146 -> 87458 | K63: =Model_inputs_new!H$146 -> 17387 | L63: =Model_inputs_new!I$146 -> 148158 | N63: 87458 | O63: 17387 | P63: 148158 | Q63: =Model_inputs_new!G79 -> 0.00439 | R63: =Model_inputs_new!H79 -> 0.002641 | S63: =Model_inputs_new!I79 -> 0.006574 | T63: =Q53+Model_inputs_new!G$52 -> 0.75 | U63: =R53+Model_inputs_new!H$52 -> 0.075 | V63: =S53+Model_inputs_new!I$52 -> 1.425 | W63: 1 | X63: 1 | Y63: 1 | AD63: 0 | AE63: 0 | AF63: 0 | AG63: Total | AI63: 0 | AJ63: 0 | AK63: 0 | AL63: 0 | AM63: 0 | AN63: 0 | AQ63: 0 | AR63: 0 | AS63: 0 | AT63: 0 | AX63: 87458 | AY63: 17387 | AZ63: 148158 | BA63: 33359.94898 | BB63: 11.310995 | BC63: 0.3685619512 | BE63: 0 | BK63: 0 | BO63: 0 | BP63: 0 | BQ63: 0 | BS63: 87458 | BT63: 64957.05635 | BU63: 109958.9437 | BW63: 0 | BX63: 0 | BY63: 0 | CA63: 1 | CB63: 1 | CC63: 0 | CD63: 0 | CE63: 1 | CF63: 1 | CG63: 1 | CI63: 0 | CJ63: 0 | CK63: 0 | CL63: 0 | CM63: 0 | CN63: 0 | CQ63: =Model_inputs_new!C15 -> 0 | CR63: =Model_inputs_new!D15 -> 0 | CS63: =Model_inputs_new!E15 -> 0 | CT63: 0 | CU63: 0 | CV63: 0
B64: =Model_inputs_new!$H$46 -> 304.702 | C64: 304.702 | D64: HIV infections | E64: Benefits to the population | F64: Productivity cost | G64: Male: Non-MSM | H64: Syphilis treatment | I64: HIV lost productivity prevented | J64: =Model_inputs_new!G$146 -> 87458 | K64: =Model_inputs_new!H$146 -> 17387 | L64: =Model_inputs_new!I$146 -> 148158 | N64: 87458 | O64: 17387 | P64: 148158 | Q64: =Model_inputs_new!G81 -> 0.00462 | R64: =Model_inputs_new!H81 -> 0.000462 | S64: =Model_inputs_new!I81 -> 0.008778 | T64: =Q55+Model_inputs_new!G$52 -> 0.75 | U64: =R55+Model_inputs_new!H$52 -> 0.075 | V64: =S55+Model_inputs_new!I$52 -> 1.425 | W64: 1 | X64: 1 | Y64: 1 | AD64: 0 | AE64: 0 | AF64: 0 | AG64: Total | AI64: 0 | AJ64: 0 | AK64: 0 | AL64: 0 | AM64: 0 | AN64: 0 | AQ64: 0 | AR64: 0 | AS64: 0 | AT64: 0 | AX64: 87458 | AY64: 17387 | AZ64: 148158 | BA64: 33359.94898 | BB64: 11.310995 | BC64: 0.3685619512 | BE64: 0 | BK64: 0 | BO64: 0 | BP64: 0 | BQ64: 0 | BS64: 87458 | BT64: 64957.05635 | BU64: 109958.9437 | BW64: 0 | BX64: 0 | BY64: 0 | CA64: 1 | CB64: 1 | CC64: 0 | CD64: 0 | CE64: 1 | CF64: 1 | CG64: 1 | CI64: 0 | CJ64: 0 | CK64: 0 | CL64: 0 | CM64: 0 | CN64: 0 | CQ64: =Model_inputs_new!C19 -> 0 | CR64: =Model_inputs_new!D19 -> 0 | CS64: =Model_inputs_new!E19 -> 0 | CT64: 0 | CU64: 0 | CV64: 0
B65: =Model_inputs_new!$H$46 -> 304.702 | C65: 304.702 | D65: HIV infections | E65: Benefits to the population | F65: Productivity cost | G65: Male: MSM | H65: Syphilis treatment | I65: HIV lost productivity prevented | J65: =Model_inputs_new!G$146 -> 87458 | K65: =Model_inputs_new!H$146 -> 17387 | L65: =Model_inputs_new!I$146 -> 148158 | N65: 87458 | O65: 17387 | P65: 148158 | Q65: =Model_inputs_new!G82 -> 0.00462 | R65: =Model_inputs_new!H82 -> 0.000462 | S65: =Model_inputs_new!I82 -> 0.008778 | T65: =Q56+Model_inputs_new!G$52 -> 0.75 | U65: =R56+Model_inputs_new!H$52 -> 0.075 | V65: =S56+Model_inputs_new!I$52 -> 1.425 | W65: 1 | X65: 1 | Y65: 1 | AD65: 0 | AE65: 0 | AF65: 0 | AG65: Total | AI65: 0 | AJ65: 0 | AK65: 0 | AL65: 0 | AM65: 0 | AN65: 0 | AQ65: 0 | AR65: 0 | AS65: 0 | AT65: 0 | AX65: 87458 | AY65: 17387 | AZ65: 148158 | BA65: 33359.94898 | BB65: 11.310995 | BC65: 0.3685619512 | BE65: 0 | BK65: 0 | BO65: 0 | BP65: 0 | BQ65: 0 | BS65: 87458 | BT65: 64957.05635 | BU65: 109958.9437 | BW65: 0 | BX65: 0 | BY65: 0 | CA65: 1 | CB65: 1 | CC65: 0 | CD65: 0 | CE65: 1 | CF65: 1 | CG65: 1 | CI65: 0 | CJ65: 0 | CK65: 0 | CL65: 0 | CM65: 0 | CN65: 0 | CQ65: =Model_inputs_new!C21 -> 0 | CR65: =Model_inputs_new!D21 -> 0 | CS65: =Model_inputs_new!E21 -> 0 | CT65: 0 | CU65: 0 | CV65: 0
B66: =Model_inputs_new!$H$46 -> 304.702 | C66: 304.702 | D66: HIV infections | E66: Benefits to the population | F66: Productivity cost | G66: Female | H66: Syphilis treatment | I66: HIV lost productivity prevented | J66: =Model_inputs_new!G$146 -> 87458 | K66: =Model_inputs_new!H$146 -> 17387 | L66: =Model_inputs_new!I$146 -> 148158 | N66: 87458 | O66: 17387 | P66: 148158 | Q66: =Model_inputs_new!G83 -> 0.00462 | R66: =Model_inputs_new!H83 -> 0.000462 | S66: =Model_inputs_new!I83 -> 0.008778 | T66: =Q57+Model_inputs_new!G$52 -> 0.75 | U66: =R57+Model_inputs_new!H$52 -> 0.075 | V66: =S57+Model_inputs_new!I$52 -> 1.425 | W66: 1 | X66: 1 | Y66: 1 | AD66: 0 | AE66: 0 | AF66: 0 | AG66: Total | AI66: 0 | AJ66: 0 | AK66: 0 | AL66: 0 | AM66: 0 | AN66: 0 | AQ66: 0 | AR66: 0 | AS66: 0 | AT66: 0 | AX66: 87458 | AY66: 17387 | AZ66: 148158 | BA66: 33359.94898 | BB66: 11.310995 | BC66: 0.3685619512 | BE66: 0 | BK66: 0 | BO66: 0 | BP66: 0 | BQ66: 0 | BS66: 87458 | BT66: 64957.05635 | BU66: 109958.9437 | BW66: 0 | BX66: 0 | BY66: 0 | CA66: 1 | CB66: 1 | CC66: 0 | CD66: 0 | CE66: 1 | CF66: 1 | CG66: 1 | CI66: 0 | CJ66: 0 | CK66: 0 | CL66: 0 | CM66: 0 | CN66: 0 | CQ66: =Model_inputs_new!C17 -> 0 | CR66: =Model_inputs_new!D17 -> 0 | CS66: =Model_inputs_new!E17 -> 0 | CT66: 0 | CU66: 0 | CV66: 0
B67: =Model_inputs_new!$H$46 -> 304.702 | C67: 304.702 | D67: HIV infections | E67: Benefits to the population | F67: Productivity cost | G67: Male: Non-MSM | H67: HIV linkage to care | I67: HIV lost productivity prevented | J67: =Model_inputs_new!G$146 -> 87458 | K67: =Model_inputs_new!H$146 -> 17387 | L67: =Model_inputs_new!I$146 -> 148158 | N67: =J67*(B67/C67) -> 87458 | O67: =K67*(B67/C67) -> 17387 | P67: =L67*(B67/C67) -> 148158 | Q67: =Model_inputs_new!G84 -> 0.011 | R67: =Model_inputs_new!H84 -> 0.008 | S67: =Model_inputs_new!I84 -> 0.019 | T67: 1 | U67: 1 | V67: 1 | W67: 1 | X67: 1 | Y67: 1 | AD67: 0 | AE67: 0 | AF67: 0 | AG67: Total | AI67: 0 | AJ67: 0 | AK67: 0 | AL67: 0 | AM67: 0 | AN67: 0 | AQ67: =Q67*T67*W67*CQ67 -> 0 | AR67: =R67*U67*X67*CR67 -> 0 | AS67: =S67*V67*Y67*CS67 -> 0 | AT67: =(AS67-AR67)/(2*1.96) -> 0 | AU67: =LN(AQ67) - 0.5*LN(1 + ((AT67*AT67) / (AQ67*AQ67))) ->  | AV67: =POWER(LN(1 + ((AT67*AT67) / (AQ67*AQ67))),0.5) ->  | AX67: =N67 -> 87458 | AY67: 17387 | AZ67: 148158 | BA67: =(AZ67-AY67)/(2*1.96) -> 33359.94898 | BB67: =IFERROR(LN(AX67) - 0.5*LN(1 + ((BA67*BA67) / (AX67*AX67))),0) -> 11.310995 | BC67: =IFERROR(POWER(LN(1 + ((BA67*BA67) / (AX67*AX67))),0.5),0) -> 0.3685619512 | BE67: =AQ67 -> 0 | BF67: =_xlfn.LOGNORM.INV(0.25,$AU67,$AV67) ->  | BG67: =_xlfn.LOGNORM.INV(0.75,$AU67,$AV67) ->  | BI67: =AU67+BB67 ->  | BJ67: =SQRT((AV67*AV67)+(BC67*BC67)) ->  | BK67: =AX67*BE67 -> 0 | BL67: =_xlfn.LOGNORM.INV(0.25,$BI67,$BJ67) ->  | BM67: =_xlfn.LOGNORM.INV(0.75,$BI67,$BJ67) ->  | BO67: =AQ67 -> 0 | BP67: =MAX(0,IFERROR(_xlfn.NORM.INV(0.25,$AQ67,$AT67),AVERAGE(AQ67,AR67))) -> 0 | BQ67: =IFERROR(_xlfn.NORM.INV(0.75,$AQ67,$AT67),AVERAGE(AQ67,AS67)) -> 0 | BS67: =AX67 -> 87458 | BT67: =IFERROR(_xlfn.NORM.INV(0.25,$AX67,$BA67),AVERAGE(AX67,AY67)) -> 64957.05635 | BU67: =IFERROR(_xlfn.NORM.INV(0.75,$AX67,$BA67),AVERAGE(AX67,AZ67)) -> 109958.9437 | BW67: =BO67*BS67 -> 0 | BX67: =BP67*BT67 -> 0 | BY67: =BQ67*BU67 -> 0 | CA67: =IFERROR(IF(BE67<BF67,1,0),1) -> 1 | CB67: =IFERROR(IF(BE67>BG67,1,0),1) -> 1 | CC67: =IFERROR(IF(AX67<AY67,1,0),1) -> 0 | CD67: =IFERROR(IF(AX67>AZ67,1,0),1) -> 0 | CE67: =IFERROR(IF(BK67<BL67,1,0),1) -> 1 | CF67: =IFERROR(IF(BK67>BM67,1,0),1) -> 1 | CG67: =IFERROR(IF(SUM(CA67:CF67)=0,0,1),1) -> 1 | CI67: =IF($CG67=0,BF67, BP67) -> 0 | CJ67: 0 | CK67: =IF($CG67=0,BE67, BO67) -> 0 | CL67: =IF($CG67=0,BL67, BX67) -> 0 | CM67: 0 | CN67: =IF($CG67=0,BK67, BW67) -> 0 | CQ67: =Model_inputs_new!C23 -> 0 | CR67: =Model_inputs_new!D23 -> 0 | CS67: =Model_inputs_new!E23 -> 0 | CT67: =(CS67-CR67)/(2*1.96) -> 0 | CU67: =IFERROR(LN(CQ67) - 0.5*LN(1 + ((CT67*CT67) / (CQ67*CQ67))),0) -> 0 | CV67: =IFERROR(POWER(LN(1 + ((CT67*CT67) / (CQ67*CQ67))),0.5),0) -> 0
B68: =Model_inputs_new!$H$46 -> 304.702 | C68: 304.702 | D68: HIV infections | E68: Benefits to the population | F68: Productivity cost | G68: Male: MSM | H68: HIV linkage to care | I68: HIV lost productivity prevented | J68: =Model_inputs_new!G$146 -> 87458 | K68: =Model_inputs_new!H$146 -> 17387 | L68: =Model_inputs_new!I$146 -> 148158 | N68: =J68*(B68/C68) -> 87458 | O68: =K68*(B68/C68) -> 17387 | P68: =L68*(B68/C68) -> 148158 | Q68: =Model_inputs_new!G85 -> 0.011 | R68: =Model_inputs_new!H85 -> 0.008 | S68: =Model_inputs_new!I85 -> 0.019 | T68: 1 | U68: 1 | V68: 1 | W68: 1 | X68: 1 | Y68: 1 | AD68: 0 | AE68: 0 | AF68: 0 | AG68: Total | AI68: 0 | AJ68: 0 | AK68: 0 | AL68: 0 | AM68: 0 | AN68: 0 | AQ68: 0 | AR68: 0 | AS68: 0 | AT68: 0 | AX68: 87458 | AY68: 17387 | AZ68: 148158 | BA68: 33359.94898 | BB68: 11.310995 | BC68: 0.3685619512 | BE68: 0 | BK68: 0 | BO68: 0 | BP68: 0 | BQ68: 0 | BS68: 87458 | BT68: 64957.05635 | BU68: 109958.9437 | BW68: 0 | BX68: 0 | BY68: 0 | CA68: 1 | CB68: 1 | CC68: 0 | CD68: 0 | CE68: 1 | CF68: 1 | CG68: 1 | CI68: 0 | CJ68: 0 | CK68: 0 | CL68: 0 | CM68: 0 | CN68: 0 | CQ68: =Model_inputs_new!C24 -> 0 | CR68: =Model_inputs_new!D24 -> 0 | CS68: =Model_inputs_new!E24 -> 0 | CT68: 0 | CU68: 0 | CV68: 0
B69: =Model_inputs_new!$H$46 -> 304.702 | C69: 304.702 | D69: HIV infections | E69: Benefits to the population | F69: Productivity cost | G69: Female | H69: HIV linkage to care | I69: HIV lost productivity prevented | J69: =Model_inputs_new!G$146 -> 87458 | K69: =Model_inputs_new!H$146 -> 17387 | L69: =Model_inputs_new!I$146 -> 148158 | N69: =J69*(B69/C69) -> 87458 | O69: =K69*(B69/C69) -> 17387 | P69: =L69*(B69/C69) -> 148158 | Q69: =Model_inputs_new!G86 -> 0.011 | R69: =Model_inputs_new!H86 -> 0.008 | S69: =Model_inputs_new!I86 -> 0.019 | T69: 1 | U69: 1 | V69: 1 | W69: 1 | X69: 1 | Y69: 1 | AD69: 0 | AE69: 0 | AF69: 0 | AG69: Total | AI69: 0 | AJ69: 0 | AK69: 0 | AL69: 0 | AM69: 0 | AN69: 0 | AQ69: 0 | AR69: 0 | AS69: 0 | AT69: 0 | AX69: 87458 | AY69: 17387 | AZ69: 148158 | BA69: 33359.94898 | BB69: 11.310995 | BC69: 0.3685619512 | BE69: 0 | BK69: 0 | BO69: 0 | BP69: 0 | BQ69: 0 | BS69: 87458 | BT69: 64957.05635 | BU69: 109958.9437 | BW69: 0 | BX69: 0 | BY69: 0 | CA69: 1 | CB69: 1 | CC69: 0 | CD69: 0 | CE69: 1 | CF69: 1 | CG69: 1 | CI69: 0 | CJ69: 0 | CK69: 0 | CL69: 0 | CM69: 0 | CN69: 0 | CQ69: =Model_inputs_new!C22 -> 0 | CR69: =Model_inputs_new!D22 -> 0 | CS69: =Model_inputs_new!E22 -> 0 | CT69: 0 | CU69: 0 | CV69: 0
B70: =Model_inputs_new!$H$46 -> 304.702 | C70: 304.702 | D70: HIV infections | E70: Benefits to the population | F70: Productivity cost | G70: Female | H70: PrEP referral | I70: HIV lost productivity prevented | J70: =Model_inputs_new!G$146 -> 87458 | K70: =Model_inputs_new!H$146 -> 17387 | L70: =Model_inputs_new!I$146 -> 148158 | N70: =J70*(B70/C70) -> 87458 | O70: =K70*(B70/C70) -> 17387 | P70: =L70*(B70/C70) -> 148158 | Q70: =Model_inputs_new!G87 -> 0.0006 | R70: =Model_inputs_new!H87 -> 0.0004 | S70: =Model_inputs_new!I87 -> 0.00407 | T70: =Model_inputs_new!G$53 -> 0.74 | U70: =Model_inputs_new!H$53 -> 0.6 | V70: =Model_inputs_new!I$53 -> 0.82 | W70: =Model_inputs_new!G90 -> 0.049 | X70: =Model_inputs_new!H90 -> 0.024 | Y70: =Model_inputs_new!I90 -> 0.207 | AD70: 0 | AE70: 0 | AF70: 0 | AG70: Total | AI70: 0 | AJ70: 0 | AK70: 0 | AL70: 0 | AM70: 0 | AN70: 0 | AQ70: 0 | AR70: 0 | AS70: 0 | AT70: 0 | AX70: 87458 | AY70: 17387 | AZ70: 148158 | BA70: 33359.94898 | BB70: 11.310995 | BC70: 0.3685619512 | BE70: 0 | BK70: 0 | BO70: 0 | BP70: 0 | BQ70: 0 | BS70: 87458 | BT70: 64957.05635 | BU70: 109958.9437 | BW70: 0 | BX70: 0 | BY70: 0 | CA70: 1 | CB70: 1 | CC70: 0 | CD70: 0 | CE70: 1 | CF70: 1 | CG70: 1 | CI70: 0 | CJ70: 0 | CK70: 0 | CL70: 0 | CM70: 0 | CN70: 0 | CQ70: =Model_inputs_new!C26 -> 0 | CR70: =Model_inputs_new!D26 -> 0 | CS70: =Model_inputs_new!E26 -> 0 | CT70: 0 | CU70: 0 | CV70: 0
B71: =Model_inputs_new!$H$46 -> 304.702 | C71: 304.702 | D71: HIV infections | E71: Benefits to the population | F71: Productivity cost | G71: Male: Non-MSM | H71: PrEP referral | I71: HIV lost productivity prevented | J71: =Model_inputs_new!G$146 -> 87458 | K71: =Model_inputs_new!H$146 -> 17387 | L71: =Model_inputs_new!I$146 -> 148158 | N71: 87458 | O71: 17387 | P71: 148158 | Q71: =Model_inputs_new!G88 -> 0.0006 | R71: =Model_inputs_new!H88 -> 0.0004 | S71: =Model_inputs_new!I88 -> 0.00407 | T71: =Model_inputs_new!G$53 -> 0.74 | U71: =Model_inputs_new!H$53 -> 0.6 | V71: =Model_inputs_new!I$53 -> 0.82 | W71: =Model_inputs_new!G91 -> 0.049 | X71: =Model_inputs_new!H91 -> 0.024 | Y71: =Model_inputs_new!I91 -> 0.207 | AD71: 0 | AE71: 0 | AF71: 0 | AG71: Total | AI71: 0 | AJ71: 0 | AK71: 0 | AL71: 0 | AM71: 0 | AN71: 0 | AQ71: 0 | AR71: 0 | AS71: 0 | AT71: 0 | AX71: 87458 | AY71: 17387 | AZ71: 148158 | BA71: 33359.94898 | BB71: 11.310995 | BC71: 0.3685619512 | BE71: 0 | BK71: 0 | BO71: 0 | BP71: 0 | BQ71: 0 | BS71: 87458 | BT71: 64957.05635 | BU71: 109958.9437 | BW71: 0 | BX71: 0 | BY71: 0 | CA71: 1 | CB71: 1 | CC71: 0 | CD71: 0 | CE71: 1 | CF71: 1 | CG71: 1 | CI71: 0 | CJ71: 0 | CK71: 0 | CL71: 0 | CM71: 0 | CN71: 0 | CQ71: =Model_inputs_new!C27 -> 0 | CR71: =Model_inputs_new!D27 -> 0 | CS71: =Model_inputs_new!E27 -> 0 | CT71: 0 | CU71: 0 | CV71: 0
B72: =Model_inputs_new!$H$46 -> 304.702 | C72: 304.702 | D72: HIV infections | E72: Benefits to the population | F72: Productivity cost | G72: Male: MSM | H72: PrEP referral | I72: HIV lost productivity prevented | J72: =Model_inputs_new!G$146 -> 87458 | K72: =Model_inputs_new!H$146 -> 17387 | L72: =Model_inputs_new!I$146 -> 148158 | N72: 87458 | O72: 17387 | P72: 148158 | Q72: =Model_inputs_new!G89 -> 0.00586 | R72: =Model_inputs_new!H89 -> 0.00395 | S72: =Model_inputs_new!I89 -> 0.04 | T72: =Model_inputs_new!G$53 -> 0.74 | U72: =Model_inputs_new!H$53 -> 0.6 | V72: =Model_inputs_new!I$53 -> 0.82 | W72: =Model_inputs_new!G92 -> 0.049 | X72: =Model_inputs_new!H92 -> 0.024 | Y72: =Model_inputs_new!I92 -> 0.207 | AD72: 0 | AE72: 0 | AF72: 0 | AG72: Total | AI72: 0 | AJ72: 0 | AK72: 0 | AL72: 0 | AM72: 0 | AN72: 0 | AQ72: 0 | AR72: 0 | AS72: 0 | AT72: 0 | AX72: 87458 | AY72: 17387 | AZ72: 148158 | BA72: 33359.94898 | BB72: 11.310995 | BC72: 0.3685619512 | BE72: 0 | BK72: 0 | BO72: 0 | BP72: 0 | BQ72: 0 | BS72: 87458 | BT72: 64957.05635 | BU72: 109958.9437 | BW72: 0 | BX72: 0 | BY72: 0 | CA72: 1 | CB72: 1 | CC72: 0 | CD72: 0 | CE72: 1 | CF72: 1 | CG72: 1 | CI72: 0 | CJ72: 0 | CK72: 0 | CL72: 0 | CM72: 0 | CN72: 0 | CQ72: =Model_inputs_new!C28 -> 0 | CR72: =Model_inputs_new!D28 -> 0 | CS72: =Model_inputs_new!E28 -> 0 | CT72: 0 | CU72: 0 | CV72: 0
B73: =Model_inputs_new!$H$46 -> 304.702 | C73: 304.702 | D73: HIV infections | E73: Benefits to the population | F73: Productivity cost | G73: Female | H73: PrEP provision | I73: HIV lost productivity prevented | J73: =Model_inputs_new!G$146 -> 87458 | K73: =Model_inputs_new!H$146 -> 17387 | L73: =Model_inputs_new!I$146 -> 148158 | N73: 87458 | O73: 17387 | P73: 148158 | Q73: =Model_inputs_new!G87 -> 0.0006 | R73: =Model_inputs_new!H87 -> 0.0004 | S73: =Model_inputs_new!I87 -> 0.00407 | T73: =Model_inputs_new!G$53 -> 0.74 | U73: =Model_inputs_new!H$53 -> 0.6 | V73: =Model_inputs_new!I$53 -> 0.82 | W73: 1 | X73: 1 | Y73: 1 | AD73: 0 | AE73: 0 | AF73: 0 | AG73: Total | AI73: 0 | AJ73: 0 | AK73: 0 | AL73: 0 | AM73: 0 | AN73: 0 | AQ73: 0 | AR73: 0 | AS73: 0 | AT73: 0 | AX73: 87458 | AY73: 17387 | AZ73: 148158 | BA73: 33359.94898 | BB73: 11.310995 | BC73: 0.3685619512 | BE73: 0 | BK73: 0 | BO73: 0 | BP73: 0 | BQ73: 0 | BS73: 87458 | BT73: 64957.05635 | BU73: 109958.9437 | BW73: 0 | BX73: 0 | BY73: 0 | CA73: 1 | CB73: 1 | CC73: 0 | CD73: 0 | CE73: 1 | CF73: 1 | CG73: 1 | CI73: 0 | CJ73: 0 | CK73: 0 | CL73: 0 | CM73: 0 | CN73: 0 | CQ73: =Model_inputs_new!C29 -> 0 | CR73: =Model_inputs_new!D29 -> 0 | CS73: =Model_inputs_new!E29 -> 0 | CT73: 0 | CU73: 0 | CV73: 0
B74: =Model_inputs_new!$H$46 -> 304.702 | C74: 304.702 | D74: HIV infections | E74: Benefits to the population | F74: Productivity cost | G74: Male: Non-MSM | H74: PrEP provision | I74: HIV lost productivity prevented | J74: =Model_inputs_new!G$146 -> 87458 | K74: =Model_inputs_new!H$146 -> 17387 | L74: =Model_inputs_new!I$146 -> 148158 | N74: 87458 | O74: 17387 | P74: 148158 | Q74: =Model_inputs_new!G88 -> 0.0006 | R74: =Model_inputs_new!H88 -> 0.0004 | S74: =Model_inputs_new!I88 -> 0.00407 | T74: =Model_inputs_new!G$53 -> 0.74 | U74: =Model_inputs_new!H$53 -> 0.6 | V74: =Model_inputs_new!I$53 -> 0.82 | W74: 1 | X74: 1 | Y74: 1 | AD74: 0 | AE74: 0 | AF74: 0 | AG74: Total | AI74: 0 | AJ74: 0 | AK74: 0 | AL74: 0 | AM74: 0 | AN74: 0 | AQ74: 0 | AR74: 0 | AS74: 0 | AT74: 0 | AX74: 87458 | AY74: 17387 | AZ74: 148158 | BA74: 33359.94898 | BB74: 11.310995 | BC74: 0.3685619512 | BE74: 0 | BK74: 0 | BO74: 0 | BP74: 0 | BQ74: 0 | BS74: 87458 | BT74: 64957.05635 | BU74: 109958.9437 | BW74: 0 | BX74: 0 | BY74: 0 | CA74: 1 | CB74: 1 | CC74: 0 | CD74: 0 | CE74: 1 | CF74: 1 | CG74: 1 | CI74: 0 | CJ74: 0 | CK74: 0 | CL74: 0 | CM74: 0 | CN74: 0 | CQ74: =Model_inputs_new!C30 -> 0 | CR74: =Model_inputs_new!D30 -> 0 | CS74: =Model_inputs_new!E30 -> 0 | CT74: 0 | CU74: 0 | CV74: 0
B75: =Model_inputs_new!$H$46 -> 304.702 | C75: 304.702 | D75: HIV infections | E75: Benefits to the population | F75: Productivity cost | G75: Male: MSM | H75: PrEP provision | I75: HIV lost productivity prevented | J75: =Model_inputs_new!G$146 -> 87458 | K75: =Model_inputs_new!H$146 -> 17387 | L75: =Model_inputs_new!I$146 -> 148158 | N75: 87458 | O75: 17387 | P75: 148158 | Q75: =Model_inputs_new!G89 -> 0.00586 | R75: =Model_inputs_new!H89 -> 0.00395 | S75: =Model_inputs_new!I89 -> 0.04 | T75: =Model_inputs_new!G$53 -> 0.74 | U75: =Model_inputs_new!H$53 -> 0.6 | V75: =Model_inputs_new!I$53 -> 0.82 | W75: 1 | X75: 1 | Y75: 1 | AD75: 0 | AE75: 0 | AF75: 0 | AG75: Total | AI75: 0 | AJ75: 0 | AK75: 0 | AL75: 0 | AM75: 0 | AN75: 0 | AQ75: 0 | AR75: 0 | AS75: 0 | AT75: 0 | AX75: 87458 | AY75: 17387 | AZ75: 148158 | BA75: 33359.94898 | BB75: 11.310995 | BC75: 0.3685619512 | BE75: 0 | BK75: 0 | BO75: 0 | BP75: 0 | BQ75: 0 | BS75: 87458 | BT75: 64957.05635 | BU75: 109958.9437 | BW75: 0 | BX75: 0 | BY75: 0 | CA75: 1 | CB75: 1 | CC75: 0 | CD75: 0 | CE75: 1 | CF75: 1 | CG75: 1 | CI75: 0 | CJ75: 0 | CK75: 0 | CL75: 0 | CM75: 0 | CN75: 0 | CQ75: =Model_inputs_new!C31 -> 0 | CR75: =Model_inputs_new!D31 -> 0 | CS75: =Model_inputs_new!E31 -> 0 | CT75: 0 | CU75: 0 | CV75: 0

Sheet Model_inputs_new (hidden)
M1: Number in category | W1: Probability actually infected and receive treatment | AG1: Number treated who are actually infected
M2: Female | P2: Non-MSM | S2: MSM | W2: Female | Z2: Non-MSM | AC2: MSM | AG2: Female | AJ2: Non-MSM | AM2: MSM
A3: Model inputs | F3: User inputs | H3: All male | I3: Female | J3: Non-MSM | K3: MSM | M3: base | N3: low | O3: high | P3: base | Q3: low | R3: high | S3: base | T3: low | U3: high | W3: base | X3: low | Y3: high | Z3: base | AA3: low | AB3: high | AC3: base | AD3: low | AE3: high | AG3: base | AH3: low | AI3: high | AJ3: base | AK3: low | AL3: high | AM3: base | AN3: low | AO3: high
A4: Cw | B4: number of women with chlamydia treated | C4: =AG4+AG7+AG10+AG13 -> 0 | D4: =AH4+AH7+AH10+AH13 -> 0 | E4: 0 | F4: Number of persons treated for lab-confirmed infections | G4: Chlamydia | H4: =VALUE('User input'!D6) -> 0 | I4: =VALUE('User input'!E6) -> 0 | J4: =H4-K4 -> 0 | K4: =H4*J40 -> 0 | M4: =$I4 -> 0 | N4: =$I4 -> 0 | O4: 0 | P4: =$H4*(1-$J40) -> 0 | Q4: =$H4*(1-$L40) -> 0 | R4: =$H4*(1-$K40) -> 0 | S4: =$H4*$J40 -> 0 | T4: =$H4*$K40 -> 0 | U4: =$H4*$L40 -> 0 | W4: 1 | X4: 1 | Y4: 1 | Z4: 1 | AA4: 1 | AB4: 1 | AC4: 1 | AD4: 1 | AE4: 1 | AG4: =M4*W4 -> 0 | AH4: =N4*X4 -> 0 | AI4: 0 | AJ4: 0 | AK4: 0 | AL4: 0 | AM4: 0 | AN4: 0 | AO4: 0
A5: Cw-hat | B5: number of women with chlamydia treated, excluding partners | C5: =AG4+AG13 -> 0 | D5: =AH4+AH13 -> 0 | E5: 0 | F5: Number of persons treated for lab-confirmed infections | G5: Gonorrhea | H5: =VALUE('User input'!D10) -> 0 | I5: =VALUE('User input'!E10) -> 0 | J5: =H5-K5 -> 0 | K5: =H5*J41 -> 0 | M5: =$I5 -> 0 | N5: 0 | O5: 0 | P5: =$H5*(1-$J41) -> 0 | Q5: =$H5*(1-$L41) -> 0 | R5: =$H5*(1-$K41) -> 0 | S5: =$H5*$J41 -> 0 | T5: =$H5*$K41 -> 0 | U5: =$H5*$L41 -> 0 | W5: 1 | X5: 1 | Y5: 1 | Z5: 1 | AA5: 1 | AB5: 1 | AC5: 1 | AD5: 1 | AE5: 1 | AG5: =M5*W5 -> 0 | AH5: 0 | AI5: 0 | AJ5: 0 | AK5: 0 | AL5: 0 | AM5: 0 | AN5: 0 | AO5: 0
A6: Cm | B6: number of hetero men with chlamydia treated | C6: =AJ4+AJ7+AJ10+AJ13 -> 0 | D6: =AK4+AK7+AK10+AK13 -> 0 | E6: 0 | F6: Number of persons treated for lab-confirmed infections | G6: Syphilis | H6: =VALUE('User input'!D14) -> 0 | I6: =VALUE('User input'!E14) -> 0 | J6: 0 | K6: 0 | M6: 0 | N6: 0 | O6: 0 | P6: 0 | Q6: 0 | R6: 0 | S6: 0 | T6: 0 | U6: 0 | W6: 1 | X6: 1 | Y6: 1 | Z6: 1 | AA6: 1 | AB6: 1 | AC6: 1 | AD6: 1 | AE6: 1 | AG6: 0 | AH6: 0 | AI6: 0 | AJ6: 0 | AK6: 0 | AL6: 0 | AM6: 0 | AN6: 0 | AO6: 0
A7: Cm-hat | B7: number of hetero men with chlamydia treated, excluding partners | C7: =AJ4+AJ13 -> 0 | D7: =AK4+AK13 -> 0 | E7: 0 | F7: Volume of EPT prescribed | G7: Chlamydia | H7: =VALUE('User input'!D8) -> 0 | I7: =VALUE('User input'!E8) -> 0 | J7: 0 | K7: =H7*J40 -> 0 | M7: 0 | N7: 0 | O7: 0 | P7: =$H7*(1-$J40) -> 0 | Q7: =$H7*(1-$L40) -> 0 | R7: =$H7*(1-$K40) -> 0 | S7: =$H7*$J40 -> 0 | T7: =$H7*$K40 -> 0 | U7: =$H7*$L40 -> 0 | W7: =G93*G96 -> 0.1364 | X7: =H93*H96 -> 0.0714 | Y7: 0.22878 | Z7: =G94*G97 -> 0.1364 | AA7: =H94*H97 -> 0.0714 | AB7: 0.22878 | AC7: =G95*G98 -> 0.1364 | AD7: =H95*H98 -> 0.0714 | AE7: 0.22878 | AG7: =P7*W7 -> 0 | AH7: =Q7*X7 -> 0 | AI7: 0 | AJ7: =M7*Z7 -> 0 | AK7: =N7*AA7 -> 0 | AL7: 0 | AM7: =S7*AC7 -> 0 | AN7: 0 | AO7: 0
A8: Cmsm | B8: number of MSM with chlamydia treated | C8: =AM4+AM7+AM10+AM13 -> 0 | D8: =AN4+AN7+AN10+AN13 -> 0 | E8: 0 | F8: Volume of EPT prescribed | G8: Gonorrhea | H8: =VALUE('User input'!D12) -> 0 | I8: =VALUE('User input'!E12) -> 0 | J8: 0 | K8: =H8*J41 -> 0 | M8: 0 | N8: 0 | O8: 0 | P8: =$H8*(1-$J41) -> 0 | Q8: =$H8*(1-$L41) -> 0 | R8: =$H8*(1-$K41) -> 0 | S8: =$H8*$J41 -> 0 | T8: =$H8*$K41 -> 0 | U8: =$H8*$L41 -> 0 | W8: =G93*G99 -> 0.1364 | X8: =H93*H99 -> 0.0714 | Y8: =I93*I99 -> 0.22878 | Z8: =G94*G100 -> 0.1364 | AA8: =H94*H100 -> 0.0714 | AB8: 0.22878 | AC8: =G95*G101 -> 0.1364 | AD8: 0.0441 | AE8: 0.1681 | AG8: =P8*W8 -> 0 | AH8: 0 | AI8: 0 | AJ8: =M8*Z8 -> 0 | AK8: =N8*AA8 -> 0 | AL8: 0 | AM8: =S8*AC8 -> 0 | AN8: 0 | AO8: 0
A9: Cmsm-hat | B9: number of MSM with chlamydia treated, excluding partners | C9: =AM4+AM13 -> 0 | D9: =AN4+AN13 -> 0 | E9: =AO4+AO13 -> 0 | F9: Volume of EPT prescribed | G9: Syphilis | H9: 0 | I9: 0 | J9: 0 | K9: 0 | M9: 0 | N9: 0 | O9: 0 | P9: 0 | Q9: 0 | R9: 0 | S9: 0 | T9: 0 | U9: 0 | W9: =G93*G102 -> 0.13112 | X9: =H93*H102 -> 0.034 | Y9: 0.4464 | Z9: =G94*G103 -> 0.13112 | AA9: =H94*H103 -> 0.034 | AB9: 0.4464 | AC9: =G95*G104 -> 0.13112 | AD9: =H95*H104 -> 0.034 | AE9: 0.4464 | AG9: 0 | AH9: 0 | AI9: 0 | AJ9: 0 | AK9: 0 | AL9: 0 | AM9: 0 | AN9: 0 | AO9: 0
A10: Gw | B10: number of women with gonorrhea treated | C10: =AG5+AG8+AG11+AG14 -> 0 | D10: =AH5+AH8+AH11+AH14 -> 0 | E10: 0 | F10: Number of persons receiving epi treatment | G10: Chlamydia | H10: =VALUE('User input'!D7) -> 0 | I10: =VALUE('User input'!E7) -> 0 | J10: 0 | K10: =H10*J40 -> 0 | M10: 0 | N10: 0 | O10: 0 | P10: =$H10*(1-$J40) -> 0 | Q10: =$H10*(1-$L40) -> 0 | R10: =$H10*(1-$K40) -> 0 | S10: =$H10*$J40 -> 0 | T10: =$H10*$K40 -> 0 | U10: =$H10*$L40 -> 0 | W10: =G96 -> 0.31 | X10: =H96 -> 0.21 | Y10: 0.41 | Z10: =G97 -> 0.31 | AA10: =H97 -> 0.21 | AB10: 0.41 | AC10: =G98 -> 0.31 | AD10: =H98 -> 0.21 | AE10: 0.41 | AG10: =M10*W10 -> 0 | AH10: =N10*X10 -> 0 | AI10: 0 | AJ10: 0 | AK10: 0 | AL10: 0 | AM10: 0 | AN10: 0 | AO10: 0
A11: Gw-hat | B11: number of women with gonorrhea treated, excluding partners | C11: =AG5+AG14 -> 0 | D11: =AH5+AH14 -> 0 | E11: 0 | F11: Number of persons receiving epi treatment | G11: Gonorrhea | H11: =VALUE('User input'!D11) -> 0 | I11: =VALUE('User input'!E11) -> 0 | J11: 0 | K11: =H11*J41 -> 0 | M11: 0 | N11: 0 | O11: 0 | P11: =$H11*(1-$J41) -> 0 | Q11: =$H11*(1-$L41) -> 0 | R11: =$H11*(1-$K41) -> 0 | S11: =$H11*$J41 -> 0 | T11: =$H11*$K41 -> 0 | U11: =$H11*$L41 -> 0 | W11: =G99 -> 0.31 | X11: =H99 -> 0.21 | Y11: 0.41 | Z11: =G100 -> 0.31 | AA11: =H100 -> 0.21 | AB11: 0.41 | AC11: =G101 -> 0.31 | AD11: =H101 -> 0.21 | AE11: 0.41 | AG11: =M11*W11 -> 0 | AH11: 0 | AI11: 0 | AJ11: 0 | AK11: 0 | AL11: 0 | AM11: 0 | AN11: 0 | AO11: 0
A12: Gm | B12: number of hetero men with gonorrhea treated | C12: =AJ5+AJ8+AJ11+AJ14 -> 0 | D12: =AK5+AK8+AK11+AK14 -> 0 | E12: =AL5+AL8+AL11+AL14 -> 0 | F12: Number of persons receiving epi treatment | G12: Syphilis | H12: =VALUE('User input'!D15) -> 0 | I12: =VALUE('User input'!E15) -> 0 | J12: 0 | K12: 0 | M12: 0 | N12: 0 | O12: 0 | P12: 0 | Q12: 0 | R12: 0 | S12: 0 | T12: 0 | U12: 0 | W12: =G102 -> 0.298 | X12: =H102 -> 0.1 | Y12: 0.8 | Z12: =G103 -> 0.298 | AA12: =H103 -> 0.1 | AB12: 0.8 | AC12: =G104 -> 0.298 | AD12: =H104 -> 0.1 | AE12: 0.8 | AG12: 0 | AH12: 0 | AI12: 0 | AJ12: 0 | AK12: 0 | AL12: 0 | AM12: 0 | AN12: 0 | AO12: 0
A13: Gm-hat | B13: number of hetero men with gonorrhea treated, excluding partners | C13: =AJ5 + AJ14 -> 0 | D13: =AK5 + AK14 -> 0 | E13: 0 | F13: Number treated presumptively for CT based on GC | G13: Chlamydia | H13: =VALUE('User input'!D9) -> 0 | I13: =VALUE('User input'!E9) -> 0 | J13: 0 | K13: =H13*J$41 -> 0 | M13: 0 | N13: 0 | O13: 0 | P13: =$H13*(1-$J41) -> 0 | Q13: =$H13*(1-$L41) -> 0 | R13: =$H13*(1-$K41) -> 0 | S13: =$H13*$J41 -> 0 | T13: =$H13*$K41 -> 0 | U13: =$H13*$L41 -> 0 | W13: =G59 -> 0.354 | X13: =H59 -> 0.26 | Y13: =I59 -> 0.4 | Z13: =G60 -> 0.236 | AA13: =H60 -> 0.15 | AB13: 0.35 | AC13: =G61 -> 0.236 | AD13: =H61 -> 0.15 | AE13: 0.35 | AG13: 0 | AH13: 0 | AI13: 0 | AJ13: 0 | AK13: 0 | AL13: 0 | AM13: 0 | AN13: 0 | AO13: 0
A14: Gmsm | B14: number of MSM with gonorrhea treated | C14: =AM5+AM8+AM11+AM14 -> 0 | D14: =AN5+AN8+AN11+AN14 -> 0 | E14: 0 | F14: Number treated presumptively for GC based on CT | G14: Gonorrhea | H14: =VALUE('User input'!D13) -> 0 | I14: =VALUE('User input'!E13) -> 0 | J14: 0 | K14: =H14*J40 -> 0 | M14: 0 | N14: 0 | O14: 0 | P14: =$H14*(1-$J40) -> 0 | Q14: =$H14*(1-$L40) -> 0 | R14: =$H14*(1-$K40) -> 0 | S14: =$H14*$J40 -> 0 | T14: =$H14*$K40 -> 0 | U14: =$H14*$L40 -> 0 | W14: =G105 -> 0.042 | X14: =H105 -> 0.024 | Y14: 0.062 | Z14: =G107 -> 0.011 | AA14: =H107 -> 0.005 | AB14: 0.023 | AC14: =G107 -> 0.011 | AD14: =H107 -> 0.005 | AE14: 0.023 | AG14: 0 | AH14: 0 | AI14: 0 | AJ14: =P14*Z14 -> 0 | AK14: =Q14*AA14 -> 0 | AL14: 0 | AM14: 0 | AN14: 0 | AO14: 0
A15: Gmsm-hat | B15: number of MSM with gonorrhea treated, excluding partners | C15: =AM5+AM14 -> 0 | D15: =AN5+AN14 -> 0 | E15: 0 | F15: Number receiving HIV linkage to care | G15: HIV linkage | H15: =VALUE('User input'!D17)+VALUE('User input'!D18) -> 0 | I15: =VALUE('User input'!E17+'User input'!E18) -> 0 | J15: 0 | K15: =H15*J43 -> 0 | M15: 0 | N15: 0 | O15: 0 | P15: =$H15*(1-$J43) -> 0 | Q15: =$H15*(1-$L43) -> 0 | R15: =$H15*(1-$K43) -> 0 | S15: =$H15*$J43 -> 0 | T15: =$H15*$K43 -> 0 | U15: =$H15*$L43 -> 0
A16: Sw | B16: number of women with syphilis treated | C16: =AG6+AG9+AG12 -> 0 | D16: =AH6+AH9+AH12 -> 0 | E16: 0 | F16: Number referred to PrEP | G16: PrEP referral | H16: =VALUE('User input'!D19) -> 0 | I16: =VALUE('User input'!E19) -> 0 | J16: =H16-K16 -> 0 | K16: =H16*J43 -> 0 | M16: 0 | N16: 0 | O16: 0 | P16: =$H16*(1-$J44) -> 0 | Q16: =$H16*(1-$L44) -> 0 | R16: =$H16*(1-$K44) -> 0 | S16: =$H16*$J44 -> 0 | T16: =$H16*$K44 -> 0 | U16: =$H16*$L44 -> 0
A17: Sw-hat | B17: number of women with syphilis treated, excluding partners | C17: =AG6 -> 0 | D17: =AH6 -> 0 | E17: 0 | F17: Number provided with PrEP | G17: PrEP provision | H17: =VALUE('User input'!D20) -> 0 | I17: =VALUE('User input'!E20) -> 0 | J17: =H17-K17 -> 0 | K17: =H17*J43 -> 0 | M17: 0 | N17: 0 | O17: 0 | P17: =$H17*(1-$J44) -> 0 | Q17: =$H17*(1-$L44) -> 0 | R17: =$H17*(1-$K44) -> 0 | S17: =$H17*$J44 -> 0 | T17: =$H17*$K44 -> 0 | U17: =$H17*$L44 -> 0
A18: Sm | B18: number of hetero men with syphilis treated | C18: =AJ6+AJ9+AJ12 -> 0 | D18: =AK6+AK9+AK12 -> 0 | E18: 0 | F18: Number of pregnant women treated for syphilis | G18: lab-confirmed | I18: =VALUE('User input'!$E14)*J$39 -> 0 | J18: =VALUE('User input'!$E14)*K$39 -> 0 | K18: =VALUE('User input'!$E14)*L$39 -> 0
A19: Sm-hat | B19: number of hetero men with syphilis treated, excluding partners | C19: =AJ6 -> 0 | D19: =AK6 -> 0 | E19: 0 | F19: Number of pregnant women treated for syphilis | G19: EPT | I19: =VALUE('User input'!$E16)*J$39*G102*G93 -> 0 | J19: =VALUE('User input'!$E16)*K$39*H102*H93 -> 0 | K19: =VALUE('User input'!$E16)*L$39*I102*I93 -> 0
A20: Smsm | B20: number of MSM with syphilis treated | C20: =AM6+AM9+AM12 -> 0 | D20: =AN6+AN9+AN12 -> 0 | E20: 0 | F20: Number of pregnant women treated for syphilis | G20: epi-treatment | I20: =VALUE('User input'!$E15)*J$39*G102 -> 0 | J20: =VALUE('User input'!$E15)*K$39*H102 -> 0 | K20: =VALUE('User input'!$E15)*L$39*I102 -> 0
A21: Smsm-hat | B21: number of MSM with syphilis treated, excluding partners | C21: =AM6 -> 0 | D21: =AN6 -> 0 | E21: 0 | I21: base | J21: low | K21: high
A22: Hw | B22: number of women linked to HIV care | C22: =M15 -> 0 | D22: =N15 -> 0 | E22: 0
A23: Hm | B23: number of hetero men linked to HIV care | C23: =P15 -> 0 | D23: =Q15 -> 0 | E23: 0
A24: Hmsm | B24: number of msm linked to HIV care | C24: =S15 -> 0 | D24: =T15 -> 0 | E24: 0
A25: Sp | B25: number of infected pregnant women treated for syphilis | C25: =SUM(I18:I20) -> 0 | D25: =SUM(J18:J20) -> 0 | E25: 0
A26: Rw | B26: number of women referred to PrEP | C26: =M16 -> 0 | D26: =N16 -> 0 | E26: 0
A27: Rm | B27: number of men referred to PrEP | C27: =P16 -> 0 | D27: =Q16 -> 0 | E27: 0
A28: Rmsm | B28: number of MSM referred to PrEP | C28: =S16 -> 0 | D28: =T16 -> 0 | E28: 0
A29: Pw | B29: number of women provided with PrEP | C29: =M17 -> 0 | D29: =N17 -> 0 | E29: 0
A30: Pm | B30: number of men provided with PrEP | C30: =P17 -> 0 | D30: =Q17 -> 0 | E30: 0
A31: Pmsm | B31: number of MSM provided with PrEP | C31: =S17 -> 0 | D31: =T17 -> 0 | E31: 0
L32: =12*0.59 -> 7.08
G37: Default values | J37: Values applied
F38: Optional inputs (modifiable by user)* | G38: base | H38: low | I38: high | J38: Base | K38: Low | L38: High | O38: Low absolute | P38: Low relative | Q38: High absolute | R38: High relative
F39: % of females with syphilis who are pregnant | G39: 0.146 | H39: 0.056 | I39: 0.181 | J39: =IF(AND(ISNUMBER('User input'!D23),'User input'!D23<=1), 'User input'!D23, G39) -> 0.146 | K39: =MAX(0,MIN(J39*P39,J39-O39)) -> 0.056 | L39: =MIN(1,MAX(J39*R39,J39+Q39)) -> 0.181 | O39: =G39-H39 -> 0.09 | P39: =H39/G39 -> 0.3835616438 | Q39: =I39-G39 -> 0.035 | R39: =I39/G39 -> 1.239726027
F40: % of chlamydia cases in men that occur in MSM | G40: 0.107 | H40: 0.039 | I40: 0.175 | J40: =IF(AND(ISNUMBER('User input'!D24),'User input'!D24<=1), 'User input'!D24, G40) -> 0.107 | K40: =MAX(0,MIN(J40*P40,J40-O40)) -> 0.039 | L40: =MIN(1,MAX(J40*R40,J40+Q40)) -> 0.175 | O40: =G40-H40 -> 0.068 | P40: =H40/G40 -> 0.3644859813 | Q40: =I40-G40 -> 0.068 | R40: =I40/G40 -> 1.635514019
F41: % of gonorrhea cases in men that occur in MSM | G41: 0.597 | H41: 0.403 | I41: 0.719 | J41: =IF(AND(ISNUMBER('User input'!D25),'User input'!D25<=1), 'User input'!D25, G41) -> 0.597 | K41: 0.403 | L41: 0.719 | O41: 0.194 | P41: 0.675041876 | Q41: 0.122 | R41: 1.204355109
F42: % of syphilis cases in men that occur in MSM | G42: 0.6 | H42: 0.451 | I42: 0.699 | J42: =IF(AND(ISNUMBER('User input'!D26),'User input'!D26<=1), 'User input'!D26, G42) -> 0.6 | K42: 0.451 | L42: 0.699 | O42: 0.149 | P42: 0.7516666667 | Q42: 0.099 | R42: 1.165
F43: % of HIV cases in men that occur in MSM | G43: 0.869 | H43: 0.809 | I43: 0.921 | J43: =IF(AND(ISNUMBER('User input'!D27),'User input'!D27<=1), 'User input'!D27, G43) -> 0.869 | K43: 0.809 | L43: 0.921 | O43: 0.06 | P43: 0.9309551208 | Q43: 0.052 | R43: 1.059838895
F44: % of male HIV PrEP users who are MSM | G44: 0.977 | H44: 0.919 | I44: 1 | J44: =IF(AND(ISNUMBER('User input'!D28),'User input'!D28<=1), 'User input'!D28, G44) -> 0.977 | K44: 0.919 | L44: 1 | O44: 0.058 | P44: 0.9406345957 | Q44: 0.023 | R44: 1.023541453
F45: The current medical CPI to adjust the direct costs for inflation (2022 is default) | G45: 546.554 | H45: =IF(AND(ISNUMBER('User input'!D29),'User input'!D29>0), 'User input'!D29, Model_inputs_new!G45) -> 549.084
F46: The current general CPI to adjust the productivity costs for inflation (2022 is default) | G46: 292.655 | H46: =IF(AND(ISNUMBER('User input'!D30),'User input'!D30>0), 'User input'!D30, Model_inputs_new!G46) -> 304.702
F49: *The optional inputs are repeated here to have the default values as backup, in case the user accidentally deleted them on the user input sheet.
F51: Parameters not modifiable by user | G51: base | H51: low | I51: high
F52: adjustment for time frame for STI-attributable HIV infections | G52: 0.25 | H52: =0.1*G52 -> 0.025 | I52: =1.9*G52 -> 0.475
F53: Conversion from person to person-years of PrEP | G53: 0.74 | H53: 0.6 | I53: 0.82
F54: Absolute reduction in probability of PID given treatment of CT in women | G54: 0.06 | H54: 0.01 | I54: 0.12
F55: Absolute reduction in probability of PID given treatment of GC in women | G55: 0.06 | H55: 0.01 | I55: 0.12
F56: Absolute reduction in probability of epididymitis given treatment of CT in men | G56: 0.02 | H56: 0.01 | I56: 0.04
F57: Absolute reduction in probability of epididymitis given treatment of GC in men | G57: 0.02 | H57: 0.01 | I57: 0.04
F58: Absolute reduction in probability of syphilis sequelae given treatment of syphilis | G58: 0.001 | H58: 0.0004 | I58: 0.0016
F59: Probability of CT given GC, women (Adjustment to prevent double-counting of CT/GC benefits) | G59: 0.354 | H59: 0.26 | I59: 0.4
F60: Probability of CT given GC, non-MSM men (Adjustment to prevent double-counting of CT/GC benefits) | G60: 0.236 | H60: 0.15 | I60: 0.35
F61: Probability of CT given GC, MSM (Adjustment to prevent double-counting of CT/GC benefits) | G61: 0.236 | H61: 0.15 | I61: 0.35
F62: Adjustment for CT/GC reinfection, women (probability of no reinfection) | G62: =0.8 -> 0.8 | H62: =0.68 -> 0.68 | I62: =0.86 -> 0.86
F63: Adjustment for CT/GC reinfection, non-MSM men (probability of no reinfection) | G63: =0.8 -> 0.8 | H63: =0.68 -> 0.68 | I63: =0.86 -> 0.86
F64: Adjustment for CT/GC reinfection, MSM (probability of no reinfection) | G64: 0.8 | H64: 0.68 | I64: 0.86
F65: Probability of CS if mother has syphilis and is not treated | G65: 0.5 | H65: 0.25 | I65: 0.75
F66: Number of secondary infections averted by treating CT in non-MSM men | G66: =0.5 -> 0.5 | H66: 0.05 | I66: 0.95
F67: Number of secondary infections averted by treating CT in MSM | G67: =0.5 -> 0.5 | H67: 0.05 | I67: 0.95
F68: Number of secondary infections averted by treating CT in women | G68: 0.5 | H68: 0.05 | I68: 0.95
F69: Number of secondary infections averted by treating GC in non-MSM men | G69: 0.5 | H69: 0.05 | I69: 0.95
F70: Number of secondary infections averted by treating GC in MSM | G70: 0.5 | H70: 0.05 | I70: 0.95
F71: Number of secondary infections averted by treating GC in women | G71: 0.5 | H71: 0.05 | I71: 0.95
F72: Number of secondary infections averted by treating syphilis in non-MSM men | G72: 0.5 | H72: 0.05 | I72: 0.95
F73: Number of secondary infections averted by treating syphilis in MSM | G73: 0.5 | H73: 0.05 | I73: 0.95
F74: Number of secondary infections averted by treating syphilis in women | G74: 0.5 | H74: 0.05 | I74: 0.95
F75: Probability of STI-attributable HIV infection, per CT infection in non-MSM men | G75: 0.00022 | H75: 2.2e-05 | I75: 0.000418
F76: Probability of STI-attributable HIV infection, per CT infection in MSM | G76: =4.39/1000 -> 0.00439 | H76: =ROUND(0.00264064920906526,6) -> 0.002641 | I76: =ROUND(0.00657442093127125,6) -> 0.006574 | J76: range is approximation of 95% CI based on published IQR
F77: Probability of STI-attributable HIV infection, per CT infection in women | G77: 0.00022 | H77: 2.2e-05 | I77: 0.000418
F78: Probability of STI-attributable HIV infection, per GC infection in non-MSM men | G78: 0.00022 | H78: 2.2e-05 | I78: 0.000418
F79: Probability of STI-attributable HIV infection, per GC infection in MSM | G79: =4.39/1000 -> 0.00439 | H79: =ROUND(0.00264064920906526,6) -> 0.002641 | I79: =ROUND(0.00657442093127125,6) -> 0.006574 | J79: range is approximation of 95% CI based on published IQR
F80: Probability of STI-attributable HIV infection, per GC infection in women | G80: 0.00022 | H80: 2.2e-05 | I80: 0.000418
F81: Probability of STI-attributable HIV infection, per syphilis infection in non-MSM men | G81: 0.00462 | H81: 0.000462 | I81: 0.008778
F82: Probability of STI-attributable HIV infection, per syphilis infection in MSM | G82: 0.00462 | H82: 0.000462 | I82: 0.008778
F83: Probability of STI-attributable HIV infection, per syphilis infection in women | G83: 0.00462 | H83: 0.000462 | I83: 0.008778
F84: Number of HIV infections per person linked to care, non-MSM men | G84: 0.011 | H84: 0.008 | I84: 0.019
F85: Number of HIV infections per person linked to care, MSM | G85: 0.011 | H85: 0.008 | I85: 0.019
F86: Number of HIV infections per person linked to care, women | G86: 0.011 | H86: 0.008 | I86: 0.019
F87: Number of HIV infections averted per person-year on PrEP, women | G87: 0.0006 | H87: 0.0004 | I87: 0.00407 | K87: =$G87*(H89/G89) -> 0.0004044368601 | L87: =G87*(I89/G89) -> 0.00409556314
F88: Number of HIV infections averted per person-year on PrEP, non-MSM men | G88: 0.0006 | H88: 0.0004 | I88: 0.00407
F89: Number of HIV infections averted per person-year on PrEP, MSM | G89: 0.00586 | H89: 0.00395 | I89: 0.04
F90: Number of persons initiating PrEP per PrEP referral, women | G90: 0.049 | H90: 0.024 | I90: 0.207
F91: Number of persons initiating PrEP per PrEP referral, non-MSM men | G91: 0.049 | H91: 0.024 | I91: 0.207
F92: Number of persons initiating PrEP per PrEP referral, MSM | G92: 0.049 | H92: 0.024 | I92: 0.207
F93: Probability that females receive EPT prescriptions from their partners | G93: 0.44 | H93: 0.34 | I93: 0.558
F94: Probability that non-MSM males receive EPT prescriptions from their partners | G94: 0.44 | H94: 0.34 | I94: 0.558
F95: Probability that MSM receive EPT prescriptions from their partners | G95: 0.44 | H95: 0.34 | I95: 0.558
F96: Probability female is infected if partner has chlamydia | G96: 0.31 | H96: 0.21 | I96: 0.41
F97: Probability non-MSM male is infected if partner has chlamydia | G97: 0.31 | H97: 0.21 | I97: 0.41
F98: Probability MSM is infected if partner has chlamydia | G98: 0.31 | H98: 0.21 | I98: 0.41
F99: Probability female is infected if partner has gonorrhea | G99: 0.31 | H99: 0.21 | I99: 0.41
F100: Probability non-MSM male is infected if partner has gonorrhea | G100: 0.31 | H100: 0.21 | I100: 0.41
F101: Probability MSM is infected if partner has gonorrhea | G101: 0.31 | H101: 0.21 | I101: 0.41
F102: Probability female is infected if partner has syphilis | G102: 0.298 | H102: 0.1 | I102: 0.8
F103: Probability non-MSM male is infected if partner has syphilis | G103: 0.298 | H103: 0.1 | I103: 0.8
F104: Probability MSM is infected if partner has syphilis | G104: 0.298 | H104: 0.1 | I104: 0.8
F105: Probability of GC given CT, women (Adjustment to prevent double-counting of CT/GC benefits) | G105: 0.042 | H105: 0.024 | I105: 0.062
F106: Probability of GC given CT, non-MSM men (Adjustment to prevent double-counting of CT/GC benefits) | G106: 0.011 | H106: 0.005 | I106: 0.023
F107: Probability of GC given CT, MSM (Adjustment to prevent double-counting of CT/GC benefits) | G107: 0.011 | H107: 0.005 | I107: 0.023
F108: Number of person-years on PrEP per person initiating PrEP (limited to first 365 days after PrEP initiation) | G108: 0.74 | H108: 0.6 | I108: 0.82
F114: Direct medical cost parameters | G114: base | H114: low | I114: high
F115: Cost per case of PID | G115: =ROUND(L115,0) -> 2703 | H115: =ROUND(M115,0) -> 2107 | I115: 4051 | K115: Cost per case of PID | L115: 2703 | M115: 2107 | N115: 4051
F116: Cost per case of epididymitis | G116: =ROUND(L116,0) -> 413 | H116: =ROUND(M116,0) -> 256 | I116: =ROUND(N116,0) -> 571 | K116: Cost per case of epididymitis | L116: 413 | M116: 256 | N116: 571
F117: Cost of syphilis sequelae (discounted) | G117: 26826 | H117: 6170 | I117: 85843 | K117: Cost (per infection) of untreated syphilis | L117: 26826 | M117: 6170 | N117: 85843
F118: Cost per case of congenital syphilis | G118: 14573 | H118: 8335 | I118: 24514 | K118: Cost per case of congenital syphilis | L118: 14573 | M118: 8335 | N118: 24514
F119: Cost of chlamydia in men (per infection) | G119: 51 | H119: 35 | I119: 68 | K119: Cost of chlamydia in men (per infection) | L119: 51 | M119: 35 | N119: 68
F120: Cost of chlamydia in women (per infection) | G120: 289 | H120: 140 | I120: 532 | K120: Cost of chlamydia in women (per infection) | L120: 289 | M120: 140 | N120: 532
F121: Cost of gonorrhea in men (per infection) | G121: 86 | H121: 40 | I121: 160 | K121: Cost of gonorrhea in men (per infection) | L121: 86 | M121: 40 | N121: 160
F122: Cost of gonorrhea in women (per infection) | G122: 280 | H122: 106 | I122: 571 | K122: Cost of gonorrhea in women (per infection) | L122: 280 | M122: 106 | N122: 571
F123: Cost of syphilis in men (per infection) | G123: 1311 | H123: 803 | I123: 2076 | K123: Cost of syphilis in men (per infection) | L123: 1311 | M123: 803 | N123: 2076
F124: Cost of syphilis in women (per infection) | G124: 1311 | H124: 803 | I124: 2076 | K124: Cost of syphilis in women (per infection) | L124: 1311 | M124: 803 | N124: 2076
F125: Cost of HIV (per infection) | G125: 463013 | H125: 359595 | I125: 539865 | K125: Cost of HIV (per infection) | L125: 463013 | M125: 359595 | N125: 539865
F126: Cost of chlamydia in heterosexual men and women (weighted average of male and female) | G126: 189 | H126: 96 | I126: 337 | K126: Cost of chlamydia in heterosexual men and women (weighted average of male and female) | L126: 189 | M126: 96 | N126: 337
F127: Cost of gonorrhea in heterosexual men and women (weighted average of male and female) | G127: 199 | H127: 78 | I127: 399 | K127: Cost of gonorrhea in heterosexual men and women (weighted average of male and female) | L127: 199 | M127: 78 | N127: 399
F128: Weight to apply to female chlamydia cost for weighted average cost of chlamydia in heterosexual men and women | G128: 0.58
F135: Productivity cost parameters | G135: base | H135: low | I135: high
F136: Cost per case of PID | G136: =ROUND(L136,0) -> 2173 | H136: =ROUND(M136,0) -> 819 | I136: =ROUND(N136,0) -> 4499 | K136: Cost per case of PID | L136: 2173 | M136: 819 | N136: 4499
F137: Cost per case of epididymitis | G137: =ROUND(L137,0) -> 710 | H137: 268 | I137: 1470 | K137: Cost per case of epididymitis | L137: 710 | M137: 268 | N137: 1470
F138: Cost (per infection) of untreated syphilis | G138: 206270 | H138: 123762 | I138: 342408 | K138: Cost (per infection) of untreated syphilis | L138: 206270 | M138: 123762 | N138: 342408
F139: Cost per case of congenital syphilis | G139: 91321 | H139: 45661 | I139: 136982 | K139: Cost per case of congenital syphilis | L139: 91321 | M139: 45661 | N139: 136982
F140: Cost of chlamydia in men (per infection) | G140: 28 | H140: 14 | I140: 50 | K140: Cost of chlamydia in men (per infection) | L140: 28 | M140: 14 | N140: 50
F141: Cost of chlamydia in women (per infection) | G141: 205 | H141: 69 | I141: 498 | K141: Cost of chlamydia in women (per infection) | L141: 205 | M141: 69 | N141: 498
F142: Cost of gonorrhea in men (per infection) | G142: 37 | H142: 17 | I142: 72 | K142: Cost of gonorrhea in men (per infection) | L142: 37 | M142: 17 | N142: 72
F143: Cost of gonorrhea in women (per infection) | G143: 212 | H143: 59 | I143: 542 | K143: Cost of gonorrhea in women (per infection) | L143: 212 | M143: 59 | N143: 542
F144: Cost of syphilis in men (per infection) | G144: 411 | H144: 176 | I144: 1004 | K144: Cost of syphilis in men (per infection) | L144: 411 | M144: 176 | N144: 1004
F145: Cost of syphilis in women (per infection) | G145: 411 | H145: 176 | I145: 1004 | K145: Cost of syphilis in women (per infection) | L145: 411 | M145: 176 | N145: 1004
F146: Cost of HIV (per infection) | G146: 87458 | H146: 17387 | I146: 148158 | K146: Cost of HIV (per infection) | L146: 87458 | M146: 17387 | N146: 148158
F147: Cost of chlamydia in heterosexual men and women (weighted average of male and female) | G147: 131 | H147: 46 | I147: 310 | K147: Cost of chlamydia in heterosexual men and women (weighted average of male and female) | L147: 131 | M147: 46 | N147: 310
F148: Cost of gonorrhea in heterosexual men and women (weighted average of male and female) | G148: 139 | H148: 41 | I148: 345 | K148: Cost of gonorrhea in heterosexual men and women (weighted average of male and female) | L148: 139 | M148: 41 | N148: 345

Sheet Pivots (hidden)
A2: Sum of Final cost | B2: Column Labels
A3: Row Labels | B3: Direct medical costs | C3: Productivity costs | D3: Grand Total
A4: HIV infections averted | B4: 0 | C4: 0 | D4: 0
A5: Sequalae averted in patients treated | B5: 0 | C5: 0 | D5: 0
A6: Congenital syphilis averted | B6: 0 | C6: 0 | D6: 0
A7: STI infections averted | B7: 0 | C7: 0 | D7: 0
A8: Grand Total | B8: 0 | C8: 0 | D8: 0
A15: Sum of Final cost | B15: Column Labels
A16: Row Labels | B16: Direct medical costs | C16: Productivity costs | D16: Grand Total
A17: HIV infections averted | B17: 0 | C17: 0 | D17: 0
A18: Sequalae averted in patients treated | B18: 0 | C18: 0 | D18: 0
A19: Congenital syphilis averted | B19: 0 | C19: 0 | D19: 0
A20: STI infections averted | B20: 0 | C20: 0 | D20: 0
A21: Grand Total | B21: 0 | C21: 0 | D21: 0
